Workbook

Sheet Settings (hidden)
B1: Sector PSCC | C1: Department Database | D1: Entities name ENE Publication | E1: Entities name Database | F1: Examiner | G1: ExamTel | H1: ExamMail | I1: TechName | J1: TechTel | K1: TechMail | L1: Type | M1: Consol | N1: PFMA | O1: PE_No1 | P1: PE_No | Q1: Entity Abbreviation | S1: FinYear | CK1: =INDEX(($CK$17:$CK$244),MATCH($E$2,$E$17:$E$243,0)) -> 0 | CL1: =INDEX(($CL$17:$CL$243),MATCH($E$2,$E$17:$E$243,0)) -> Iqbal Mahomed Alli | CM1: =INDEX(($CM$17:$CM$243),MATCH($E$2,$E$17:$E$243,0)) -> Iqbal.Mahomedalli@treasury.gov.za | CN1: =INDEX(($CN$17:$CN$243),MATCH($E$2,$E$17:$E$243,0)) -> (012) 315 5809
B2: =INDEX(($B$17:$B$243),MATCH($E$2,$E$17:$E$243,0)) -> Public non-financial corporation | C2: =INDEX(($C$17:$C$243),MATCH($E$2,$E$17:$E$243,0)) -> Water and Sanitation | D2: =INDEX(($D$17:$D$243),MATCH($E$2,$E$17:$E$243,0)) -> Consolidated Water Boards | E2: =Information!B8 -> ZWater Boards Consolidation | F2: =INDEX(($F$17:$F$243),MATCH($E$2,$E$17:$E$243,0)) -> Bongani Daka | G2: =INDEX(($G$17:$G$243),MATCH($E$2,$E$17:$E$243,0)) -> (012) 315 5586 | H2: =INDEX(($H$17:$H$243),MATCH($E$2,$E$17:$E$243,0)) -> Bongani.Daka@treasury.gov.za | I2: =INDEX(($I$17:$I$243),MATCH($E$2,$E$17:$E$243,0)) -> Nymrot Sholoko | J2: =INDEX(($J$17:$J$243),MATCH($E$2,$E$17:$E$243,0)) -> 0 | K2: =INDEX(($K$17:$K$243),MATCH($E$2,$E$17:$E$243,0)) -> Nymrot.Sholoko@treasury.gov.za | L2: =INDEX(($L$17:$L$243),MATCH($E$2,$E$17:$E$243,0)) -> 1 | M2: =INDEX(($M$17:$M$243),MATCH($E$2,$E$17:$E$243,0)) -> 1 | N2: =INDEX(($N$17:$N$243),MATCH($E$2,$E$17:$E$243,0)) -> 3B | O2: =INDEX(($O$17:$O$243),MATCH($E$2,$E$17:$E$243,0)) -> PE153 | P2: =INDEX(($P$17:$P$243),MATCH($E$2,$E$17:$E$243,0)) -> 153 | Q2: =INDEX(($Q$17:$Q$243),MATCH($E$2,$E$17:$E$243,0)) -> Zwaterboards | R2: =INDEX(($R$17:$R$243),MATCH($E$2,$E$17:$E$243,0)) -> 3 | S2: =INDEX(($S$17:$S$243),MATCH($E$2,$E$17:$E$243,0)) -> 202829
L5: =INDEX(($L$17:$L$243),MATCH($E$2,$E$17:$E$243,0)) -> 1
AA14: Related Party | AP14: Personnel | BG14: Infrastructure | BW14: Related Party Transfers
AC15: =COUNTA(AC18:AC236) -> 42 | AD15: =COUNTA(AD18:AD239) -> 192 | AE15: =COUNTA(AE18:AE235) -> 16 | AF15: =COUNTA(AF18:AF236) -> 14 | AG15: 16 | AH15: 14 | AI15: 13 | AJ15: 14 | AK15: 15 | AL15: 14 | AM15: 15 | AT15: =COUNTA(AT18:AT20) -> 3 | AU15: =COUNTA(AU18:AU20) -> 3 | AV15: =COUNTA(AV18:AV19) -> 2 | AW15: 2 | AX15: 2 | AY15: 2 | AZ15: 2 | BA15: 2 | BX15: =COUNTA(BX18:BX59) -> 42 | BY15: =COUNTA(BY18:BY239) -> 192 | BZ15: =COUNTA(BZ18:BZ59) -> 16 | CA15: =COUNTA(CA18:CA59) -> 14 | CB15: 16 | CC15: 14 | CD15: 13 | CE15: 14 | CF15: 15 | CG15: 14 | CH15: 15 | CI15: 42
B16: Sector PSCC | C16: Department | D16: EntityNameENE | E16: EntityName | F16: Examiner | G16: ExamTel | H16: ExamMail | I16: TechName | J16: TechTel | K16: TechMail | L16: Type_Code | M16: ConsolIndi | N16: PFMA | O16: PE_No1 | P16: PE_No | Q16: ENT_Abrev | R16: RelatedPartyID | S16: FinYear | U16: Years | X16: Priorities | AA16: Entity revenue | AB16: Related Party category | AC16: Related Party Name | AP16: Level | AQ16: Salary Level 202627 | AR16: Salary Level 202526 | AS16: Occupation | BB16: Category | BC16: Occupation | BD16: Components of Remuneration | BG16: SIP Category | BH16: InfraList1 | BI16: InfraList2 | BJ16: InfraList3 | BK16: InfraList4 | BL16: SCOA level | BP16: Headings | BS16: Transfers receipt/payment | BU16: Currency | BW16: Related Party Transfer category | CK16: ODA | CL16: Budget Analyst | CM16: Email | CN16: Telephone | CP16: Audited
B17: Extra-Budgetary Institution | C17: Science, Technology and Innovation | D17: Academy of Science of South Africa | E17: Academy of Science of South Africa | F17: Ashley Ramasimu | G17: (012) 315 5166 | H17: Ashley.ramasimu@treasury.gov.za | I17: Jabulane Mashele | J17: (012) 395 6560 | K17: Jabulane.Mashele@treasury.gov.za | L17: 1 | M17: 1 | N17: Not listed | O17: PE8 | P17: 8 | Q17: ASSAF | R17: 3 | S17: 202829 | U17: 2023/24 | X17: Outcome 1: Increased employment and work opportunities | AA17: Advertising | AC17: National Department | AD17: Other Public Entities | AE17: Eastern Cape | AF17: Free State | AG17: Gauteng | AH17: Kwazulu-Natal | AI17: Limpopo | AJ17: Mpumalanga | AK17: Northern Cape | AL17: North West | AM17: Western Cape | AP17: 1 | AQ17: ≤143 190 | AR17: ≤137 682 | AS17: Executive Board Members | AT17: Executive Board Members | AU17: Executive Management | AV17: Senior Management | AW17: Middle Management | AX17: Professionals | AY17: Skilled | AZ17: Semi-skilled | BA17: Very low skilled | BB17: Permanent | BC17: Actors | BD17: Guaranteed package | BG17: Not related to SIPs | BH17: Programme | BI17: New infrastructure assets | BJ17: Site identification | BK17: Mega | BL17: Residential buildings | BP17: Audited outcome | BS17: Receipt | BU17: CAD | BW17: Other national departments | BX17: Other national departments | BY17: Departmental agencies and accounts | BZ17: Provincial department - Eastern Cape | CA17: Provincial department - Free State | CB17: Provincial department - Gauteng | CC17: Provincial department - Kwazulu-Natal | CD17: Provincial department - Limpopo | CE17: Provincial department - Mpumalanga | CF17: Provincial department - Northern Cape | CG17: Provincial department - North West | CH17: Provincial department - Western Cape | CI17: National government | CK17: 0 | CL17: Thabiso Molewa | CM17: Thabiso.molewa@treasury.gov.za | CN17: (012) 315 5166 | CP17: Yes
B18: Extra-Budgetary Institution | C18: National Treasury | D18: Accounting Standards Board | E18: Accounting Standards Board | F18: Mokgatla Tema | G18: (012) 315 5948 | H18: Mokgatla.Tema@treasury.gov.za | I18: Patrick Mbedzi | J18: (012) 315 5912 | K18: Patrick.Mbedzi@treasury.gov.za | L18: 1 | M18: 1 | N18: 3A | O18: PE7 | P18: 7 | Q18: ASB | R18: 3 | S18: 202829 | U18: 2024/25 | X18: Outcome 2: Accelerated growth of strategic and labour-intensive sectors | AA18: Communication (G&S) | AB18: Other Public Entities | AC18: The Presidency | AD18: Academy of Science of South Africa | AE18: Education | AF18: Education | AG18: Education | AH18: Education | AI18: Education | AJ18: Education | AK18: Education | AL18: Education | AM18: Education | AP18: 2 | AQ18: 143 191 - 169 656 | AR18: 137 683 - 160 719 | AS18: Executive Management | AT18: Guaranteed package | AU18: Guaranteed package | AV18: Guaranteed package | AW18: Guaranteed package | AX18: Guaranteed package | AY18: Guaranteed package | AZ18: Guaranteed package | BA18: Guaranteed package | BB18: Temporary/Contract | BC18: Adjudicators | BD18: Performance bonus | BG18: SIP 1: Unlocking the northern mineral belt with Waterberg as Catalyst | BH18: Project | BI18: Upgrading and additions | BJ18: Pre-feasibility | BK18: Large | BL18: Non-residential buildings | BP18: Audited outcome | BS18: Payment | BU18: CHF | BW18: Departmental agencies and accounts | BX18: The Presidency | BY18: Academy of Science of South Africa | BZ18: Education | CA18: Education | CB18: Education | CC18: Education | CD18: Education | CE18: Education | CF18: Education | CG18: Education | CH18: Education | CI18: The Presidency | CK18: 0 | CL18: Rhoda Marais | CM18: Rhoda.Marais@treasury.gov.za | CN18: (012) 315 5906 | CP18: No
B19: Extra-Budgetary Institution | C19: International Relations and Cooperation | D19: African Renaissance and International Cooperation Fund | E19: African Renaissance and International Cooperation Fund | F19: George Tembo | G19: (012) 315 5514 | H19: George.Tembo@treasury.gov.za | I19: Jabulane Mashele | J19: (012) 395 6560 | K19: Jabulane.Mashele@treasury.gov.za | L19: 3 | M19: 1 | N19: 3A | O19: PE2 | P19: 2 | Q19: ARICF | R19: 3 | S19: 202829 | U19: 2025/26 | X19: Outcome 3: Structural reforms to drive growth and competitiveness | AA19: Computer services | AB19: Eastern Cape | AC19: Parliament | AD19: Accounting Standards Board | AE19: Health | AF19: Health | AG19: Health | AH19: Health | AI19: Health | AJ19: Health | AK19: Health | AL19: Health | AM19: Health | AP19: 3 | AQ19: 169 657 - 200 523 | AR19: 160 720 - 192 810 | AS19: Senior Management | AT19: Performance bonus | AU19: Performance bonus | AV19: Other | AW19: Other | AX19: Other | AY19: Other | AZ19: Other | BA19: Other | BC19: Administrative and related professionals | BD19: Other | BG19: SIP 2: Durban-Free State Gauteng Logistics and Industrial Corridor | BI19: Rehabilitation and refurbishment | BJ19: Feasibility | BK19: Small | BL19: Investment property | BP19: Budget | BU19: CNY/RMB | BW19: Provincial department - Eastern Cape | BX19: Parliament | BY19: Accounting Standards Board | BZ19: Health | CA19: Health | CB19: Health | CC19: Health | CD19: Health | CE19: Health | CF19: Health | CG19: Health | CH19: Health | CI19: Parliament | CK19: 0 | CL19: Mercy Mhlophe | CM19: Mercy.Mhlophe@treasury.gov.za | CN19: (012) 315 5598
B20: Extra-Budgetary Institution | C20: Public Works and Infrastructure | D20: Agrément South Africa | E20: Agrément South Africa | F20: George Tembo | G20: (012) 315 5514 | H20: George.Tembo@treasury.gov.za | I20: Patrick Mbedzi | J20: (012) 315 5912 | K20: Patrick.Mbedzi@treasury.gov.za | L20: 1 | M20: 1 | N20: 3A | O20: PE246 | P20: 246 | Q20: ASA | R20: 3 | S20: 202829 | U20: 2026/27 | X20: Outcome 4: Increased infrastructure investment and job creation | AA20: Consultants: Business and advisory services | AB20: Free State | AC20: Cooperative Governance | AD20: African Renaissance and International Cooperation Fund | AE20: Social Development and Special Programmes | AF20: Social Development | AG20: Social Development | AH20: Social Development | AI20: Social Development | AJ20: Social Development | AK20: Social Development | AL20: Social Development | AM20: Social Development | AP20: 4 | AQ20: 200 524 - 236 877 | AR20: 192 811 - 227 766 | AS20: Middle Management | AT20: Other | AU20: Other | BC20: Agriculture related | BG20: Sip 3: South eastern note and corridor development | BI20: Maintenance and repair | BJ20: Design | BL20: Heritage assets | BP20: Audited outcome | BU20: DKK | BW20: Provincial department - Free State | BX20: Cooperative Governance | BY20: African Renaissance and International Cooperation Fund | BZ20: Social Development and Special Programmes | CA20: Social Development | CB20: Social Development | CC20: Social Development | CD20: Social Development | CE20: Social Development | CF20: Social Development | CG20: Social Development | CH20: Social Development | CI20: Cooperative Governance | CK20: 0 | CL20: Tumelo Movare | CM20: Tumelo.Movare@treasury.gov.za | CN20: (012) 315 5279
B21: Extra-Budgetary Institution | C21: Land Reform and Rural Development | D21: Agricultural land holding account | E21: Agricultural Land Holding Account | F21: Bothwell Deka | G21: (012) 395 6784 | H21: Bothwell.Deka@treasury.gov.za | I21: Jabulane Mashele | J21: (012) 395 6560 | K21: Jabulane.Mashele@treasury.gov.za | L21: 1 | M21: 1 | N21: Not listed | O21: PE62 | P21: 62 | Q21: ALHA | R21: 3 | S21: 202829 | U21: 2027/28 | X21: Outcome 5: Energy security and a just energy transition | AA21: Infrastructure and planning services | AB21: Gauteng | AC21: Government Communication and Information System | AD21: Agrément South Africa | AE21: Office of the Premier | AF21: Premier | AG21: Office of the Premier | AH21: Office of the Premier | AI21: Office of the Premier | AJ21: Office of the Premier | AK21: Office of the Premier | AL21: Office of the Premier | AM21: Premier | AP21: 5 | AQ21: 236 878 - 279 708 | AR21: 227 767 - 268 950 | AS21: Professionals | BC21: Analysts | BG21: SIP 4: Unlocking the economic opportunities in the Both West Province | BJ21: Tender | BL21: Other fixed structures | BP21: Budget estimate | BU21: EUR | BW21: Provincial department - Gauteng | BX21: Government Communication and Information System | BY21: Agrément South Africa | BZ21: Office of the Premier | CA21: Premier | CB21: Office of the Premier | CC21: Office of the Premier | CD21: Office of the Premier | CE21: Office of the Premier | CF21: Office of the Premier | CG21: Office of the Premier | CH21: Premier | CI21: Government Communication and Information System | CK21: 0 | CL21: Nico Likhethe | CM21: Nico.Likhethe@treasury.gov.za | CN21: (012) 315 5558
B22: Extra-Budgetary Institution | C22: Agriculture | D22: Agricultural Research Council | E22: Agricultural Research Council | F22: Bothwell Deka | G22: (012) 395 6785 | H22: Bothwell.Deka@treasury.gov.za | I22: Jabulane Mashele | J22: (012) 395 6560 | K22: Jabulane.Mashele@treasury.gov.za | L22: 1 | M22: 1 | N22: 3A | O22: PE5 | P22: 5 | Q22: ARC | R22: 1 | S22: 202829 | U22: 2028/29 | X22: Outcome 6: Supportive and sustainable economic policy environment | AA22: Laboratory services | AB22: Kwazulu-Natal | AC22: Home Affairs | AD22: Agricultural Land Holding Account | AE22: Provincial Legislature | AF22: Free State Legislature | AG22: Gauteng Provincial Legislature | AH22: Provincial Legislature | AI22: Provincial Legislature | AJ22: Provincial Legislature | AK22: Provincial Legislature | AL22: Provincial Legislature | AM22: Provincial Parliament | AP22: 6 | AQ22: 279 709 - 330 162 | AR22: 268 951 - 317 463 | AS22: Skilled | BC22: Appraisers-valuers and related professionals | BG22: SIP 5: Saldanha-Northern Cape Development Corridor | BJ22: Construction | BP22: Approved budget | BU22: GBP | BW22: Provincial department - Kwazulu-Natal | BX22: Home Affairs | BY22: Agricultural Land Holding Account | BZ22: Provincial Legislature | CA22: Free State Legislature | CB22: Gauteng Provincial Legislature | CC22: Provincial Legislature | CD22: Provincial Legislature | CE22: Provincial Legislature | CF22: Provincial Legislature | CG22: Provincial Legislature | CH22: Provincial Parliament | CI22: Home Affairs | CK22: 1 | CL22: Nico Likhethe | CM22: Nico.Likhethe@treasury.gov.za | CN22: (012) 315 5558
B23: Extra-Budgetary Institution | C23: Higher Education | D23: Agricultural Sector Education and Training Authority | E23: Agricultural Sector Education and Training Authority | F23: Barileng Khumisi | G23: (012) 406 9069 | H23: Barileng.Khumisi@treasury.gov.za | I23: Lionel Botsane | J23: (012) 315 5749 | K23: Lionel.Botsane@treasury.gov.za | L23: 2 | M23: 3 | N23: 3A | O23: PE214 | P23: 214 | Q23: AgriSETA | R23: 3 | S23: 202829 | U23: 2029/30 | X23: Outcome 7: Increased investment, trade And tourism | AA23: Legal services (G&S) | AB23: Limpopo | AC23: International Relations and Cooperation | AD23: Agricultural Research Council | AE23: Public Works | AF23: Economic Development & Small Business Development, Tourism & Environmental Affairs | AG23: Economic Development | AH23: Agriculture and Rural Development | AI23: Agriculture | AJ23: Provincial Treasury | AK23: Transport, Safety and Liaison | AL23: Arts, Culture, Sports and Recreation | AM23: Provincial Treasury | AP23: 7 | AQ23: 330 163 - 398 277 | AR23: 317 464 - 382 959 | AS23: Semi-skilled | BC23: Architects and related professionals | BG23: SIP 6: Integrated municipal infrastructure project | BJ23: Hand over | BP23: Changes from budget estimate | BU23: JPY | BW23: Provincial department - Limpopo | BX23: International Relations and Cooperation | BY23: Agricultural Research Council | BZ23: Public Works | CA23: Economic Development & Small Business Development, Tourism & Environmental Affairs | CB23: Economic Development | CC23: Agriculture and Rural Development | CD23: Agriculture | CE23: Provincial Treasury | CF23: Transport, Safety and Liaison | CG23: Arts, Culture, Sports and Recreation | CH23: Provincial Treasury | CI23: International Relations and Cooperation | CK23: 0 | CL23: Nkhumeleni Munyai | CM23: Nkhumeleni.Munyai@treasury.gov.za | CN23: (012) 315 5636
B24: Public non-financial corporation | C24: Transport | D24: Air Traffic and Navigation Services Company Limited | E24: Air Traffic and Navigation Services Company | F24: Luyolo Ntlangula | G24: (012) 315 5571 | H24: Luyolo.Ntlangula@treasury.gov.za | I24: Samson Mlambo | J24: 0 | K24: Samson.Mlambo@treasury.gov.za | L24: 1 | M24: 3 | N24: 2 | O24: PE9 | P24: 9 | Q24: ATNS | R24: 3 | S24: 202829 | U24: 2030/31 | X24: Outcome 8: A dynamic science, technology and innovation for growth | AA24: Science and technological services | AB24: Mpumalanga | AC24: National School of Government | AD24: Agricultural Sector Education and Training Authority | AE24: Cooperative Governance and Traditional Affairs | AF24: Provincial Treasury | AG24: Cooperative Governance and Traditional Affairs | AH24: Economic Development, Tourism and Environmental Affairs | AI24: Provincial Treasury | AJ24: Co-Operative Governance and Traditional Affairs | AK24: Roads and Public Works | AL24: Community Safety and Transport Management | AM24: Community Safety | AP24: 8 | AQ24: 398 278 - 486 501 | AR24: 382 960 - 467 790 | AS24: Very low skilled | BC24: Archivists and related professionals | BG24: SIP 7: Integrated urban space and public transport programme | BJ24: Handed over | BP24: Budget estimate | BU24: NZD | BW24: Provincial department - Mpumalanga | BX24: National School of Government | BY24: Agricultural Sector Education and Training Authority | BZ24: Cooperative Governance and Traditional Affairs | CA24: Provincial Treasury | CB24: Cooperative Governance and Traditional Affairs | CC24: Economic Development, Tourism and Environmental Affairs | CD24: Provincial Treasury | CE24: Co-Operative Governance and Traditional Affairs | CF24: Roads and Public Works | CG24: Community Safety and Transport Management | CH24: Community Safety | CI24: National School of Government | CK24: 0 | CL24: Resego Tekanyo | CM24: Resego.Tekanyo@treasury.gov.za | CN24: (012) 395 6786
B25: Public non-financial corporation | C25: Transport | D25: The Airports Company Limited | E25: Airports Company South Africa | F25: Luyolo Ntlangula | G25: (012) 315 5571 | H25: Luyolo.Ntlangula@treasury.gov.za | I25: Samson Mlambo | J25: 0 | K25: Samson.Mlambo@treasury.gov.za | L25: 1 | M25: 3 | N25: 2 | O25: PE1 | P25: 1 | Q25: ACSA | R25: 3 | S25: 202829 | U25: 2031/32 | X25: Outcome 9: Economic transformation for a just society | AA25: Contractors | AB25: Northern Cape | AC25: National Treasury | AD25: Amatola Water Board | AE25: Rural Development and Agrarian Reform | AF25: Cooperative Governance and Traditional Affairs | AG25: Human Settlements | AH25: Provincial Treasury | AI25: Economic Development, Environment and Tourism | AJ25: Agriculture, Rural Development, Land and Environmental Affairs | AK25: Economic Development and Tourism | AL25: Economic Development, Environment, Conservation and Tourism | AM25: Human Settlements | AP25: 9 | AQ25: 486 502 - 584 370 | AR25: 467 791 - 561 894 | BC25: Artisans and related professionals | BG25: SIP 8: Green energy in support of the South African economy | BJ25: On hold | BP25: Revised budget estimate | BU25: NOK | BW25: Provincial department - Northern Cape | BX25: National Treasury | BY25: Amatola Water Board | BZ25: Rural Development and Agrarian Reform | CA25: Cooperative Governance and Traditional Affairs | CB25: Human Settlements | CC25: Provincial Treasury | CD25: Economic Development, Environment and Tourism | CE25: Agriculture, Rural Development, Land and Environmental Affairs | CF25: Economic Development and Tourism | CG25: Economic Development, Environment, Conservation and Tourism | CH25: Human Settlements | CI25: National Treasury | CK25: 0 | CL25: Resego Tekanyo | CM25: Resego.Tekanyo@treasury.gov.za | CN25: (012) 395 6786
B26: Public non-financial corporation | C26: Mineral and Petroleum Resources | D26: Alexkor Limited | E26: Alexkor Limited | F26: Nomagugu Madikane | G26: (012) 315 5312 | H26: Nomagugu.Madikane@treasury.gov.za | I26: Patrick Mbedzi | J26: (012) 315 5912 | K26: Patrick.Mbedzi@treasury.gov.za | L26: 1 | M26: 3 | N26: 2 | O26: PE4 | P26: 4 | Q26: Alexkor | R26: 3 | S26: 202829 | U26: 2032/33 | X26: Outcome 10: Reduced poverty and improved livelihoods | AA26: Agency and support/outsourced services | AB26: North West | AC26: Planning, Monitoring and Evaluation | AD26: Amazwi – South African Museum of Literature | AE26: Economic Development, Environmental Affairs and Tourism | AF26: Public Works & Infrastructure | AG26: Roads and Transport | AH26: Human Settlements | AI26: Transport and Community Safety | AJ26: Economic Development and Tourism | AK26: Sport, Arts and Culture | AL26: Provincial Treasury | AM26: Environmental Affairs and Development Planning | AP26: 10 | AQ26: 584 371 - 932 292 | AR26: 561 895 - 896 436 | BC26: Arts and culture related | BG26: SIP 9: Electricity generations to support socio-economic development | BJ26: Complete | BP26: Changes from budget estimate | BU26: USD | BW26: Provincial department - North West | BX26: Planning, Monitoring and Evaluation | BY26: Amazwi – South African Museum of Literature | BZ26: Economic Development, Environmental Affairs and Tourism | CA26: Public Works & Infrastructure | CB26: Roads and Transport | CC26: Human Settlements | CD26: Transport and Community Safety | CE26: Economic Development and Tourism | CF26: Sport, Arts and Culture | CG26: Provincial Treasury | CH26: Environmental Affairs and Development Planning | CI26: Planning, Monitoring and Evaluation | CK26: 0 | CL26: Portia Thebe | CM26: portia.thebe@treasury.gov.za | CN26: (012) 315 5855
B27: Public non-financial corporation | C27: Water and Sanitation | D27: Amatola Water Board | E27: Amatola Water Board | F27: Bongani Daka | G27: (012) 315 5586 | H27: Bongani.Daka@treasury.gov.za | I27: Nymrot Sholoko | J27: 0 | K27: Nymrot.Sholoko@treasury.gov.za | L27: 1 | M27: 3 | N27: 3B | O27: PE215 | P27: 215 | Q27: Amatola | R27: 3 | S27: 202829 | U27: 2033/34 | X27: Outcome 11: Optimised social protection and coverage | AA27: Fleet services (including government motor transport) | AB27: Western Cape | AC27: Public Enterprises | AD27: Armaments Corporation of South Africa Limited | AE27: Transport | AF27: Police, Roads and Transport | AG27: Community Safety | AH27: Community Safety and Liaison | AI27: Public Works, Roads and Infrastructure | AJ27: Public Works, Roads and Transport | AK27: Provincial Treasury | AL27: Cooperative Governance and Traditional Affairs | AM27: Transport and Public Works | AP27: 11 | AQ27: 932 293 - 1 098 195 | AR27: 896 437 - 1 055 958 | BC27: Asset controllers and related professionals | BG27: SIP 10: Electricity transmission and distribution for all | BJ27: On-going | BP27: Budget estimate | BU27: ZAR | BW27: Provincial department - Western Cape | BX27: Public Enterprises | BY27: Armaments Corporation of South Africa Limited | BZ27: Transport | CA27: Police, Roads and Transport | CB27: Community Safety | CC27: Community Safety and Liaison | CD27: Public Works, Roads and Infrastructure | CE27: Public Works, Roads and Transport | CF27: Provincial Treasury | CG27: Cooperative Governance and Traditional Affairs | CH27: Transport and Public Works | CI27: Public Enterprises | CK27: 0 | CL27: Iqbal Mahomed Alli | CM27: Iqbal.Mahomedalli@treasury.gov.za | CN27: (012) 315 5809
B28: Extra-Budgetary Institution | C28: Sport, Arts and Culture | D28: National English Literary Museum | E28: Amazwi – South African Museum of Literature | F28: Dennis Machobani | G28: (012) 315 5312 | H28: Dennis.Machobani@treasury.gov.za | I28: Vuyo Ngqukumba | J28: (012) 315 5760 | K28: Vuyo.Ngqukumba@treasury.gov.za | L28: 1 | M28: 3 | N28: 3A | O28: PE191 | P28: 191 | Q28: Amazwi | R28: 3 | S28: 202829 | U28: 2034/35 | X28: Outcome 12: Improved access to affordable and quality healthcare | AA28: Housing | AC28: Public Service and Administration | AD28: Artscape | AE28: Human Settlements | AF28: Agriculture and Rural Development | AG28: Agriculture and Rural Development | AH28: Co-Operative Governance and Traditional Affairs | AI28: Cooperative Governance, Human Settlements and Traditional Affairs | AJ28: Community Safety, Security and Liaison | AK28: Cooperative Governance, Human Settlements and Traditional Affairs | AL28: Human Settlements | AM28: Agriculture | AP28: 12 | AQ28: 1 098 196 - 1 297 476 | AR28: 1 055 959 - 1 247 574 | BC28: Attendants | BG28: SIP 11: Agri-logistics and rural infrastructure | BP28: Revised budget estimate | BX28: Public Service and Administration | BY28: Artscape | BZ28: Human Settlements | CA28: Agriculture and Rural Development | CB28: Agriculture and Rural Development | CC28: Co-Operative Governance and Traditional Affairs | CD28: Cooperative Governance, Human Settlements and Traditional Affairs | CE28: Community Safety, Security and Liaison | CF28: Cooperative Governance, Human Settlements and Traditional Affairs | CG28: Human Settlements | CH28: Agriculture | CI28: Public Service and Administration | CK28: 0 | CL28: Nkosana Mphafa | CM28: Nkosana.Mphafa@treasury.gov.za | CN28: (012) 315 5119
B29: Extra-Budgetary Institution | C29: Defence | D29: Armaments Corporation of South Africa, Limited | E29: Armaments Corporation of South Africa Limited | F29: Lesiba Ledwaba | G29: (012) 315 5586 | H29: Lesiba.Ledwaba@treasury.gov.za | I29: Mpho Ntshole | J29: 0 | K29: Mpho.Ntshole@treasury.gov.za | L29: 1 | M29: 1 | N29: 2 | O29: PE6 | P29: 6 | Q29: ARMSCOR | R29: 1 | S29: 202829 | U29: 2035/36 | X29: Outcome 13: Improved education outcomes and skills | AA29: Inventory: Clothing material and accessories | AC29: Public Service Commission | AD29: Banking Sector Education and Training Authority | AE29: Provincial Treasury | AF29: Sport, Arts, Culture and Recreation | AG29: Sport, Arts, Culture and Recreation | AH29: Transport | AI29: Sport, Arts and Culture | AJ29: Culture, Sport and Recreation | AK29: Agriculture, Environmental Affairs, Rural Development and Land Reform | AL29: Public Works and Roads | AM29: Economic Development and Tourism | AP29: 13 | AQ29: 1 297 477 - 1 551 807 | AR29: 1 247 575 - 1 494 900 | BC29: Auditors and related professionals | BG29: SIP 12: Revitalisation of public hospitals and other health facilities | BP29: Changes from budget estimate | BX29: Public Service Commission | BY29: Banking Sector Education and Training Authority | BZ29: Provincial Treasury | CA29: Sport, Arts, Culture and Recreation | CB29: Sport, Arts, Culture and Recreation | CC29: Transport | CD29: Sport, Arts and Culture | CE29: Culture, Sport and Recreation | CF29: Agriculture, Environmental Affairs, Rural Development and Land Reform | CG29: Public Works and Roads | CH29: Economic Development and Tourism | CI29: Public Service Commission | CK29: 0 | CL29: Sesethu Mazoza | CM29: Sesethu.Mazoza@Treasury.gov.za | CN29: (012) 315 5106
B30: Extra-Budgetary Institution | C30: Sport, Arts and Culture | D30: Artscape | E30: Artscape | F30: Dennis Machobani | G30: (012) 315 5312 | H30: Dennis.Machobani@treasury.gov.za | I30: Samson Mlambo | J30: 0 | K30: Samson.Mlambo@treasury.gov.za | L30: 1 | M30: 3 | N30: 3A | O30: PE217 | P30: 217 | Q30: Artscape | R30: 3 | S30: 202829 | X30: Outcome 14: Skills for the economy | AA30: Inventory: Farming supplies | AC30: Public Works and Infrastructure | AD30: Bloem Water | AE30: Sport, Recreation, Arts and Culture | AF30: Human Settlements | AG30: E-Government | AH30: Public Works | AJ30: Human Settlements | AL30: Agriculture and Rural Development | AM30: Cultural Affairs and Sport | AP30: 14 | AQ30: 1 551 808 - 1 858 821 | AR30: 1 494 901 - 1 813 182 | BC30: Authors journalists and other writers | BG30: SIP 13: National school build programme | BP30: Planning budget estimate | BX30: Public Works and Infrastructure | BY30: Bloem Water | BZ30: Sport, Recreation, Arts and Culture | CA30: Human Settlements | CB30: E-Government | CC30: Public Works | CE30: Human Settlements | CG30: Agriculture and Rural Development | CH30: Cultural Affairs and Sport | CI30: Public Works and Infrastructure | CK30: 0 | CL30: Mabele Mdhluli | CM30: Mabele.Mdhluli@treasury.gov.za | CN30: (012) 315 5573
B31: Extra-Budgetary Institution | C31: Higher Education | D31: Banking Sector Education and Training Authority | E31: Banking Sector Education and Training Authority | F31: Barileng Khumisi | G31: (012) 406 9069 | H31: Barileng.Khumisi@treasury.gov.za | I31: Lionel Botsane | J31: (012) 315 5749 | K31: Lionel.Botsane@treasury.gov.za | L31: 2 | M31: 3 | N31: 3A | O31: PE218 | P31: 218 | Q31: BankSETA | R31: 3 | S31: 202829 | X31: Outcome 15: Social cohesion and nation-building | AA31: Inventory: Food and food supplies | AC31: Statistics South Africa | AD31: Boxing South Africa | AE31: Safety and Liaison | AG31: Gauteng Provincial Treasury | AH31: Sport, Arts and Culture | AM31: Local Government | AP31: 15 | AQ31: 1 858 822 - 2 124 237 | AR31: 1 813 183 - 2 352 642 | BC31: Auxiliary and related workers | BG31: SIP 14: Higher education infrastructure | BX31: Statistics South Africa | BY31: Boxing South Africa | BZ31: Safety and Liaison | CB31: Gauteng Provincial Treasury | CC31: Sport, Arts and Culture | CH31: Local Government | CI31: Statistics South Africa | CK31: 0 | CL31: Nkhumeleni Munyai | CM31: Nkhumeleni.Munyai@treasury.gov.za | CN31: (012) 315 5636
B32: Extra-Budgetary Institution | C32: Home Affairs | D32: Border Management Authority | E32: Border Management Authority | F32: Mokgatla Tema | G32: (012) 315 5948 | H32: Mokgatla.Tema@treasury.gov.za | I32: Amanda Mlambo | J32: 0 | K32: Amanda.Mlambo@treasury.gov.za | L32: 1 | M32: 2 | N32: Not listed | O32: PE253 | P32: 253 | Q32: BMA | R32: 3 | S32: 202829 | X32: Outcome 16: Improved service delivery at local government | AA32: Inventory: Fuel, oil and gas | AC32: Traditional Affairs | AD32: Brand SA | AG32: Infrastructure Development | AP32: 16 | AQ32: 2 124 238 - 2 756 241 | AR32: 2 352 643 - 2 650 233 | BC32: Aviation related | BG32: SIP 15: Expanding access to communication technology | BX32: Traditional Affairs | BY32: Brand SA | CB32: Infrastructure Development | CI32: Traditional Affairs | CK32: 0 | CL32: Charlote Mtubu | CM32: Charlotte.Mntubu@treasury.gov.za | CN32: (012) 315 5800
B33: Extra-Budgetary Institution | C33: Sport, Arts and Culture | D33: Boxing SA | E33: Boxing South Africa | F33: Dennis Machobani | G33: (012) 315 5312 | H33: Dennis.Machobani@treasury.gov.za | I33: Vuyo Ngqukumba | J33: (012) 315 5760 | K33: Vuyo.Ngqukumba@treasury.gov.za | L33: 1 | M33: 1 | N33: 3A | O33: PE12 | P33: 12 | Q33: BSA | R33: 3 | S33: 202829 | X33: Outcome 17: Improve governance and performance of public entities | AA33: Inventory: Learner and teacher support material | AC33: Basic Education | AD33: Breede-Olifants Catchment Management Agency | AP33: 17 | AQ33: 2 756 242 - 3 108 548 | AR33: 2 650 234 - 2 988 988 | BC33: Board Members | BG33: SIP 16: SKA and Meerkat | BX33: Basic Education | BY33: Breede-Olifants Catchment Management Agency | CI33: Basic Education | CK33: 0 | CL33: Mabele Mdhluli | CM33: Mabele.Mdhluli@treasury.gov.za | CN33: (012) 315 5573
B34: Extra-Budgetary Institution | C34: Government Communication and Information System | D34: Brand South Africa | E34: Brand SA | F34: Viwe Sobudula | G34: (012) 315 5015 | H34: Viwe.Sobudula@treasury.gov.za | I34: Amanda Mlambo | J34: 0 | K34: Amanda.Mlambo@treasury.gov.za | L34: 1 | M34: 1 | N34: 3A | O34: PE51 | P34: 51 | Q34: BrandSA | R34: 3 | S34: 202829 | X34: Outcome 18: A capable and professional public service | AA34: Inventory: Materials and supplies | AC34: Higher Education | AD34: Castle Control Board | AP34: 18 | AQ34: 3 108 549 - 3 511 906 | AR34: 2 988 989 - 3 376 833 | BC34: Business support and related professionals | BG34: SIP 17: Regional integration for African Cooperation and development | BX34: Higher Education | BY34: Castle Control Board | CI34: Higher Education | CK34: 0 | CL34: Thobeka Mbonambi | CM34: Thobeka.Mbonambi@treasury.gov.za | CN34: (012) 395 6719
B35: Extra-Budgetary Institution | C35: Water and Sanitation | D35: Breede-Olifants Catchment Management Agency | E35: Breede-Olifants Catchment Management Agency | F35: Bongani Daka | G35: (012) 315 5586 | H35: Bongani.Daka@treasury.gov.za | I35: Nymrot Sholoko | J35: 0 | K35: Nymrot.Sholoko@treasury.gov.za | L35: 1 | M35: 1 | N35: 3A | O35: PE225 | P35: 225 | Q35: BGCMA | R35: 3 | S35: 202829 | X35: Outcome 19: Digital transformation across the state | AA35: Inventory: Medical supplies | AC35: Health | AD35: Chemical Industries Education and Training Authority | AP35: 19 | AQ35: 3 511 907 - 3 969 619 | AR35: 3 376 834 - 3 816 941 | BC35: CAE (Chief Audit Executive) | BG35: SIP 18. Water and sanitation master plan | BX35: Health | BY35: Chemical Industries Education and Training Authority | CI35: Health | CK35: 0 | CL35: Iqbal Mahomed Alli | CM35: Iqbal.Mahomedalli@treasury.gov.za | CN35: (012) 315 5809
B36: Extra-Budgetary Institution | C36: Communications and Digital Technologies | D36: Broadband Infraco (Proprietary) Limited | E36: Broadband Infraco Limited | F36: Rezah Atcha | G36: (012) 315 5287 | H36: Rezah.Atcha@treasury.gov.za | I36: Mntazi Msiza | J36: (012) 315 5876 | K36: Mntazi.Msiza@treasury.gov.za | L36: 1 | M36: 3 | N36: 3A | O36: PE224 | P36: 224 | Q36: Broadband | R36: 3 | S36: 202829 | X36: Outcome 20: Safer communities and increased business confidence | AA36: Inventory: Medicine | AC36: Social Development | AD36: Commission for Conciliation Mediation & Arbitration | AP36: 20 | AQ36: 3 969 620 - 4 488 253 | AR36: 3 816 942 - 4 315 628 | BC36: Call centre operator | BX36: Social Development | BY36: Commission for Conciliation Mediation & Arbitration | CI36: Social Development | CK36: 0 | CL36: Keitumetse Motshegwe | CM36: Keitumetse.Motshegwe@treasury.gov.za | CN36: (012) 395 6750
B37: Public non-financial corporation | C37: Defence | D37: Castle Control Board | E37: Castle Control Board | F37: Lesiba Ledwaba | G37: (012) 315 5586 | H37: Lesiba.Ledwaba@treasury.gov.za | I37: Mpho Ntshole | J37: 0 | K37: Mpho.Ntshole@treasury.gov.za | L37: 1 | M37: 1 | N37: 3A | O37: PE16 | P37: 16 | Q37: CCB | R37: 3 | S37: 202829 | X37: Outcome 21: Effective border management and development in Africa and globally | AA37: Medsas inventory interface | AC37: Women, Youth and Persons with Disabilities | AD37: Community Schemes Ombud Service | AP37: 21 | AQ37: 4 488 254 - 5 079 096 | AR37: 4 315 629 - 4 883 746 | BC37: Caretakers | BX37: Women, Youth and Persons with Disabilities | BY37: Community Schemes Ombud Service | CI37: Women, Youth and Persons with Disabilities | CK37: 0 | CL37: Sesethu Mazoza | CM37: Sesethu.Mazoza@Treasury.gov.za | CN37: (012) 315 5106
B38: Public non-financial corporation | C38: Mineral and Petroleum Resources | D38: CEF (Proprietary) Limited | E38: CEF (Pty) Ltd | F38: Nomagugu Madikane | G38: (012) 315 5312 | H38: Nomagugu.Madikane@treasury.gov.za | I38: Patrick Mbedzi | J38: (012) 315 5912 | K38: Patrick.Mbedzi@treasury.gov.za | L38: 3 | M38: 3 | N38: 2 | O38: PE18 | P38: 18 | Q38: CEF | R38: 1 | S38: 202829 | X38: Entity mandate | AA38: Inventory: Other supplies | AC38: Civilian Secretariat for the Police Service | AD38: Companies and Intellectual Property Commission | AP38: 22 | AQ38: ≥ 5 079 097 | AR38: ≥ 4 883 747 | BC38: Cartographers surveyors and related technicaians | BX38: Civilian Secretariat for the Police Service | BY38: Companies and Intellectual Property Commission | CI38: Civilian Secretariat for the Police Service | CK38: 0 | CL38: Portia Thebe | CM38: portia.thebe@treasury.gov.za | CN38: (012) 315 5855
B39: Extra-Budgetary Institution | C39: Higher Education | D39: Chemical Industries Education and Training Authority | E39: Chemical Industries Education and Training Authority | F39: Barileng Khumisi | G39: (012) 406 9069 | H39: Barileng.Khumisi@treasury.gov.za | I39: Lionel Botsane | J39: (012) 315 5749 | K39: Lionel.Botsane@treasury.gov.za | L39: 2 | M39: 3 | N39: 3A | O39: PE165 | P39: 165 | Q39: CHIETA | R39: 3 | S39: 202829 | AA39: Consumable supplies | AC39: Correctional Services | AD39: Companies Tribunal | BC39: Case management officer | BX39: Correctional Services | BY39: Companies Tribunal | CI39: Correctional Services | CK39: 0 | CL39: Nkhumeleni Munyai | CM39: Nkhumeleni.Munyai@treasury.gov.za | CN39: (012) 315 5636
B40: Extra-Budgetary Institution | C40: Employment and Labour | D40: Commission for Conciliation, Mediation and Arbitration | E40: Commission for Conciliation Mediation & Arbitration | F40: Dennis Machobani | G40: (012) 315 5312 | H40: Dennis.Machobani@treasury.gov.za | I40: Vuyo Ngqukumba | J40: (012) 315 5760 | K40: Vuyo.Ngqukumba@treasury.gov.za | L40: 1 | M40: 1 | N40: 3A | O40: PE17 | P40: 17 | Q40: CCMA | R40: 3 | S40: 202829 | AA40: Consumables: Stationery, printing and office supplies | AC40: Defence | AD40: Competition Commission | BC40: Case officer | BX40: Defence | BY40: Competition Commission | CI40: Defence | CK40: 0 | CL40: Palesa Ndokweni | CM40: palesa.ndokweni@treasury.gov.za | CN40: (012) 315 5573
B41: Extra-Budgetary Institution | C41: Human Settlements | D41: Community Schemes Ombud Service | E41: Community Schemes Ombud Service | F41: Claudette Mkhwanazi | G41: (012) 315 6535 | H41: Claudette.Mkhwanazi@treasury.gov.za | I41: Mntazi Msiza | J41: (012) 315 5876 | K41: Mntazi.Msiza@treasury.gov.za | L41: 1 | M41: 1 | N41: 3A | O41: PE240 | P41: 240 | Q41: CSOS | R41: 3 | S41: 202829 | AA41: Operating leases | AC41: Independent Police Investigative Directorate | AD41: Competition Tribunal | BC41: Catering and related | BX41: Independent Police Investigative Directorate | BY41: Competition Tribunal | CI41: Independent Police Investigative Directorate | CK41: 0 | CL41: Claudette Mkhwanazi | CM41: Claudette.Mkhwanazi@treasury.gov.za | CN41: (012) 315 6535
B42: Extra-Budgetary Institution | C42: Trade, Industry and Competition | D42: Companies and Intellectual Property Commission | E42: Companies and Intellectual Property Commission | F42: Rudzani Sikhwari | G42: (012) 315 5823 | H42: Rudzani.Sikhwari@treasury.gov.za | I42: Mpho Ntshole | J42: 0 | K42: Mpho.Ntshole@treasury.gov.za | L42: 1 | M42: 1 | N42: 3A | O42: PE22 | P42: 22 | Q42: CIPC | R42: 3 | S42: 202829 | AA42: Rental and hiring | AC42: Justice and Constitutional Development | AD42: Construction Education and Training Authority | BC42: CEO (Chief Executive Officer) | BX42: Justice and Constitutional Development | BY42: Construction Education and Training Authority | CI42: Justice and Constitutional Development | CK42: 0 | CL42: Phumelele Gulukunqu | CM42: Phumelele.Gulukunqu@Treasury.gov.za | CN42: (012) 315 5539
B43: Extra-Budgetary Institution | C43: Trade, Industry and Competition | D43: Companies Tribunal | E43: Companies Tribunal | F43: Rudzani Sikhwari | G43: (012) 315 5823 | H43: Rudzani.Sikhwari@treasury.gov.za | I43: Mpho Ntshole | J43: 0 | K43: Mpho.Ntshole@treasury.gov.za | L43: 1 | M43: 1 | N43: 3A | O43: PE230 | P43: 230 | Q43: CT | R43: 3 | S43: 202829 | AA43: Property payments | AC43: Military Veterans | AD43: Construction Industry Development Board | BC43: CFO (Chief Financial Officer) | BX43: Military Veterans | BY43: Construction Industry Development Board | CI43: Military Veterans | CK43: 0 | CL43: Phumelele Gulukunqu | CM43: Phumelele.Gulukunqu@Treasury.gov.za | CN43: (012) 315 5539
B44: Extra-Budgetary Institution | C44: Employment and Labour | D44: Compensation Fund | E44: Compensation Fund, including Reserve Fund | F44: Dennis Machobani | G44: (012) 315 5312 | H44: Dennis.Machobani@treasury.gov.za | I44: Vuyo Ngqukumba | J44: (012) 315 5760 | K44: Vuyo.Ngqukumba@treasury.gov.za | L44: 4 | M44: 4 | N44: 3A | O44: PE26 | P44: 26 | Q44: CompFund | R44: 3 | S44: 202829 | AA44: Transport provided: Departmental activity | AC44: Office of the Chief Justice | AD44: Council for Geoscience | BC44: Chairperson | BX44: Office of the Chief Justice | BY44: Council for Geoscience | CI44: Office of the Chief Justice | CK44: 0 | CL44: Palesa Ndokweni | CM44: palesa.ndokweni@treasury.gov.za | CN44: (012) 315 5573
B45: Extra-Budgetary Institution | C45: Trade, Industry and Competition | D45: Competition Commission | E45: Competition Commission | F45: Rudzani Sikhwari | G45: (012) 315 5823 | H45: Rudzani.Sikhwari@treasury.gov.za | I45: Mpho Ntshole | J45: 0 | K45: Mpho.Ntshole@treasury.gov.za | L45: 1 | M45: 1 | N45: 3A | O45: PE25 | P45: 25 | Q45: CC | R45: 1 | S45: 202829 | AA45: Training and development | AC45: Police | AD45: Council for Medical Schemes | BC45: CIO (Chief Information Officer) | BX45: Police | BY45: Council for Medical Schemes | CI45: Police | CK45: 0 | CL45: Phumelele Gulukunqu | CM45: Phumelele.Gulukunqu@Treasury.gov.za | CN45: (012) 315 5539
B46: Extra-Budgetary Institution | C46: Trade, Industry and Competition | D46: Competition Tribunal | E46: Competition Tribunal | F46: Rudzani Sikhwari | G46: (012) 315 5823 | H46: Rudzani.Sikhwari@treasury.gov.za | I46: Mpho Ntshole | J46: 0 | K46: Mpho.Ntshole@treasury.gov.za | L46: 1 | M46: 1 | N46: 3A | O46: PE27 | P46: 27 | Q46: CT | R46: 1 | S46: 202829 | AA46: Operating payments | AC46: Agriculture, Land Reform and Rural Development | AD46: Council for Scientific and Industrial Research | BC46: Cleaners | BX46: Agriculture, Land Reform and Rural Development | BY46: Council for Scientific and Industrial Research | CI46: Agriculture, Land Reform and Rural Development | CK46: 0 | CL46: Phumelele Gulukunqu | CM46: Phumelele.Gulukunqu@Treasury.gov.za | CN46: (012) 315 5539
B47: Extra-Budgetary Institution | C47: Higher Education | D47: Construction Education and Training Authority | E47: Construction Education and Training Authority | F47: Barileng Khumisi | G47: (012) 406 9069 | H47: Barileng.Khumisi@treasury.gov.za | I47: Lionel Botsane | J47: (012) 315 5749 | K47: Lionel.Botsane@treasury.gov.za | L47: 2 | M47: 3 | N47: 3A | O47: PE223 | P47: 223 | Q47: CETA | R47: 3 | S47: 202829 | AA47: Venues and facilities | AC47: Communications and Digital Technologies | AD47: Council for the Built Environment | BC47: Commissioners | BX47: Communications and Digital Technologies | BY47: Council for the Built Environment | CI47: Communications and Digital Technologies | CK47: 0 | CL47: Nkhumeleni Munyai | CM47: Nkhumeleni.Munyai@treasury.gov.za | CN47: (012) 315 5636
B48: Extra-Budgetary Institution | C48: Public Works and Infrastructure | D48: Construction Industry Development Board | E48: Construction Industry Development Board | F48: George Tembo | G48: (012) 315 5514 | H48: George.Tembo@treasury.gov.za | I48: Patrick Mbedzi | J48: (012) 315 5912 | K48: Patrick.Mbedzi@treasury.gov.za | L48: 1 | M48: 1 | N48: 3A | O48: PE21 | P48: 21 | Q48: CIDB | R48: 3 | S48: 202829 | AC48: Employment and Labour | AD48: Council on Higher Education | BC48: Committee officials | BX48: Employment and Labour | BY48: Council on Higher Education | CI48: Employment and Labour | CK48: 0 | CL48: Tumelo Movare | CM48: Tumelo.Movare@treasury.gov.za | CN48: (012) 315 5279
B49: Extra-Budgetary Institution | C49: Mineral and Petroleum Resources | D49: Council for Geoscience | E49: Council for Geoscience | F49: Nomagugu Madikane | G49: (012) 315 5312 | H49: Nomagugu.Madikane@treasury.gov.za | I49: Patrick Mbedzi | J49: (012) 315 5912 | K49: Patrick.Mbedzi@treasury.gov.za | L49: 1 | M49: 1 | N49: 3A | O49: PE43 | P49: 43 | Q49: GeoScience | R49: 3 | S49: 202829 | AC49: Forestry, Fisheries and the Environment | AD49: Cross-Border Road Transport Agency | BC49: Communication and information related | BX49: Forestry, Fisheries and the Environment | BY49: Cross-Border Road Transport Agency | CI49: Forestry, Fisheries and the Environment | CK49: 0 | CL49: Portia Thebe | CM49: portia.thebe@treasury.gov.za | CN49: (012) 315 5855
B50: Public non-financial corporation | C50: Health | D50: Council for Medical Schemes | E50: Council for Medical Schemes | F50: Refiloe Thokoa | G50: (012) 395 6559 | H50: Refiloe.Thokoa@treasury.gov.za | I50: Amanda Mlambo | J50: 0 | K50: Amanda.Mlambo@treasury.gov.za | L50: 1 | M50: 1 | N50: 3A | O50: PE24 | P50: 24 | Q50: CMS | R50: 3 | S50: 202829 | AC50: Human Settlements | AD50: Culture, Arts, Tourism, Hospitality and Sports Education and Training Authority | BC50: Compliance officers | BX50: Human Settlements | BY50: Culture, Arts, Tourism, Hospitality and Sports Education and Training Authority | CI50: Human Settlements | CK50: 0 | CL50: Noxolo Madela | CM50: Noxolo.Madela@treasury.gov.za | CN50: (012) 315 5689
B51: Extra-Budgetary Institution | C51: Science, Technology and Innovation | D51: Council for Scientific and Industrial Research | E51: Council for Scientific and Industrial Research | F51: Ashley Ramasimu | G51: (012) 315 5166 | H51: Ashley.ramasimu@treasury.gov.za | I51: Jabulane Mashele | J51: (012) 395 6560 | K51: Jabulane.Mashele@treasury.gov.za | L51: 1 | M51: 1 | N51: 3B | O51: PE29 | P51: 29 | Q51: CSIR | R51: 3 | S51: 202829 | AC51: Mineral Resources and Energy | AD51: Die Afrikaanse Taal Museum | BC51: Consultants | BX51: Mineral Resources and Energy | BY51: Die Afrikaanse Taal Museum | CI51: Mineral Resources and Energy | CK51: 1 | CL51: Thabiso Molewa | CM51: Thabiso.molewa@treasury.gov.za | CN51: (012) 315 5166
B52: Extra-Budgetary Institution | C52: Public Works and Infrastructure | D52: Council for the Built Environment | E52: Council for the Built Environment | F52: George Tembo | G52: (012) 315 5514 | H52: George.Tembo@treasury.gov.za | I52: Patrick Mbedzi | J52: (012) 315 5912 | K52: Patrick.Mbedzi@treasury.gov.za | L52: 1 | M52: 1 | N52: 3A | O52: PE14 | P52: 14 | Q52: CBE | R52: 3 | S52: 202829 | AC52: Science, Technology and Innovation | AD52: Ditsong: Museums of South Africa | BC52: COO (Chief Operating Officer) | BX52: Science, Technology and Innovation | BY52: Ditsong: Museums of South Africa | CI52: Science, Technology and Innovation | CK52: 1 | CL52: Tumelo Movare | CM52: Tumelo.Movare@treasury.gov.za | CN52: (012) 315 5279
B53: Extra-Budgetary Institution | C53: Higher Education | D53: Council on Higher Education | E53: Council on Higher Education | F53: Barileng Khumisi | G53: (012) 406 9069 | H53: Barileng.Khumisi@treasury.gov.za | I53: Lionel Botsane | J53: (012) 315 5749 | K53: Lionel.Botsane@treasury.gov.za | L53: 1 | M53: 1 | N53: 3A | O53: PE20 | P53: 20 | Q53: CHE | R53: 3 | S53: 202829 | AC53: Small Business Development | AD53: Driving License Card Account | BC53: Council members | BX53: Small Business Development | BY53: Driving License Card Account | CI53: Small Business Development | CK53: 0 | CL53: Nkhumeleni Munyai | CM53: Nkhumeleni.Munyai@treasury.gov.za | CN53: (012) 315 5636
B54: Extra-Budgetary Institution | C54: Transport | D54: Cross-Border Road Transport Agency | E54: Cross-Border Road Transport Agency | F54: Luyolo Ntlangula | G54: (012) 315 5571 | H54: Luyolo.Ntlangula@treasury.gov.za | I54: Samson Mlambo | J54: 0 | K54: Samson.Mlambo@treasury.gov.za | L54: 1 | M54: 1 | N54: 3A | O54: PE15 | P54: 15 | Q54: CBRTA | R54: 3 | S54: 202829 | AC54: Sport, Arts and Culture | AD54: Education, Training and Development Practices SETA | BC54: Data analyst | BX54: Sport, Arts and Culture | BY54: Education, Training and Development Practices SETA | CI54: Sport, Arts and Culture | CK54: 0 | CL54: Resego Tekanyo | CM54: Resego.Tekanyo@treasury.gov.za | CN54: (012) 395 6786
B55: Public non-financial corporation | C55: Higher Education | D55: Culture, Arts, Tourism, Hospitality and Sports Education and Training Authority | E55: Culture, Arts, Tourism, Hospitality and Sports Education and Training Authority | F55: Barileng Khumisi | G55: (012) 406 9069 | H55: Barileng.Khumisi@treasury.gov.za | I55: Lionel Botsane | J55: (012) 315 5749 | K55: Lionel.Botsane@treasury.gov.za | L55: 2 | M55: 3 | N55: 3A | O55: PE206 | P55: 206 | Q55: CATHSETA | R55: 3 | S55: 202829 | AC55: Tourism | AD55: Energy and Water Sector Education and Training Authority | BC55: Data capturer | BX55: Tourism | BY55: Energy and Water Sector Education and Training Authority | CI55: Tourism | CK55: 0 | CL55: Nkhumeleni Munyai | CM55: Nkhumeleni.Munyai@treasury.gov.za | CN55: (012) 315 5636
B56: Financial corporation | C56: Defence | D56: DENEL (Pty) Ltd | E56: DENEL (Pty) Ltd | F56: Lesiba Ledwaba | G56: (012) 315 5586 | H56: Lesiba.Ledwaba@treasury.gov.za | I56: Mpho Ntshole | J56: 0 | K56: Mpho.Ntshole@treasury.gov.za | L56: 1 | M56: 3 | N56: 2 | O56: PE32 | P56: 32 | Q56: DENEL | R56: 3 | S56: 202829 | AC56: Trade, Industry and Competition | AD56: Estate Agency Affairs Board | BC56: Deeds officer | BX56: Trade, Industry and Competition | BY56: Estate Agency Affairs Board | CI56: Trade, Industry and Competition | CK56: 0 | CL56: Sesethu Mazoza | CM56: Sesethu.Mazoza@Treasury.gov.za | CN56: (012) 315 5106
B57: Extra-Budgetary Institution | C57: National Treasury | D57: Development Bank of Southern Africa | E57: Development Bank of Southern Africa | F57: Mokgatla Tema | G57: (012) 315 5948 | H57: Mokgatla.Tema@treasury.gov.za | I57: Patrick Mbedzi | J57: (012) 315 5912 | K57: Patrick.Mbedzi@treasury.gov.za | L57: 3 | M57: 3 | N57: 2 | O57: PE30 | P57: 30 | Q57: DBSA | R57: 3 | S57: 202829 | AC57: Transport | AD57: Estate Agents Fidelity Fund | BC57: Distribution offer | BX57: Transport | BY57: Estate Agents Fidelity Fund | CI57: Transport | CK57: 0 | CL57: Rhoda Marais | CM57: Rhoda.Marais@treasury.gov.za | CN57: (012) 315 5906
B58: Extra-Budgetary Institution | C58: Sport, Arts and Culture | D58: Afrikaans Language Museum and Language Monument | E58: Die Afrikaanse Taal Museum | F58: Dennis Machobani | G58: (012) 315 5312 | H58: Dennis.Machobani@treasury.gov.za | I58: Vuyo Ngqukumba | J58: (012) 315 5760 | K58: Vuyo.Ngqukumba@treasury.gov.za | L58: 1 | M58: 3 | N58: 3A | O58: PE213 | P58: 213 | Q58: TaalMuseum | R58: 3 | S58: 202829 | AC58: Water and Sanitation | AD58: Fibre Processing Manufacturing Sector Education and Training Authority | BC58: Draught and related trades | BX58: Water and Sanitation | BY58: Fibre Processing Manufacturing Sector Education and Training Authority | CI58: Water and Sanitation | CK58: 1 | CL58: Nkosana Mphafa | CM58: Nkosana.Mphafa@treasury.gov.za | CN58: (012) 315 5119
B59: Extra-Budgetary Institution | C59: Sport, Arts and Culture | D59: Ditsong: Museums of South Africa | E59: Ditsong: Museums of South Africa | F59: Dennis Machobani | G59: (012) 315 5312 | H59: Dennis.Machobani@treasury.gov.za | I59: Vuyo Ngqukumba | J59: (012) 315 5760 | K59: Vuyo.Ngqukumba@treasury.gov.za | L59: 1 | M59: 3 | N59: 3A | O59: PE193 | P59: 193 | Q59: DitsongM | R59: 3 | S59: 202829 | AC59: Centre for Public Service Innovation | AD59: Film and Publication Board | BC59: Drivers | BX59: Centre for Public Service Innovation | BY59: Film and Publication Board | CI59: Centre for Public Service Innovation | CK59: 0 | CL59: Nkosana Mphafa | CM59: Nkosana.Mphafa@treasury.gov.za | CN59: (012) 315 5119
B60: Extra-Budgetary Institution | C60: Transport | D60: Driving License Card Account | E60: Driving License Card Account | F60: Luyolo Ntlangula | G60: (012) 315 5571 | H60: Luyolo.Ntlangula@treasury.gov.za | I60: Samson Mlambo | J60: 0 | K60: Samson.Mlambo@treasury.gov.za | L60: 1 | M60: 1 | N60: Not listed | O60: PE162 | P60: 162 | Q60: DLCA | R60: 3 | S60: 202829 | AD60: Financial and Accounting Services SETA | BC60: Earth moving and related plant operator | BY60: Financial and Accounting Services SETA | CK60: 0 | CL60: Resego Tekanyo | CM60: Resego.Tekanyo@treasury.gov.za | CN60: (012) 395 6786
B61: 0 | C61: Dummy | D61: Dummy | E61: Dummy | F61: Dummy | G61: Dummy | H61: 0 | I61: 0 | J61: 0 | K61: 0 | L61: 0 | M61: 0 | N61: 0 | O61: 0 | P61: 0 | Q61: 0 | R61: 0 | S61: 202829 | AD61: Financial Intelligence Centre | BC61: Earth science and related professionals | BY61: Financial Intelligence Centre | CK61: 0 | CL61: Dummy | CM61: Dummy | CN61: Dummy
B62: Extra-Budgetary Institution | C62: Higher Education | D62: Education, Training and Development Practices SETA | E62: Education, Training and Development Practices SETA | F62: Barileng Khumisi | G62: (012) 406 9069 | H62: Barileng.Khumisi@treasury.gov.za | I62: Lionel Botsane | J62: (012) 315 5749 | K62: Lionel.Botsane@treasury.gov.za | L62: 2 | M62: 3 | N62: 3A | O62: PE168 | P62: 168 | Q62: ETDP | R62: 3 | S62: 202829 | AD62: Financial Sector Conduct Authority | BC62: Economists | BY62: Financial Sector Conduct Authority | CK62: 0 | CL62: Nkhumeleni Munyai | CM62: Nkhumeleni.Munyai@treasury.gov.za | CN62: (012) 315 5636
B63: Public non-financial corporation | C63: Higher Education | D63: Energy and Water Sector Education and Training Authority | E63: Energy and Water Sector Education and Training Authority | F63: Barileng Khumisi | G63: (012) 406 9069 | H63: Barileng.Khumisi@treasury.gov.za | I63: Lionel Botsane | J63: (012) 315 5749 | K63: Lionel.Botsane@treasury.gov.za | L63: 2 | M63: 3 | N63: 3A | O63: PE167 | P63: 167 | Q63: EWSETA | R63: 3 | S63: 202829 | AD63: Food and Beverages Manufacturing Industry | BC63: Editor | BY63: Food and Beverages Manufacturing Industry | CK63: 0 | CL63: Nkhumeleni Munyai | CM63: Nkhumeleni.Munyai@treasury.gov.za | CN63: (012) 315 5636
B64: Financial corporation | C64: Electricity and Energy | D64: ESKOM | E64: ESKOM | F64: Nomagugu Madikane | G64: (012) 315 5312 | H64: Nomagugu.Madikane@treasury.gov.za | I64: Mntazi Msiza | J64: (012) 315 5876 | K64: Mntazi.Msiza@treasury.gov.za | L64: 1 | M64: 3 | N64: 2 | O64: PE164 | P64: 164 | Q64: ESKOM | R64: 3 | S64: 202829 | AD64: Freedom Park Trust | BC64: Education Officer | BY64: Freedom Park Trust | CK64: 0 | CL64: Nomagugu Maikane | CM64: Nomagugu.Madikane@treasury.gov.za | CN64: (012) 315 5312
B65: Extra-Budgetary Institution | C65: Trade, Industry and Competition | D65: Export Credit Insurance Corporation of South Africa Limited | E65: Export Credit Insurance Corporation of South Africa Limited | F65: Rudzani Sikhwari | G65: (012) 315 5823 | H65: Rudzani.Sikhwari@treasury.gov.za | I65: Mpho Ntshole | J65: 0 | K65: Mpho.Ntshole@treasury.gov.za | L65: 3 | M65: 3 | N65: 3B | O65: PE34 | P65: 34 | Q65: ECIC | R65: 3 | S65: 202829 | AD65: Government Pensions Administration Agency | BC65: Emergency service related | BY65: Government Pensions Administration Agency | CK65: 0 | CL65: Phumelele Gulukunqu | CM65: Phumelele.Gulukunqu@Treasury.gov.za | CN65: (012) 315 5539
B66: Extra-Budgetary Institution | C66: Higher Education | D66: Fibre Processing Manufacturing Sector Education and Training Authority | E66: Fibre Processing Manufacturing Sector Education and Training Authority | F66: Barileng Khumisi | G66: (012) 406 9069 | H66: Barileng.Khumisi@treasury.gov.za | I66: Lionel Botsane | J66: (012) 315 5749 | K66: Lionel.Botsane@treasury.gov.za | L66: 2 | M66: 3 | N66: 3A | O66: PE237 | P66: 237 | Q66: FPMSETA | R66: 3 | S66: 202829 | AD66: Government Printing Works | BC66: Engineers and related professionals | BY66: Government Printing Works | CK66: 0 | CL66: Nkhumeleni Munyai | CM66: Nkhumeleni.Munyai@treasury.gov.za | CN66: (012) 315 5636
B67: Extra-Budgetary Institution | C67: Communications and Digital Technologies | D67: Film and Publication Board | E67: Film and Publication Board | F67: Rezah Atcha | G67: (012) 315 5287 | H67: Rezah.Atcha@treasury.gov.za | I67: Mntazi Msiza | J67: (012) 315 5876 | K67: Mntazi.Msiza@treasury.gov.za | L67: 1 | M67: 1 | N67: 3A | O67: PE40 | P67: 40 | Q67: FPB | R67: 3 | S67: 202829 | AD67: Government Technical Advisory Centre | BC67: Examiners | BY67: Government Technical Advisory Centre | CK67: 0 | CL67: Keitumetse Motshegwe | CM67: Keitumetse.Motshegwe@treasury.gov.za | CN67: (012) 395 6750
B68: Extra-Budgetary Institution | C68: Higher Education | D68: Financial and Accounting Services SETA | E68: Financial and Accounting Services SETA | F68: Barileng Khumisi | G68: (012) 406 9069 | H68: Barileng.Khumisi@treasury.gov.za | I68: Lionel Botsane | J68: (012) 315 5749 | K68: Lionel.Botsane@treasury.gov.za | L68: 2 | M68: 3 | N68: 3A | O68: PE169 | P68: 169 | Q68: FASSETA | R68: 3 | S68: 202829 | AD68: Health and Welfare Sector Education and Training Authority | BC68: Executive assistant | BY68: Health and Welfare Sector Education and Training Authority | CK68: 0 | CL68: Nkhumeleni Munyai | CM68: Nkhumeleni.Munyai@treasury.gov.za | CN68: (012) 315 5636
B69: Extra-Budgetary Institution | C69: National Treasury | D69: Financial Intelligence Centre | E69: Financial Intelligence Centre | F69: Mokgatla Tema | G69: (012) 315 5948 | H69: Mokgatla.Tema@treasury.gov.za | I69: Patrick Mbedzi | J69: (012) 315 5912 | K69: Patrick.Mbedzi@treasury.gov.za | L69: 1 | M69: 1 | N69: 3A | O69: PE39 | P69: 39 | Q69: FIC | R69: 3 | S69: 202829 | AD69: Housing Development Agency | BC69: Executive Director | BY69: Housing Development Agency | CK69: 0 | CL69: Rhoda Marais | CM69: Rhoda.Marais@treasury.gov.za | CN69: (012) 315 5906
B70: Extra-Budgetary Institution | C70: National Treasury | D70: Financial Sector Conduct Authority | E70: Financial Sector Conduct Authority | F70: Mokgatla Tema | G70: (012) 315 5948 | H70: Mokgatla.Tema@treasury.gov.za | I70: Patrick Mbedzi | J70: (012) 315 5912 | K70: Patrick.Mbedzi@treasury.gov.za | L70: 1 | M70: 1 | N70: 3A | O70: PE249 | P70: 249 | Q70: FSCA | R70: 3 | S70: 202829 | AD70: Human Sciences Research Council | BC70: Executives (Exco Members) | BY70: Human Sciences Research Council | CK70: 0 | CL70: Rhoda Marais | CM70: Rhoda.Marais@treasury.gov.za | CN70: (012) 315 5906
B71: Extra-Budgetary Institution | C71: Higher Education | D71: Food and Beverages Manufacturing Industry | E71: Food and Beverages Manufacturing Industry | F71: Barileng Khumisi | G71: (012) 406 9069 | H71: Barileng.Khumisi@treasury.gov.za | I71: Lionel Botsane | J71: (012) 315 5749 | K71: Lionel.Botsane@treasury.gov.za | L71: 2 | M71: 3 | N71: 3A | O71: PE171 | P71: 171 | Q71: FoodBev | R71: 3 | S71: 202829 | AD71: Independent Development Trust | BC71: Facilities Officer | BY71: Independent Development Trust | CK71: 0 | CL71: Nkhumeleni Munyai | CM71: Nkhumeleni.Munyai@treasury.gov.za | CN71: (012) 315 5636
B72: Extra-Budgetary Institution | C72: Sport, Arts and Culture | D72: Freedom Park Trust | E72: Freedom Park Trust | F72: Dennis Machobani | G72: (012) 315 5312 | H72: Dennis.Machobani@treasury.gov.za | I72: Vuyo Ngqukumba | J72: (012) 315 5760 | K72: Vuyo.Ngqukumba@treasury.gov.za | L72: 1 | M72: 3 | N72: 3A | O72: PE41 | P72: 41 | Q72: FPT | R72: 3 | S72: 202829 | AD72: Independent Regulatory Board for Auditors | BC72: Financial and related professionals | BY72: Independent Regulatory Board for Auditors | CK72: 0 | CL72: Nkosana Mphafa | CM72: Nkosana.Mphafa@treasury.gov.za | CN72: (012) 315 5119
B73: Extra-Budgetary Institution | C73: National Treasury | D73: Government Pensions Administration Agency | E73: Government Pensions Administration Agency | F73: Mokgatla Tema | G73: (012) 315 5948 | H73: Mokgatla.Tema@treasury.gov.za | I73: Patrick Mbedzi | J73: (012) 315 5912 | K73: Patrick.Mbedzi@treasury.gov.za | L73: 1 | M73: 1 | N73: Not listed | O73: PE61 | P73: 61 | Q73: GPAA | R73: 1 | S73: 202829 | AD73: Ingonyama Trust Board | BC73: Geography and environmental sciences related | BY73: Ingonyama Trust Board | CK73: 0 | CL73: Rhoda Marais | CM73: Rhoda.Marais@treasury.gov.za | CN73: (012) 315 5906
B74: Extra-Budgetary Institution | C74: Home Affairs | D74: Government Printing Works | E74: Government Printing Works | F74: Mokgatla Tema | G74: (012) 315 5948 | H74: Mokgatla.Tema@treasury.gov.za | I74: Amanda Mlambo | J74: 0 | K74: Amanda.Mlambo@treasury.gov.za | L74: 1 | M74: 1 | N74: Not listed | O74: PE44 | P74: 44 | Q74: GPW | R74: 1 | S74: 202829 | AD74: Inkomati-Usuthu Catchment Management Agency | BC74: Health related | BY74: Inkomati-Usuthu Catchment Management Agency | CK74: 0 | CL74: Charlote Mtubu | CM74: Charlotte.Mntubu@treasury.gov.za | CN74: (012) 315 5800
B75: Extra-Budgetary Institution | C75: National Treasury | D75: Government Technical Advisory Centre | E75: Government Technical Advisory Centre | F75: Mokgatla Tema | G75: (012) 315 5948 | H75: Mokgatla.Tema@treasury.gov.za | I75: Patrick Mbedzi | J75: (012) 315 5912 | K75: Patrick.Mbedzi@treasury.gov.za | L75: 1 | M75: 1 | N75: Not listed | O75: PE245 | P75: 245 | Q75: GTAC | R75: 3 | S75: 202829 | AD75: Insurance Sector Education and Training Authority | BC75: Human resources and related professionals | BY75: Insurance Sector Education and Training Authority | CK75: 0 | CL75: Rhoda Marais | CM75: Rhoda.Marais@treasury.gov.za | CN75: (012) 315 5906
B76: Extra-Budgetary Institution | C76: Higher Education | D76: Health and Welfare Sector Education and Training Authority | E76: Health and Welfare Sector Education and Training Authority | F76: Barileng Khumisi | G76: (012) 406 9069 | H76: Barileng.Khumisi@treasury.gov.za | I76: Lionel Botsane | J76: (012) 315 5749 | K76: Lionel.Botsane@treasury.gov.za | L76: 2 | M76: 3 | N76: 3A | O76: PE172 | P76: 172 | Q76: HWSETA | R76: 3 | S76: 202829 | AD76: International Trade Administration Commission | BC76: ICT (Information and Communications Technology) | BY76: International Trade Administration Commission | CK76: 0 | CL76: Nkhumeleni Munyai | CM76: Nkhumeleni.Munyai@treasury.gov.za | CN76: (012) 315 5636
B77: Extra-Budgetary Institution | C77: Human Settlements | D77: Housing Development Agency | E77: Housing Development Agency | F77: Claudette Mkhwanazi | G77: (012) 315 6535 | H77: Claudette.Mkhwanazi@treasury.gov.za | I77: Mntazi Msiza | J77: (012) 315 5876 | K77: Mntazi.Msiza@treasury.gov.za | L77: 1 | M77: 1 | N77: 3A | O77: PE139 | P77: 139 | Q77: HDA | R77: 3 | S77: 202829 | AD77: iSimangaliso Wetland Park | BC77: Inspectors/Investigators | BY77: iSimangaliso Wetland Park | CK77: 0 | CL77: Claudette Mkhwanazi | CM77: Claudette.Mkhwanazi@treasury.gov.za | CN77: (012) 315 6535
B78: Extra-Budgetary Institution | C78: Science, Technology and Innovation | D78: Human Sciences Research Council | E78: Human Sciences Research Council | F78: Ashley Ramasimu | G78: (012) 315 5166 | H78: Ashley.ramasimu@treasury.gov.za | I78: Jabulane Mashele | J78: (012) 395 6560 | K78: Jabulane.Mashele@treasury.gov.za | L78: 1 | M78: 1 | N78: 3A | O78: PE46 | P78: 46 | Q78: HSRC | R78: 1 | S78: 202829 | AD78: Iziko Museums of Cape Town | BC78: Interns/Trainees | BY78: Iziko Museums of Cape Town | CK78: 0 | CL78: Thabiso Molewa | CM78: Thabiso.molewa@treasury.gov.za | CN78: (012) 315 5166
B79: Extra-Budgetary Institution | C79: Public Works and Infrastructure | D79: The Independent Development Trust | E79: Independent Development Trust | F79: George Tembo | G79: (012) 315 5514 | H79: George.Tembo@treasury.gov.za | I79: Patrick Mbedzi | J79: (012) 315 5912 | K79: Patrick.Mbedzi@treasury.gov.za | L79: 3 | M79: 1 | N79: 2 | O79: PE49 | P79: 49 | Q79: IDT | R79: 3 | S79: 202829 | AD79: Judicial Inspectorate for Correctional Services | BC79: Judges | BY79: Judicial Inspectorate for Correctional Services | CK79: 1 | CL79: Tumelo Movare | CM79: Tumelo.Movare@treasury.gov.za | CN79: (012) 315 5279
B80: Financial corporation | C80: National Treasury | D80: Independent Regulatory Board for Auditors | E80: Independent Regulatory Board for Auditors | F80: Mokgatla Tema | G80: (012) 315 5948 | H80: Mokgatla.Tema@treasury.gov.za | I80: Patrick Mbedzi | J80: (012) 315 5912 | K80: Patrick.Mbedzi@treasury.gov.za | L80: 1 | M80: 1 | N80: 3A | O80: PE53 | P80: 53 | Q80: IRBA | R80: 3 | S80: 202829 | AD80: KwaZulu-Natal Museum | BC80: Labour related | BY80: KwaZulu-Natal Museum | CK80: 0 | CL80: Rhoda Marais | CM80: Rhoda.Marais@treasury.gov.za | CN80: (012) 315 5906
B81: Financial corporation | C81: Trade, Industry and Competition | D81: Industrial Development Corporation of South Africa, Limited | E81: Industrial Development Corporation of South Africa Limited | F81: Rudzani Sikhwari | G81: (012) 315 5823 | H81: Rudzani.Sikhwari@treasury.gov.za | I81: Mpho Ntshole | J81: 0 | K81: Mpho.Ntshole@treasury.gov.za | L81: 3 | M81: 3 | N81: 2 | O81: PE48 | P81: 48 | Q81: IDC | R81: 3 | S81: 202829 | AD81: Legal Aid South Africa | BC81: Language practitioners interpreters & other commun | BY81: Legal Aid South Africa | CK81: 0 | CL81: Phumelele Gulukunqu | CM81: Phumelele.Gulukunqu@Treasury.gov.za | CN81: (012) 315 5539
B82: Extra-Budgetary Institution | C82: Justice and Constitutional Development | D82: Information Regulator | E82: Information Regulator | F82: Siphamandla Khumalo | G82: (012) 315 5759 | H82: Siphamandla.Khumalo@treasury.gov.za | I82: Nymrot Sholoko | J82: 0 | K82: Nymrot.Sholoko@treasury.gov.za | L82: 1 | M82: 2 | N82: 3A | O82: PE260 | P82: 260 | Q82: IR | R82: 3 | S82: 202829 | AD82: Lepelle Northern Water | BC82: Lecturer | BY82: Lepelle Northern Water | CK82: 1 | CL82: Siphamandla khumalo | CM82: Siphamandla.Khumalo@treasury.gov.za | CN82: (012) 315 5759
B83: Extra-Budgetary Institution | C83: Land Reform and Rural Development | D83: KwaZulu-Natal Ingonyama Trust Board | E83: Ingonyama Trust Board | F83: Bothwell Deka | G83: (012) 395 6786 | H83: Bothwell.Deka@treasury.gov.za | I83: Jabulane Mashele | J83: (012) 395 6560 | K83: Jabulane.Mashele@treasury.gov.za | L83: 1 | M83: 1 | N83: 3A | O83: PE52 | P83: 52 | Q83: ITB | R83: 3 | S83: 202829 | AD83: Local Government Education and Training Authority | BC83: Legal related | BY83: Local Government Education and Training Authority | CK83: 0 | CL83: Nico Likhethe | CM83: Nico.Likhethe@treasury.gov.za | CN83: (012) 315 5558
B84: Extra-Budgetary Institution | C84: Water and Sanitation | D84: Inkomati-Usuthu Catchment Management Agency | E84: Inkomati-Usuthu Catchment Management Agency | F84: Bongani Daka | G84: (012) 315 5586 | H84: Bongani.Daka@treasury.gov.za | I84: Nymrot Sholoko | J84: 0 | K84: Nymrot.Sholoko@treasury.gov.za | L84: 1 | M84: 1 | N84: 3A | O84: PE156 | P84: 156 | Q84: IUCMA | R84: 3 | S84: 202829 | AD84: Luthuli Museum | BC84: Librarians and related | BY84: Luthuli Museum | CK84: 0 | CL84: Iqbal Mahomed Alli | CM84: Iqbal.Mahomedalli@treasury.gov.za | CN84: (012) 315 5809
B85: Extra-Budgetary Institution | C85: Higher Education | D85: Insurance Sector Education and Training Authority | E85: Insurance Sector Education and Training Authority | F85: Barileng Khumisi | G85: (012) 406 9069 | H85: Barileng.Khumisi@treasury.gov.za | I85: Lionel Botsane | J85: (012) 315 5749 | K85: Lionel.Botsane@treasury.gov.za | L85: 2 | M85: 3 | N85: 3A | O85: PE174 | P85: 174 | Q85: ISETA | R85: 3 | S85: 202829 | AD85: Magalies Water | BC85: Life sciences related | BY85: Magalies Water | CK85: 0 | CL85: Nkhumeleni Munyai | CM85: Nkhumeleni.Munyai@treasury.gov.za | CN85: (012) 315 5636
B86: Extra-Budgetary Institution | C86: Trade, Industry and Competition | D86: International Trade Administration Commission | E86: International Trade Administration Commission | F86: Rudzani Sikhwari | G86: (012) 315 5823 | H86: Rudzani.Sikhwari@treasury.gov.za | I86: Mpho Ntshole | J86: 0 | K86: Mpho.Ntshole@treasury.gov.za | L86: 1 | M86: 1 | N86: 3A | O86: PE55 | P86: 55 | Q86: ITAC | R86: 3 | S86: 202829 | AD86: Mandela Bay Theatre Complex | BC86: Marketing related | BY86: Mandela Bay Theatre Complex | CK86: 0 | CL86: Phumelele Gulukunqu | CM86: Phumelele.Gulukunqu@Treasury.gov.za | CN86: (012) 315 5539
B87: Extra-Budgetary Institution | C87: Forestry, Fisheries and the Environment | D87: iSimangaliso Wetland Park Authority | E87: iSimangaliso Wetland Park | F87: Ashley Ramasimu | G87: (012) 315 5585 | H87: Ashley.Ramasimu@treasury.gov.za | I87: Jabulane Mashele | J87: (012) 395 6560 | K87: Jabulane.Mashele@treasury.gov.za | L87: 1 | M87: 1 | N87: 3A | O87: PE54 | P87: 54 | Q87: ISIMANGALISO | R87: 3 | S87: 202829 | AD87: Manufacturing, Engineering and Related Services Education and Training Authority | BC87: Mathematicians and related professionals | BY87: Manufacturing, Engineering and Related Services Education and Training Authority | CK87: 0 | CL87: Jabulani Mahlangu | CM87: Jabulani.Mahlangu@treasury.gov.za | CN87: (012) 315 5612
B88: Extra-Budgetary Institution | C88: Sport, Arts and Culture | D88: Iziko Museums of South Africa | E88: Iziko Museums of Cape Town | F88: Dennis Machobani | G88: (012) 315 5312 | H88: Dennis.Machobani@treasury.gov.za | I88: Vuyo Ngqukumba | J88: (012) 315 5760 | K88: Vuyo.Ngqukumba@treasury.gov.za | L88: 1 | M88: 3 | N88: 3A | O88: PE176 | P88: 176 | Q88: Iziko | R88: 3 | S88: 202829 | AD88: Marine Living Resources Fund | BC88: Medical officer | BY88: Marine Living Resources Fund | CK88: 0 | CL88: Nkosana Mphafa | CM88: Nkosana.Mphafa@treasury.gov.za | CN88: (012) 315 5119
B89: Financial corporation | C89: Sport, Arts and Culture | D89: Natal Museum | E89: KwaZulu-Natal Museum | F89: Dennis Machobani | G89: (012) 315 5312 | H89: Dennis.Machobani@treasury.gov.za | I89: Vuyo Ngqukumba | J89: (012) 315 5760 | K89: Vuyo.Ngqukumba@treasury.gov.za | L89: 1 | M89: 3 | N89: 3A | O89: PE188 | P89: 188 | Q89: Kwa-ZuluM | R89: 3 | S89: 202829 | AD89: Market Theatre Foundation | BC89: Medical related | BY89: Market Theatre Foundation | CK89: 0 | CL89: Nkosana Mphafa | CM89: Nkosana.Mphafa@treasury.gov.za | CN89: (012) 315 5119
B90: Extra-Budgetary Institution | C90: National Treasury | D90: Land and Agricultural Development Bank of South Africa | E90: Land and Agricultural Development Bank of South Africa | F90: Mokgatla Tema | G90: (012) 315 5948 | H90: Mokgatla.Tema@treasury.gov.za | I90: Patrick Mbedzi | J90: (012) 315 5912 | K90: Patrick.Mbedzi@treasury.gov.za | L90: 3 | M90: 3 | N90: 2 | O90: PE59 | P90: 59 | Q90: Land Bank | R90: 3 | S90: 202829 | AD90: Media Development Diversity Agency | BC90: Messengers | BY90: Media Development Diversity Agency | CK90: 0 | CL90: Rhoda Marais | CM90: Rhoda.Marais@treasury.gov.za | CN90: (012) 315 5906
B91: Public non-financial corporation | C91: Justice and Constitutional Development | D91: Legal Aid South Africa | E91: Legal Aid South Africa | F91: Werner Krause | G91: (012) 315 5211 | H91: Werner.Krause@treasury.gov.za | I91: Nymrot Sholoko | J91: 0 | K91: Nymrot.Sholoko@treasury.gov.za | L91: 1 | M91: 1 | N91: 3A | O91: PE58 | P91: 58 | Q91: LASA | R91: 3 | S91: 202829 | AD91: Media, Information and Communication Technologies Sector Education and Training Authority | BC91: Ombudsman | BY91: Media, Information and Communication Technologies Sector Education and Training Authority | CK91: 1 | CL91: Werner Krause | CM91: Werner.Krause@treasury.gov.za | CN91: (012) 315 5211
B92: Extra-Budgetary Institution | C92: Water and Sanitation | D92: Lepelle Northern Water Board | E92: Lepelle Northern Water | F92: Bongani Daka | G92: (012) 315 5586 | H92: Bongani.Daka@treasury.gov.za | I92: Nymrot Sholoko | J92: 0 | K92: Nymrot.Sholoko@treasury.gov.za | L92: 1 | M92: 3 | N92: 3B | O92: PE177 | P92: 177 | Q92: Lepelle | R92: 3 | S92: 202829 | AD92: Mhlathuze Water | BC92: Pathologist | BY92: Mhlathuze Water | CK92: 0 | CL92: Iqbal Mahomed Alli | CM92: Iqbal.Mahomedalli@treasury.gov.za | CN92: (012) 315 5809
B93: Extra-Budgetary Institution | C93: Water and Sanitation | D93: Limpopo-Olifants Catchment Management Agency | E93: Limpopo-Olifants Catchment Management Agency | F93: Bongani Daka | G93: (012) 315 5586 | H93: Bongani.Daka@treasury.gov.za | I93: Nymrot Sholoko | J93: 0 | K93: Nymrot.Sholoko@treasury.gov.za | L93: 1 | M93: 2 | N93: 3A | O93: PE259 | P93: 259 | Q93: LOMCA | R93: 3 | S93: 202829 | AD93: Mine Health and Safety Council | BC93: Personal Assistants | BY93: Mine Health and Safety Council | CK93: 0 | CL93: Iqbal Mahomed Alli | CM93: Iqbal.Mahomedalli@treasury.gov.za | CN93: (012) 315 5809
B94: Extra-Budgetary Institution | C94: Higher Education | D94: Local Government Education and Training Authority | E94: Local Government Education and Training Authority | F94: Barileng Khumisi | G94: (012) 406 9069 | H94: Barileng.Khumisi@treasury.gov.za | I94: Lionel Botsane | J94: (012) 315 5749 | K94: Lionel.Botsane@treasury.gov.za | L94: 2 | M94: 3 | N94: 3A | O94: PE178 | P94: 178 | Q94: LGSETA | R94: 3 | S94: 202829 | AD94: Mining Qualifications Authority | BC94: Pharmacists | BY94: Mining Qualifications Authority | CK94: 0 | CL94: Nkhumeleni Munyai | CM94: Nkhumeleni.Munyai@treasury.gov.za | CN94: (012) 315 5636
B95: Public non-financial corporation | C95: Sport, Arts and Culture | D95: Luthuli Museum | E95: Luthuli Museum | F95: Dennis Machobani | G95: (012) 315 5312 | H95: Dennis.Machobani@treasury.gov.za | I95: Vuyo Ngqukumba | J95: (012) 315 5760 | K95: Vuyo.Ngqukumba@treasury.gov.za | L95: 1 | M95: 3 | N95: 3A | O95: PE180 | P95: 180 | Q95: LuthuliM | R95: 3 | S95: 202829 | AD95: Mintek | BC95: Physicists | BY95: Mintek | CK95: 0 | CL95: Nkosana Mphafa | CM95: Nkosana.Mphafa@treasury.gov.za | CN95: (012) 315 5119
B96: Extra-Budgetary Institution | C96: Water and Sanitation | D96: Magalies Water Board | E96: Magalies Water | F96: Bongani Daka | G96: (012) 315 5586 | H96: Bonangi.Daka@treasury.gov.za | I96: Nymrot Sholoko | J96: 0 | K96: Nymrot.Sholoko@treasury.gov.za | L96: 1 | M96: 3 | N96: 3B | O96: PE181 | P96: 181 | Q96: Magalies | R96: 3 | S96: 202829 | AD96: Municipal Infrastructure Support Agency | BC96: Police | BY96: Municipal Infrastructure Support Agency | CK96: 0 | CL96: Iqbal Mahomed Alli | CM96: Iqbal.Mahomedalli@treasury.gov.za | CN96: (012) 315 5809
B97: Extra-Budgetary Institution | C97: Sport, Arts and Culture | D97: Mandela Bay Theatre Complex | E97: Mandela Bay Theatre Complex | F97: Dennis Machobani | G97: (012) 315 5312 | H97: Dennis.Machobani@treasury.gov.za | I97: Samson Mlambo | J97: 0 | K97: Samson.Mlambo@treasury.gov.za | L97: 1 | M97: 3 | N97: Not listed | O97: PE251 | P97: 251 | Q97: MBTC | R97: 3 | S97: 202829 | AD97: Mzimvubu-Tsitsikamma Catchment Management Agency | BC97: Programmers and related professionals | BY97: Mzimvubu-Tsitsikamma Catchment Management Agency | CK97: 0 | CL97: Mabele Mdhluli | CM97: Mabele.Mdhluli@treasury.gov.za | CN97: (012) 315 5573
B98: Extra-Budgetary Institution | C98: Higher Education | D98: Manufacturing, Engineering and Related Services Education and Training Authority | E98: Manufacturing, Engineering and Related Services Education and Training Authority | F98: Barileng Khumisi | G98: (012) 406 9069 | H98: Barileng.Khumisi@treasury.gov.za | I98: Lionel Botsane | J98: (012) 315 5749 | K98: Lionel.Botsane@treasury.gov.za | L98: 2 | M98: 3 | N98: 3A | O98: PE184 | P98: 184 | Q98: MERSETA | R98: 3 | S98: 202829 | AD98: National Agricultural Marketing Council | BC98: Records management related | BY98: National Agricultural Marketing Council | CK98: 0 | CL98: Nkhumeleni Munyai | CM98: Nkhumeleni.Munyai@treasury.gov.za | CN98: (012) 315 5636
B99: Extra-Budgetary Institution | C99: Forestry, Fisheries and the Environment | D99: Marine Living Resources Fund | E99: Marine Living Resources Fund | F99: Ashley Ramasimu | G99: (012) 315 5585 | H99: Ashley.Ramasimu@treasury.gov.za | I99: Jabulane Mashele | J99: (012) 395 6560 | K99: Jabulane.Mashele@treasury.gov.za | L99: 1 | M99: 1 | N99: 3A | O99: PE66 | P99: 66 | Q99: MLRF | R99: 3 | S99: 202829 | AD99: National Arts Council | BC99: Researchers | BY99: National Arts Council | CK99: 0 | CL99: Jabulani Mahlangu | CM99: Jabulani.Mahlangu@treasury.gov.za | CN99: (012) 315 5612
B100: Extra-Budgetary Institution | C100: Sport, Arts and Culture | D100: Market Theatre Foundation | E100: Market Theatre Foundation | F100: Dennis Machobani | G100: (012) 315 5312 | H100: Dennis.Machobani@treasury.gov.za | I100: Samson Mlambo | J100: 0 | K100: Samson.Mlambo@treasury.gov.za | L100: 1 | M100: 3 | N100: 3A | O100: PE183 | P100: 183 | Q100: Marketh | R100: 3 | S100: 202829 | AD100: National Consumer Commission | BC100: Risk management related | BY100: National Consumer Commission | CK100: 0 | CL100: Mabele Mdhluli | CM100: Mabele.Mdhluli@treasury.gov.za | CN100: (012) 315 5573
B101: Extra-Budgetary Institution | C101: Government Communication and Information System | D101: Media Development Diversity Agency | E101: Media Development Diversity Agency | F101: Viwe Sobudula | G101: (012) 315 5015 | H101: Viwe.Sobudula@treasury.gov.za | I101: Amanda Mlambo | J101: 0 | K101: Amanda.Mlambo@treasury.gov.za | L101: 1 | M101: 1 | N101: 3A | O101: PE63 | P101: 63 | Q101: MDDA | R101: 3 | S101: 202829 | AD101: National Consumer Tribunal | BC101: Safety and security related | BY101: National Consumer Tribunal | CK101: 0 | CL101: Thobeka Mbonambi | CM101: Thobeka.Mbonambi@treasury.gov.za | CN101: (012) 395 6719
B102: Public non-financial corporation | C102: Higher Education | D102: Media, Information and Communication Technologies Sector Education and Training Authority | E102: Media, Information and Communication Technologies Sector Education and Training Authority | F102: Barileng Khumisi | G102: (012) 406 9069 | H102: Barileng.Khumisi@treasury.gov.za | I102: Lionel Botsane | J102: (012) 315 5749 | K102: Lionel.Botsane@treasury.gov.za | L102: 2 | M102: 3 | N102: 3A | O102: PE175 | P102: 175 | Q102: MICTSETTA | R102: 3 | S102: 202829 | AD102: National Credit Regulator | BC102: Sales related | BY102: National Credit Regulator | CK102: 0 | CL102: Nkhumeleni Munyai | CM102: Nkhumeleni.Munyai@treasury.gov.za | CN102: (012) 315 5636
B103: Extra-Budgetary Institution | C103: Water and Sanitation | D103: Mhlathuze Water Board | E103: Mhlathuze Water | F103: Bongani Daka | G103: (012) 315 5586 | H103: Bonangi.Daka@treasury.gov.za | I103: Nymrot Sholoko | J103: 0 | K103: Nymrot.Sholoko@treasury.gov.za | L103: 1 | M103: 3 | N103: 3B | O103: PE185 | P103: 185 | Q103: Mhlathuze | R103: 3 | S103: 202829 | AD103: National Development Agency | BC103: Seamstress | BY103: National Development Agency | CK103: 0 | CL103: Iqbal Mahomed Alli | CM103: Iqbal.Mahomedalli@treasury.gov.za | CN103: (012) 315 5809
B104: Extra-Budgetary Institution | C104: Mineral and Petroleum Resources | D104: Mine Health and Safety Council | E104: Mine Health and Safety Council | F104: Nomagugu Madikane | G104: (012) 315 5312 | H104: Nomagugu.Madikane@treasury.gov.za | I104: Patrick Mbedzi | J104: (012) 315 5912 | K104: Patrick.Mbedzi@treasury.gov.za | L104: 1 | M104: 1 | N104: 3A | O104: PE64 | P104: 64 | Q104: MHSC | R104: 3 | S104: 202829 | AD104: National Economic Development and Labour Council | BC104: Social work and related professionals | BY104: National Economic Development and Labour Council | CK104: 0 | CL104: Portia Thebe | CM104: portia.thebe@treasury.gov.za | CN104: (012) 315 5855
B105: Extra-Budgetary Institution | C105: Health | D105: Mines and Works Compensation Fund | E105: Mines and Works Compensation Fund | F105: Refiloe Thokoa | G105: (012) 395 6559 | H105: Refiloe.Thokoa@treasury.gov.za | I105: Vuyo Ngqukumba | J105: (012) 315 5760 | K105: Vuyo.Ngqukumba@treasury.gov.za | L105: 4 | M105: 4 | N105: Not listed | O105: PE60 | P105: 60 | Q105: Mines and Works Compensation Fund | R105: 3 | S105: 202829 | AD105: National Electronic Media Institute of South Africa | BC105: Statisticians and related professionals | BY105: National Electronic Media Institute of South Africa | CK105: 0 | CL105: Noxolo Madela | CM105: Noxolo.Madela@treasury.gov.za | CN105: (012) 315 5689
B106: Public non-financial corporation | C106: Higher Education | D106: Mining Qualifications Authority | E106: Mining Qualifications Authority | F106: Barileng Khumisi | G106: (012) 406 9069 | H106: Barileng.Khumisi@treasury.gov.za | I106: Lionel Botsane | J106: (012) 315 5749 | K106: Lionel.Botsane@treasury.gov.za | L106: 2 | M106: 3 | N106: 3A | O106: PE186 | P106: 186 | Q106: MQA | R106: 3 | S106: 202829 | AD106: National Empowerment Fund | BC106: Supply chain related | BY106: National Empowerment Fund | CK106: 0 | CL106: Nkhumeleni Munyai | CM106: Nkhumeleni.Munyai@treasury.gov.za | CN106: (012) 315 5636
B107: Extra-Budgetary Institution | C107: Mineral and Petroleum Resources | D107: Council for Mineral Technology | E107: Mintek | F107: Nomagugu Madikane | G107: (012) 315 5312 | H107: Nomagugu.Madikane@treasury.gov.za | I107: Patrick Mbedzi | J107: (012) 315 5912 | K107: Patrick.Mbedzi@treasury.gov.za | L107: 1 | M107: 1 | N107: 3B | O107: PE65 | P107: 65 | Q107: Mintek | R107: 1 | S107: 202829 | AD107: National Energy Regulator of South Africa | BC107: Teachers | BY107: National Energy Regulator of South Africa | CK107: 0 | CL107: Portia Thebe | CM107: portia.thebe@treasury.gov.za | CN107: (012) 315 5855
B108: Extra-Budgetary Institution | C108: Cooperative Governance | D108: Municipal Infrastructure Support Agent | E108: Municipal Infrastructure Support Agency | F108: Bongani Daka | G108: (012) 315 5586 | H108: Bonangi.Daka@treasury.gov.za | I108: Mntazi Msiza | J108: (012) 315 5876 | K108: Mntazi.Msiza@treasury.gov.za | L108: 1 | M108: 1 | N108: Not listed | O108: PE244 | P108: 244 | Q108: MISA | R108: 3 | S108: 202829 | AD108: National Film and Video Foundation | BC108: Technicians | BY108: National Film and Video Foundation | CK108: 0 | CL108: Millicent Mulaudzi | CM108: Millicent.Mulaudzi@treasury.gov.za | CN108: (012) 395 6576
B109: Extra-Budgetary Institution | C109: Water and Sanitation | D109: Mzimvubu-Tsitsikamma Catchment Management Agency | E109: Mzimvubu-Tsitsikamma Catchment Management Agency | F109: Bongani Daka | G109: (012) 315 5586 | H109: Bonangi.Daka@treasury.gov.za | I109: Nymrot Sholoko | J109: 0 | K109: Nymrot.Sholoko@treasury.gov.za | L109: 1 | M109: 2 | N109: 3A | O109: PE256 | P109: 256 | Q109: MTCA | R109: 3 | S109: 202829 | AD109: National Gambling Board of South Africa | BC109: Tour Guide | BY109: National Gambling Board of South Africa | CK109: 0 | CL109: Iqbal Mahomed Alli | CM109: Iqbal.Mahomedalli@treasury.gov.za | CN109: (012) 315 5809
B110: Extra-Budgetary Institution | C110: Agriculture | D110: National Agricultural Marketing Council | E110: National Agricultural Marketing Council | F110: Bothwell Deka | G110: (012) 395 6787 | H110: Bothwell.Deka@treasury.gov.za | I110: Jabulane Mashele | J110: (012) 395 6560 | K110: Jabulane.Mashele@treasury.gov.za | L110: 1 | M110: 1 | N110: 3A | O110: PE68 | P110: 68 | Q110: NAMC | R110: 3 | S110: 202829 | AD110: National Health Laboratory Service | BC110: Training and development related | BY110: National Health Laboratory Service | CK110: 0 | CL110: Nico Likhethe | CM110: Nico.Likhethe@treasury.gov.za | CN110: (012) 315 5558
B111: Extra-Budgetary Institution | C111: Sport, Arts and Culture | D111: National Arts Council | E111: National Arts Council | F111: Dennis Machobani | G111: (012) 315 5312 | H111: Dennis.Machobani@treasury.gov.za | I111: Vuyo Ngqukumba | J111: (012) 315 5760 | K111: Vuyo.Ngqukumba@treasury.gov.za | L111: 1 | M111: 1 | N111: 3A | O111: PE67 | P111: 67 | Q111: NAC | R111: 3 | S111: 202829 | AD111: National Heritage Council | BC111: Tribunal member | BY111: National Heritage Council | CK111: 1 | CL111: Mabele Mdhluli | CM111: Mabele.Mdhluli@treasury.gov.za | CN111: (012) 315 5573
B112: Extra-Budgetary Institution | C112: Trade, Industry and Competition | D112: National Consumer Commission | E112: National Consumer Commission | F112: Rudzani Sikhwari | G112: (012) 315 5823 | H112: Rudzani.Sikhwari@treasury.gov.za | I112: Mpho Ntshole | J112: 0 | K112: Mpho.Ntshole@treasury.gov.za | L112: 1 | M112: 1 | N112: 3A | O112: PE124 | P112: 124 | Q112: NCC | R112: 3 | S112: 202829 | AD112: National Home Builders Registration Council | BC112: Ushers | BY112: National Home Builders Registration Council | CK112: 0 | CL112: Phumelele Gulukunqu | CM112: Phumelele.Gulukunqu@Treasury.gov.za | CN112: (012) 315 5539
B113: Extra-Budgetary Institution | C113: Trade, Industry and Competition | D113: National Consumer Tribunal | E113: National Consumer Tribunal | F113: Rudzani Sikhwari | G113: (012) 315 5823 | H113: Rudzani.Sikhwari@treasury.gov.za | I113: Mpho Ntshole | J113: 0 | K113: Mpho.Ntshole@treasury.gov.za | L113: 1 | M113: 1 | N113: 3A | O113: PE71 | P113: 71 | Q113: NCT | R113: 3 | S113: 202829 | AD113: National Housing Finance Corporation Limited | BC113: Wardrobe specialist | BY113: National Housing Finance Corporation Limited | CK113: 0 | CL113: Phumelele Gulukunqu | CM113: Phumelele.Gulukunqu@Treasury.gov.za | CN113: (012) 315 5539
B114: Extra-Budgetary Institution | C114: Trade, Industry and Competition | D114: National Credit Regulator | E114: National Credit Regulator | F114: Rudzani Sikhwari | G114: (012) 315 5823 | H114: Rudzani.Sikhwari@treasury.gov.za | I114: Mpho Ntshole | J114: 0 | K114: Mpho.Ntshole@treasury.gov.za | L114: 1 | M114: 1 | N114: 3A | O114: PE70 | P114: 70 | Q114: NCR | R114: 3 | S114: 202829 | AD114: National Library of South Africa | BC114: Workshop officer | BY114: National Library of South Africa | CK114: 0 | CL114: Phumelele Gulukunqu | CM114: Phumelele.Gulukunqu@Treasury.gov.za | CN114: (012) 315 5539
B115: Extra-Budgetary Institution | C115: Social Development | D115: National Development Agency | E115: National Development Agency | F115: Yusuf Mayet | G115: (012) 315 5189 | H115: Yusuf.Mayet@treasury.gov.za | I115: Lionel Botsane | J115: (012) 315 5749 | K115: Lionel.Botsane@treasury.gov.za | L115: 1 | M115: 1 | N115: 3A | O115: PE72 | P115: 72 | Q115: NDA | R115: 3 | S115: 202829 | AD115: National Lotteries Commission | BC115: Other: Please specify | BY115: National Lotteries Commission | CK115: 0 | CL115: Ghalieb Dawood | CM115: Ghalieb.Dawood@treasury.gov.za | CN115: 083 679 1430
B116: Extra-Budgetary Institution | C116: Employment and Labour | D116: National Economic, Development and Labour Council | E116: National Economic Development and Labour Council | F116: Dennis Machobani | G116: (012) 315 5312 | H116: Dennis.Machobani@treasury.gov.za | I116: Vuyo Ngqukumba | J116: (012) 315 5760 | K116: Vuyo.Ngqukumba@treasury.gov.za | L116: 1 | M116: 1 | N116: 3A | O116: PE74 | P116: 74 | Q116: NEDLAC | R116: 3 | S116: 202829 | AD116: National Lotteries Commission Distribution Trust Fund | BY116: National Lotteries Commission Distribution Trust Fund | CK116: 0 | CL116: Palesa Ndokweni | CM116: palesa.ndokweni@treasury.gov.za | CN116: (012) 315 5573
B117: Financial corporation | C117: Communications and Digital Technologies | D117: National Electronic Media Institute of South Africa | E117: National Electronic Media Institute of South Africa | F117: Rezah Atcha | G117: (012) 315 5287 | H117: Rezah.Atcha@treasury.gov.za | I117: Mntazi Msiza | J117: (012) 315 5876 | K117: Mntazi.Msiza@treasury.gov.za | L117: 1 | M117: 1 | N117: 3A | O117: PE76 | P117: 76 | Q117: NEMISA | R117: 3 | S117: 202829 | AD117: National Metrology Institute of South Africa | BY117: National Metrology Institute of South Africa | CK117: 0 | CL117: Keitumetse Motshegwe | CM117: Keitumetse.Motshegwe@treasury.gov.za | CN117: (012) 395 6750
B118: Extra-Budgetary Institution | C118: Trade, Industry and Competition | D118: National Empowerment Fund | E118: National Empowerment Fund | F118: Rudzani Sikhwari | G118: (012) 315 5823 | H118: Rudzani.Sikhwari@treasury.gov.za | I118: Mpho Ntshole | J118: 0 | K118: Mpho.Ntshole@treasury.gov.za | L118: 3 | M118: 1 | N118: 3A | O118: PE75 | P118: 75 | Q118: NEF | R118: 3 | S118: 202829 | AD118: National Museum, Bloemfontein | BY118: National Museum, Bloemfontein | CK118: 0 | CL118: Phumelele Gulukunqu | CM118: Phumelele.Gulukunqu@Treasury.gov.za | CN118: (012) 315 5539
B119: Extra-Budgetary Institution | C119: Electricity and Energy | D119: National Energy Regulator | E119: National Energy Regulator of South Africa | F119: Nomagugu Madikane | G119: (012) 315 5312 | H119: Nomagugu.Madikane@treasury.gov.za | I119: Mntazi Msiza | J119: (012) 315 5876 | K119: Mntazi.Msiza@treasury.gov.za | L119: 1 | M119: 1 | N119: 3A | O119: PE77 | P119: 77 | Q119: NERSA | R119: 3 | S119: 202829 | AD119: National Nuclear Regulator | BY119: National Nuclear Regulator | CK119: 0 | CL119: Nomagugu Maikane | CM119: Nomagugu.Madikane@treasury.gov.za | CN119: (012) 315 5312
B120: Extra-Budgetary Institution | C120: Sport, Arts and Culture | D120: National Film and Video Foundation | E120: National Film and Video Foundation | F120: Dennis Machobani | G120: (012) 315 5312 | H120: Dennis.Machobani@treasury.gov.za | I120: Vuyo Ngqukumba | J120: (012) 315 5760 | K120: Vuyo.Ngqukumba@treasury.gov.za | L120: 1 | M120: 1 | N120: 3A | O120: PE78 | P120: 78 | Q120: NFVF | R120: 3 | S120: 202829 | AD120: National Regulator for Compulsory Specifications | BY120: National Regulator for Compulsory Specifications | CK120: 0 | CL120: Mabele Mdhluli | CM120: Mabele.Mdhluli@treasury.gov.za | CN120: (012) 315 5573
B121: Extra-Budgetary Institution | C121: Trade, Industry and Competition | D121: National Gambling Board | E121: National Gambling Board of South Africa | F121: Rudzani Sikhwari | G121: (012) 315 5823 | H121: Rudzani.Sikhwari@treasury.gov.za | I121: Mpho Ntshole | J121: 0 | K121: Mpho.Ntshole@treasury.gov.za | L121: 1 | M121: 1 | N121: 3A | O121: PE79 | P121: 79 | Q121: NGB | R121: 3 | S121: 202829 | AD121: National Research Foundation | BY121: National Research Foundation | CK121: 0 | CL121: Phumelele Gulukunqu | CM121: Phumelele.Gulukunqu@Treasury.gov.za | CN121: (012) 315 5539
B122: Extra-Budgetary Institution | C122: Health | D122: National Health Laboratory Service | E122: National Health Laboratory Service | F122: Refiloe Thokoa | G122: (012) 395 6559 | H122: Refiloe.Thokoa@treasury.gov.za | I122: Amanda Mlambo | J122: 0 | K122: Amanda.Mlambo@treasury.gov.za | L122: 1 | M122: 1 | N122: 3A | O122: PE83 | P122: 83 | Q122: NHLS | R122: 1 | S122: 202829 | AD122: National school of government | BY122: National school of government | CK122: 0 | CL122: Noxolo Madela | CM122: Noxolo.Madela@treasury.gov.za | CN122: (012) 315 5689
B123: Extra-Budgetary Institution | C123: Sport, Arts and Culture | D123: National Heritage Council | E123: National Heritage Council | F123: Dennis Machobani | G123: (012) 315 5312 | H123: Dennis.Machobani@treasury.gov.za | I123: Vuyo Ngqukumba | J123: (012) 315 5760 | K123: Vuyo.Ngqukumba@treasury.gov.za | L123: 1 | M123: 1 | N123: 3A | O123: PE81 | P123: 81 | Q123: NHC | R123: 3 | S123: 202829 | AD123: National Student Financial Aid Scheme | BY123: National Student Financial Aid Scheme | CK123: 0 | CL123: Mabele Mdhluli | CM123: Mabele.Mdhluli@treasury.gov.za | CN123: (012) 315 5573
B124: Public non-financial corporation | C124: Human Settlements | D124: National Home Builders Registration Council | E124: National Home Builders Registration Council | F124: Claudette Mkhwanazi | G124: (012) 315 6535 | H124: Claudette.Mkhwanazi@treasury.gov.za | I124: Mntazi Msiza | J124: (012) 315 5876 | K124: Mntazi.Msiza@treasury.gov.za | L124: 1 | M124: 1 | N124: 3A | O124: PE80 | P124: 80 | Q124: NHBRC | R124: 3 | S124: 202829 | AD124: National Youth Development Agency | BY124: National Youth Development Agency | CK124: 0 | CL124: Claudette Mkhwanazi | CM124: Claudette.Mkhwanazi@treasury.gov.za | CN124: (012) 315 6535
B125: Extra-Budgetary Institution | C125: Human Settlements | D125: National Housing Finance Corporation | E125: National Housing Finance Corporation Limited | F125: Claudette Mkhwanazi | G125: (012) 315 6535 | H125: Claudette.Mkhwanazi@treasury.gov.za | I125: Mntazi Msiza | J125: (012) 315 5876 | K125: Mntazi.Msiza@treasury.gov.za | L125: 3 | M125: 1 | N125: 3A | O125: PE82 | P125: 82 | Q125: NHFC | R125: 3 | S125: 202829 | AD125: Nelson Mandela National Museum | BY125: Nelson Mandela National Museum | CK125: 0 | CL125: Claudette Mkhwanazi | CM125: Claudette.Mkhwanazi@treasury.gov.za | CN125: (012) 315 6535
B126: Extra-Budgetary Institution | C126: Sport, Arts and Culture | D126: National Library of South Africa | E126: National Library of South Africa | F126: Dennis Machobani | G126: (012) 315 5312 | H126: Dennis.Machobani@treasury.gov.za | I126: Samson Mlambo | J126: 0 | K126: Samson.Mlambo@treasury.gov.za | L126: 1 | M126: 3 | N126: 3A | O126: PE189 | P126: 189 | Q126: NLSA | R126: 3 | S126: 202829 | AD126: Office of Health Standards Compliance | BY126: Office of Health Standards Compliance | CK126: 0 | CL126: Mabele Mdhluli | CM126: Mabele.Mdhluli@treasury.gov.za | CN126: (012) 315 5573
B127: Extra-Budgetary Institution | C127: Trade, Industry and Competition | D127: National Lotteries Commission | E127: National Lotteries Commission | F127: Rudzani Sikhwari | G127: (012) 315 5823 | H127: Rudzani.Sikhwari@treasury.gov.za | I127: Mpho Ntshole | J127: 0 | K127: Mpho.Ntshole@treasury.gov.za | L127: 1 | M127: 1 | N127: 3A | O127: PE84 | P127: 84 | Q127: NLC | R127: 3 | S127: 202829 | AD127: Office of the Ombud for Financial Service Providers | BY127: Office of the Ombud for Financial Service Providers | CK127: 0 | CL127: Phumelele Gulukunqu | CM127: Phumelele.Gulukunqu@Treasury.gov.za | CN127: (012) 315 5539
B128: Extra-Budgetary Institution | C128: Trade, Industry and Competition | D128: National Lotteries Commission Distribution Trust Fund | E128: National Lotteries Commission Distribution Trust Fund | F128: Rudzani Sikhwari | G128: (012) 315 5823 | H128: Rudzani.Sikhwari@treasury.gov.za | I128: Mpho Ntshole | J128: 0 | K128: Mpho.Ntshole@treasury.gov.za | L128: 1 | M128: 1 | N128: Not listed | O128: PE227 | P128: 227 | Q128: NLCDTF | R128: 3 | S128: 202829 | AD128: Office of the Pension Funds Adjudicator | BY128: Office of the Pension Funds Adjudicator | CK128: 0 | CL128: Phumelele Gulukunqu | CM128: Phumelele.Gulukunqu@Treasury.gov.za | CN128: (012) 315 5539
B129: Extra-Budgetary Institution | C129: Trade, Industry and Competition | D129: National Metrology Institute of South Africa | E129: National Metrology Institute of South Africa | F129: Rudzani Sikhwari | G129: (012) 315 5823 | H129: Rudzani.Sikhwari@treasury.gov.za | I129: Mpho Ntshole | J129: 0 | K129: Mpho.Ntshole@treasury.gov.za | L129: 1 | M129: 1 | N129: 3A | O129: PE85 | P129: 85 | Q129: NMISA | R129: 3 | S129: 202829 | AD129: Office of the Valuer-General | BY129: Office of the Valuer-General | CK129: 0 | CL129: Phumelele Gulukunqu | CM129: Phumelele.Gulukunqu@Treasury.gov.za | CN129: (012) 315 5539
B130: Extra-Budgetary Institution | C130: Sport, Arts and Culture | D130: Naional Museum | E130: National Museum, Bloemfontein | F130: Dennis Machobani | G130: (012) 315 5312 | H130: Dennis.Machobani@treasury.gov.za | I130: Vuyo Ngqukumba | J130: (012) 315 5760 | K130: Vuyo.Ngqukumba@treasury.gov.za | L130: 1 | M130: 3 | N130: 3A | O130: PE190 | P130: 190 | Q130: NationalM | R130: 3 | S130: 202829 | AD130: Onderstepoort Biological Products | BY130: Onderstepoort Biological Products | CK130: 0 | CL130: Nkosana Mphafa | CM130: Nkosana.Mphafa@treasury.gov.za | CN130: (012) 315 5119
B131: Extra-Budgetary Institution | C131: Electricity and Energy | D131: National Nuclear Regulator | E131: National Nuclear Regulator | F131: Nomagugu Madikane | G131: (012) 315 5312 | H131: Nomagugu.Madikane@treasury.gov.za | I131: Mntazi Msiza | J131: (012) 315 5876 | K131: Mntazi.Msiza@treasury.gov.za | L131: 1 | M131: 1 | N131: 3A | O131: PE86 | P131: 86 | Q131: NNR | R131: 3 | S131: 202829 | AD131: Overberg Water | BY131: Overberg Water | CK131: 0 | CL131: Nomagugu Maikane | CM131: Nomagugu.Madikane@treasury.gov.za | CN131: (012) 315 5312
B132: Extra-Budgetary Institution | C132: Trade, Industry and Competition | D132: National Regulator for Compulsory Specifications of South Africa | E132: National Regulator for Compulsory Specifications | F132: Rudzani Sikhwari | G132: (012) 315 5823 | H132: Rudzani.Sikhwari@treasury.gov.za | I132: Mpho Ntshole | J132: 0 | K132: Mpho.Ntshole@treasury.gov.za | L132: 1 | M132: 1 | N132: 3A | O132: PE159 | P132: 159 | Q132: NRCS | R132: 3 | S132: 202829 | AD132: Passenger Rail Agency of South Africa | BY132: Passenger Rail Agency of South Africa | CK132: 0 | CL132: Phumelele Gulukunqu | CM132: Phumelele.Gulukunqu@Treasury.gov.za | CN132: (012) 315 5539
B133: Extra-Budgetary Institution | C133: Science, Technology and Innovation | D133: National Research Foundation | E133: National Research Foundation | F133: Ashley Ramasimu | G133: (012) 315 5166 | H133: Ashley.ramasimu@treasury.gov.za | I133: Jabulane Mashele | J133: (012) 395 6560 | K133: Jabulane.Mashele@treasury.gov.za | L133: 1 | M133: 1 | N133: 3A | O133: PE88 | P133: 88 | Q133: NRF | R133: 3 | S133: 202829 | AD133: Performing Arts Council of the Free State | BY133: Performing Arts Council of the Free State | CK133: 0 | CL133: Thabiso Molewa | CM133: Thabiso.molewa@treasury.gov.za | CN133: (012) 315 5166
B134: Extra-Budgetary Institution | C134: National School of Government | D134: The National School of Government Trading Account | E134: National school of government | F134: George Tembo | G134: (012) 315 5514 | H134: George.Tembo@treasury.gov.za | I134: Amanda Mlambo | J134: 0 | K134: Amanda.Mlambo@treasury.gov.za | L134: 1 | M134: 1 | N134: Not listed | O134: PE115 | P134: 115 | Q134: PALAMA | R134: 1 | S134: 202829 | AD134: Perishable Products Export Control Board | BY134: Perishable Products Export Control Board | CK134: 0 | CL134: Uvadhya Singh | CM134: Uvadhya.Singh@treasury.gov.za | CN134: (012) 406 9030
B135: Extra-Budgetary Institution | C135: Higher Education | D135: National Student Financial Aid Scheme | E135: National Student Financial Aid Scheme | F135: Barileng Khumisi | G135: (012) 406 9069 | H135: Barileng.Khumisi@treasury.gov.za | I135: Lionel Botsane | J135: (012) 315 5749 | K135: Lionel.Botsane@treasury.gov.za | L135: 3 | M135: 1 | N135: 3A | O135: PE90 | P135: 90 | Q135: NSFAS | R135: 3 | S135: 202829 | AD135: Ports Regulator of South Africa | BY135: Ports Regulator of South Africa | CK135: 0 | CL135: Nkhumeleni Munyai | CM135: Nkhumeleni.Munyai@treasury.gov.za | CN135: (012) 315 5636
B136: Extra-Budgetary Institution | C136: Women, Youth and Persons with Disabilities | D136: National Youth Development Agency | E136: National Youth Development Agency | F136: Yusuf Mayet | G136: (012) 315 5189 | H136: Yusuf.Mayet@treasury.gov.za | I136: Amanda Mlambo | J136: 0 | K136: Amanda.Mlambo@treasury.gov.za | L136: 3 | M136: 1 | N136: 3A | O136: PE92 | P136: 92 | Q136: NYDA | R136: 3 | S136: 202829 | AD136: Pongola-Mzimkulu Catchment Management Agency | BY136: Pongola-Mzimkulu Catchment Management Agency | CK136: 0 | CL136: Lindi Mzankomo | CM136: Lindi.Mzankomo@treasury.gov.za | CN136: (012) 315 5256
B137: Extra-Budgetary Institution | C137: Sport, Arts and Culture | D137: Nelson Mandela Museum | E137: Nelson Mandela National Museum | F137: Dennis Machobani | G137: (012) 315 5312 | H137: Dennis.Machobani@treasury.gov.za | I137: Vuyo Ngqukumba | J137: (012) 315 5760 | K137: Vuyo.Ngqukumba@treasury.gov.za | L137: 1 | M137: 3 | N137: 3A | O137: PE192 | P137: 192 | Q137: NelsonM | R137: 3 | S137: 202829 | AD137: Private Security Industry Regulatory Authority | BY137: Private Security Industry Regulatory Authority | CK137: 0 | CL137: Nkosana Mphafa | CM137: Nkosana.Mphafa@treasury.gov.za | CN137: (012) 315 5119
B138: Extra-Budgetary Institution | C138: Health | D138: Office of Health Standards Compliance | E138: Office of Health Standards Compliance | F138: Refiloe Thokoa | G138: (012) 395 6559 | H138: Refiloe.Thokoa@treasury.gov.za | I138: Amanda Mlambo | J138: 0 | K138: Amanda.Mlambo@treasury.gov.za | L138: 1 | M138: 1 | N138: 3A | O138: PE242 | P138: 242 | Q138: OHSC | R138: 3 | S138: 202829 | AD138: Productivity SA | BY138: Productivity SA | CK138: 0 | CL138: Noxolo Madela | CM138: Noxolo.Madela@treasury.gov.za | CN138: (012) 315 5689
B139: Extra-Budgetary Institution | C139: National Treasury | D139: Office of the Ombudsman for Financial Services Providers | E139: Office of the Ombud for Financial Service Providers | F139: Mokgatla Tema | G139: (012) 315 5948 | H139: Mokgatla.Tema@treasury.gov.za | I139: Patrick Mbedzi | J139: (012) 315 5912 | K139: Patrick.Mbedzi@treasury.gov.za | L139: 1 | M139: 1 | N139: 3A | O139: PE37 | P139: 37 | Q139: FAIS | R139: 3 | S139: 202829 | AD139: Property Management Trading Entity | BY139: Property Management Trading Entity | CK139: 0 | CL139: Rhoda Marais | CM139: Rhoda.Marais@treasury.gov.za | CN139: (012) 315 5906
B140: Extra-Budgetary Institution | C140: National Treasury | D140: Office of the Pension Funds Adjudicator | E140: Office of the Pension Funds Adjudicator | F140: Mokgatla Tema | G140: (012) 315 5948 | H140: Mokgatla.Tema@treasury.gov.za | I140: Patrick Mbedzi | J140: (012) 315 5912 | K140: Patrick.Mbedzi@treasury.gov.za | L140: 1 | M140: 1 | N140: 3A | O140: PE232 | P140: 232 | Q140: OPFA | R140: 3 | S140: 202829 | AD140: Public Investment Corporation Limited | BY140: Public Investment Corporation Limited | CK140: 0 | CL140: Rhoda Marais | CM140: Rhoda.Marais@treasury.gov.za | CN140: (012) 315 5906
B141: Extra-Budgetary Institution | C141: Land Reform and Rural Development | D141: Office of the Valuer-General | E141: Office of the Valuer-General | F141: Bothwell Deka | G141: (012) 395 6788 | H141: Bothwell.Deka@treasury.gov.za | I141: Jabulane Mashele | J141: (012) 395 6560 | K141: Jabulane.Mashele@treasury.gov.za | L141: 1 | M141: 1 | N141: 3A | O141: PE248 | P141: 248 | Q141: OVG | R141: 3 | S141: 202829 | AD141: Public Service Sector Education and Training Authority | BY141: Public Service Sector Education and Training Authority | CK141: 0 | CL141: Nico Likhethe | CM141: Nico.Likhethe@treasury.gov.za | CN141: (012) 315 5558
B142: Extra-Budgetary Institution | C142: National Treasury | D142: Ombud Council | E142: Ombud Council | F142: Mokgatla Tema | G142: (012) 315 5948 | H142: mokgatla.tema@treasury.gov.za | I142: Patrick Mbedzi | J142: (012) 315 5912 | K142: Patrick.Mbedzi@treasury.gov.za | L142: 1 | M142: 1 | N142: 3A | O142: PE250 | P142: 250 | Q142: OC | R142: 3 | S142: 202829 | AD142: Quality Council for Trades and Occupations | BY142: Quality Council for Trades and Occupations | CK142: 0 | CL142: Rhoda Marais | CM142: Rhoda.Marais@treasury.gov.za | CN142: (012) 315 5906
B143: Public non-financial corporation | C143: Agriculture | D143: Onderstepoort Biological Products | E143: Onderstepoort Biological Products | F143: Bothwell Deka | G143: (012) 395 6789 | H143: Bothwell.Deka@treasury.gov.za | I143: Jabulane Mashele | J143: (012) 395 6560 | K143: Jabulane.Mashele@treasury.gov.za | L143: 1 | M143: 1 | N143: 3B | O143: PE93 | P143: 93 | Q143: OBP | R143: 3 | S143: 202829 | AD143: Railway Safety Regulator | BY143: Railway Safety Regulator | CK143: 0 | CL143: Nico Likhethe | CM143: Nico.Likhethe@treasury.gov.za | CN143: (012) 315 5558
B144: Extra-Budgetary Institution | C144: Water and Sanitation | D144: Overberg Water Board | E144: Overberg Water | F144: Bongani Daka | G144: (012) 315 5586 | H144: Bonangi.Daka@treasury.gov.za | I144: Nymrot Sholoko | J144: 0 | K144: Nymrot.Sholoko@treasury.gov.za | L144: 1 | M144: 3 | N144: 3B | O144: PE194 | P144: 194 | Q144: Overberg | R144: 3 | S144: 202829 | AD144: Rand Water | BY144: Rand Water | CK144: 0 | CL144: Iqbal Mahomed Alli | CM144: Iqbal.Mahomedalli@treasury.gov.za | CN144: (012) 315 5809
B145: Extra-Budgetary Institution | C145: Transport | D145: Passenger Rail Agency of South Africa | E145: Passenger Rail Agency of South Africa | F145: Luyolo Ntlangula | G145: (012) 315 5571 | H145: Luyolo.Ntlangula@treasury.gov.za | I145: Samson Mlambo | J145: 0 | K145: Samson.Mlambo@treasury.gov.za | L145: 1 | M145: 1 | N145: 3B | O145: PE125 | P145: 125 | Q145: PRASA | R145: 3 | S145: 202829 | AD145: Registration of Deeds Trading Entity | BY145: Registration of Deeds Trading Entity | CK145: 0 | CL145: Resego Tekanyo | CM145: Resego.Tekanyo@treasury.gov.za | CN145: (012) 395 6786
B146: Extra-Budgetary Institution | C146: Sport, Arts and Culture | D146: Performing Arts Council of the Free State | E146: Performing Arts Council of the Free State | F146: Dennis Machobani | G146: (012) 315 5312 | H146: Dennis.Machobani@treasury.gov.za | I146: Samson Mlambo | J146: 0 | K146: Samson.Mlambo@treasury.gov.za | L146: 1 | M146: 3 | N146: 3A | O146: PE195 | P146: 195 | Q146: PACOFS | R146: 3 | S146: 202829 | AD146: Road Traffic Infringement Agency | BY146: Road Traffic Infringement Agency | CK146: 0 | CL146: Mabele Mdhluli | CM146: Mabele.Mdhluli@treasury.gov.za | CN146: (012) 315 5573
B147: Extra-Budgetary Institution | C147: Agriculture | D147: Perishable Products Export Control Board Ltd | E147: Perishable Products Export Control Board | F147: Bothwell Deka | G147: (012) 395 6790 | H147: Bothwell.Deka@treasury.gov.za | I147: Jabulane Mashele | J147: (012) 395 6560 | K147: Jabulane.Mashele@treasury.gov.za | L147: 1 | M147: 1 | N147: 3A | O147: PE99 | P147: 99 | Q147: PPECB | R147: 3 | S147: 202829 | AD147: Road Traffic Management Corporation | BY147: Road Traffic Management Corporation | CK147: 0 | CL147: Nico Likhethe | CM147: Nico.Likhethe@treasury.gov.za | CN147: (012) 315 5558
B148: Extra-Budgetary Institution | C148: Water and Sanitation | D148: Pongola-Umzimkulu Catchment Agency | E148: Pongola-Umzimkulu Catchment Management Agency | F148: Bongani Daka | G148: (012) 315 5586 | H148: Bonangi.Daka@treasury.gov.za | I148: Nymrot Sholoko | J148: 0 | K148: Nymrot.Sholoko@treasury.gov.za | L148: 1 | M148: 2 | N148: 3B | O148: PE258 | P148: 258 | Q148: PUMCA | R148: 3 | S148: 202829 | AD148: Robben Island Museum | BY148: Robben Island Museum | CK148: 0 | CL148: Iqbal Mahomed Alli | CM148: Iqbal.Mahomedalli@treasury.gov.za | CN148: (012) 315 5809
B149: Public non-financial corporation | C149: Transport | D149: Ports Regulator of South Africa | E149: Ports Regulator of South Africa | F149: Luyolo Ntlangula | G149: (012) 315 5571 | H149: Luyolo.Ntlangula@treasury.gov.za | I149: Samson Mlambo | J149: 0 | K149: Samson.Mlambo@treasury.gov.za | L149: 1 | M149: 1 | N149: 3A | O149: PE10 | P149: 10 | Q149: Ports Reg | R149: 3 | S149: 202829 | AD149: SA Bureau of Standards | BY149: SA Bureau of Standards | CK149: 0 | CL149: Resego Tekanyo | CM149: Resego.Tekanyo@treasury.gov.za | CN149: (012) 395 6786
B150: Extra-Budgetary Institution | C150: Communications and Digital Technologies | D150: PostBank | E150: PostBank | F150: Rezah Atcha | G150: (012) 315 5287 | H150: Rezah.Atcha@treasury.gov.za | I150: Mntazi Msiza | J150: (012) 315 5876 | K150: Mntazi.Msiza@treasury.gov.za | L150: 3 | M150: 3 | N150: Not listed | O150: PE252 | P150: 252 | Q150: PostBank | R150: 3 | S150: 202829 | AD150: SA Institute for Drug-free Sport | BY150: SA Institute for Drug-free Sport | CK150: 0 | CL150: Keitumetse Motshegwe | CM150: Keitumetse.Motshegwe@treasury.gov.za | CN150: (012) 395 6750
B151: Extra-Budgetary Institution | C151: Police | D151: Private Security Industry Regulatory Authority | E151: Private Security Industry Regulatory Authority | F151: Velisubuhle Buti | G151: (012) 395 6709 | H151: Velisubuhle.Buti@treasury.gov.za | I151: Jabulane Mashele | J151: (012) 395 6560 | K151: Jabulane.Mashele@treasury.gov.za | L151: 1 | M151: 1 | N151: 3A | O151: PE11 | P151: 11 | Q151: PSIRA | R151: 3 | S151: 202829 | AD151: SA Medical Research Council | BY151: SA Medical Research Council | CK151: 0 | CL151: Ntombizodwa Dingiswayo | CM151: Ntombizodwa.Dingiswayo@Treasury.gov.za | CN151: (012) 315 5112
B152: Extra-Budgetary Institution | C152: Employment and Labour | D152: Productivity South Africa | E152: Productivity SA | F152: Dennis Machobani | G152: (012) 315 5312 | H152: Dennis.Machobani@treasury.gov.za | I152: Vuyo Ngqukumba | J152: (012) 315 5760 | K152: Vuyo.Ngqukumba@treasury.gov.za | L152: 1 | M152: 1 | N152: 3A | O152: PE87 | P152: 87 | Q152: ProductivitySA | R152: 3 | S152: 202829 | AD152: SA National Roads Agency | BY152: SA National Roads Agency | CK152: 0 | CL152: Palesa Ndokweni | CM152: palesa.ndokweni@treasury.gov.za | CN152: (012) 315 5573
B153: Extra-Budgetary Institution | C153: Public Works and Infrastructure | D153: The Property Management Trading Account | E153: Property Management Trading Entity | F153: George Tembo | G153: (012) 315 5514 | H153: George.Tembo@treasury.gov.za | I153: Patrick Mbedzi | J153: (012) 315 5912 | K153: Patrick.Mbedzi@treasury.gov.za | L153: 1 | M153: 1 | N153: Not listed | O153: PE98 | P153: 98 | Q153: PMTE | R153: 1 | S153: 202829 | AD153: Safety and Security Education and Training Authority | BY153: Safety and Security Education and Training Authority | CK153: 0 | CL153: Tumelo Movare | CM153: Tumelo.Movare@treasury.gov.za | CN153: (012) 315 5279
B154: Extra-Budgetary Institution | C154: Human Settlements | D154: Estate Agents Fidelity Fund | E154: Property Practitioners Fidelity Fund | F154: Claudette Mkhwanazi | G154: (012) 315 6535 | H154: Claudette.Mkhwanazi@treasury.gov.za | I154: Mntazi Msiza | J154: (012) 315 5876 | K154: Mntazi.Msiza@treasury.gov.za | L154: 1 | M154: 1 | N154: Not listed | O154: PE241 | P154: 241 | Q154: EAFF | R154: 3 | S154: 202829 | AD154: Sedibeng Water | BY154: Sedibeng Water | CK154: 0 | CL154: Claudette Mkhwanazi | CM154: Claudette.Mkhwanazi@treasury.gov.za | CN154: (012) 315 6535
B155: Public non-financial corporation | C155: Human Settlements | D155: Estate Agency Affairs Board | E155: Property Practitioners Regulatory Authority | F155: Claudette Mkhwanazi | G155: (012) 315 6535 | H155: Claudette.Mkhwanazi@treasury.gov.za | I155: Mntazi Msiza | J155: (012) 315 5876 | K155: Mntazi.Msiza@treasury.gov.za | L155: 1 | M155: 1 | N155: 3A | O155: PE33 | P155: 33 | Q155: EAAB | R155: 3 | S155: 202829 | AD155: Sentech Limited | BY155: Sentech Limited | CK155: 0 | CL155: Claudette Mkhwanazi | CM155: Claudette.Mkhwanazi@treasury.gov.za | CN155: (012) 315 6535
B156: Extra-Budgetary Institution | C156: National Treasury | D156: Public Investment Corporation | E156: Public Investment Corporation Limited | F156: Mokgatla Tema | G156: (012) 315 5948 | H156: Mokgatla.Tema@treasury.gov.za | I156: Patrick Mbedzi | J156: (012) 315 5912 | K156: Patrick.Mbedzi@treasury.gov.za | L156: 3 | M156: 1 | N156: 3B | O156: PE97 | P156: 97 | Q156: PIC | R156: 3 | S156: 202829 | AD156: Services Sector Education and Training Authority | BY156: Services Sector Education and Training Authority | CK156: 0 | CL156: Rhoda Marais | CM156: Rhoda.Marais@treasury.gov.za | CN156: (012) 315 5906
B157: Extra-Budgetary Institution | C157: Higher Education | D157: Public Service Sector Education and Training Authority | E157: Public Service Sector Education and Training Authority | F157: Barileng Khumisi | G157: (012) 406 9069 | H157: Barileng.Khumisi@treasury.gov.za | I157: Lionel Botsane | J157: (012) 315 5749 | K157: Lionel.Botsane@treasury.gov.za | L157: 2 | M157: 3 | N157: 3A | O157: PE226 | P157: 226 | Q157: PSETA | R157: 3 | S157: 202829 | AD157: Small Enterprise Development Agency | BY157: Small Enterprise Development Agency | CK157: 0 | CL157: Nkhumeleni Munyai | CM157: Nkhumeleni.Munyai@treasury.gov.za | CN157: (012) 315 5636
B158: Extra-Budgetary Institution | C158: Higher Education | D158: Quality Council for Trades and Occupations | E158: Quality Council for Trades and Occupations | F158: Barileng Khumisi | G158: (012) 406 9069 | H158: Barileng.Khumisi@treasury.gov.za | I158: Lionel Botsane | J158: (012) 315 5749 | K158: Lionel.Botsane@treasury.gov.za | L158: 1 | M158: 1 | N158: 3A | O158: PE235 | P158: 235 | Q158: QCTO | R158: 3 | S158: 202829 | AD158: South African Civil Aviation Authority | BY158: South African Civil Aviation Authority | CK158: 0 | CL158: Nkhumeleni Munyai | CM158: Nkhumeleni.Munyai@treasury.gov.za | CN158: (012) 315 5636
B159: Public non-financial corporation | C159: Transport | D159: Railway Safety Regulator | E159: Railway Safety Regulator | F159: Luyolo Ntlangula | G159: (012) 315 5571 | H159: Luyolo.Ntlangula@treasury.gov.za | I159: Samson Mlambo | J159: 0 | K159: Samson.Mlambo@treasury.gov.za | L159: 1 | M159: 1 | N159: 3A | O159: PE103 | P159: 103 | Q159: RSR | R159: 3 | S159: 202829 | AD159: South African Council for Educators | BY159: South African Council for Educators | CK159: 0 | CL159: Resego Tekanyo | CM159: Resego.Tekanyo@treasury.gov.za | CN159: (012) 395 6786
B160: Extra-Budgetary Institution | C160: Water and Sanitation | D160: Rand Water Board | E160: Rand Water | F160: Bongani Daka | G160: (012) 315 5586 | H160: Bonangi.Daka@treasury.gov.za | I160: Nymrot Sholoko | J160: 0 | K160: Nymrot.Sholoko@treasury.gov.za | L160: 1 | M160: 3 | N160: 3B | O160: PE199 | P160: 199 | Q160: RandWater | R160: 3 | S160: 202829 | AD160: South African Diamond and Precious Metals Regulator | BY160: South African Diamond and Precious Metals Regulator | CK160: 0 | CL160: Iqbal Mahomed Alli | CM160: Iqbal.Mahomedalli@treasury.gov.za | CN160: (012) 315 5809
B161: Social Security Fund | C161: Land Reform and Rural Development | D161: Registration of Deeds Trading Account | E161: Registration of Deeds Trading Entity | F161: Bothwell Deka | G161: (012) 395 6791 | H161: Bothwell.Deka@treasury.gov.za | I161: Jabulane Mashele | J161: (012) 395 6560 | K161: Jabulane.Mashele@treasury.gov.za | L161: 1 | M161: 1 | N161: Not listed | O161: PE31 | P161: 31 | Q161: DEEDS | R161: 3 | S161: 202829 | AD161: South African Health Products Regulatory Authority | BY161: South African Health Products Regulatory Authority | CK161: 0 | CL161: Nico Likhethe | CM161: Nico.Likhethe@treasury.gov.za | CN161: (012) 315 5558
B162: Extra-Budgetary Institution | C162: Transport | D162: Road Accident Fund | E162: Road Accident Fund | F162: Luyolo Ntlangula | G162: (012) 315 5571 | H162: Luyolo.Ntlangula@treasury.gov.za | I162: Vuyo Ngqukumba | J162: (012) 315 5760 | K162: Vuyo.Ngqukumba@treasury.gov.za | L162: 4 | M162: 4 | N162: 3A | O162: PE101 | P162: 101 | Q162: RAF | R162: 3 | S162: 202829 | AD162: South African Heritage Resources Agency | BY162: South African Heritage Resources Agency | CK162: 0 | CL162: Resego Tekanyo | CM162: Resego.Tekanyo@treasury.gov.za | CN162: (012) 395 6786
B163: Extra-Budgetary Institution | C163: Transport | D163: Road Traffic Infringement Agency | E163: Road Traffic Infringement Agency | F163: Luyolo Ntlangula | G163: (012) 315 5571 | H163: Luyolo.Ntlangula@treasury.gov.za | I163: Samson Mlambo | J163: 0 | K163: Samson.Mlambo@treasury.gov.za | L163: 1 | M163: 1 | N163: 3A | O163: PE229 | P163: 229 | Q163: RTIA | R163: 3 | S163: 202829 | AD163: South African Library for the Blind | BY163: South African Library for the Blind | CK163: 0 | CL163: Resego Tekanyo | CM163: Resego.Tekanyo@treasury.gov.za | CN163: (012) 395 6786
B164: Extra-Budgetary Institution | C164: Transport | D164: Road Traffic Management Corporation | E164: Road Traffic Management Corporation | F164: Luyolo Ntlangula | G164: (012) 315 5571 | H164: Luyolo.Ntlangula@treasury.gov.za | I164: Samson Mlambo | J164: 0 | K164: Samson.Mlambo@treasury.gov.za | L164: 1 | M164: 1 | N164: 3A | O164: PE104 | P164: 104 | Q164: RTMC | R164: 3 | S164: 202829 | AD164: South African Local Government Association | BY164: South African Local Government Association | CK164: 0 | CL164: Resego Tekanyo | CM164: Resego.Tekanyo@treasury.gov.za | CN164: (012) 395 6786
B165: Extra-Budgetary Institution | C165: Sport, Arts and Culture | D165: Robben Island Museum | E165: Robben Island Museum | F165: Dennis Machobani | G165: (012) 315 5312 | H165: Dennis.Machobani@treasury.gov.za | I165: Vuyo Ngqukumba | J165: (012) 315 5760 | K165: Vuyo.Ngqukumba@treasury.gov.za | L165: 1 | M165: 3 | N165: 3A | O165: PE200 | P165: 200 | Q165: RobbenM | R165: 3 | S165: 202829 | AD165: South African Maritime Safety Authority | BY165: South African Maritime Safety Authority | CK165: 0 | CL165: Nkosana Mphafa | CM165: Nkosana.Mphafa@treasury.gov.za | CN165: (012) 315 5119
B166: Extra-Budgetary Institution | C166: Trade, Industry and Competition | D166: South African Bureau of Standards | E166: SA Bureau of Standards | F166: Rudzani Sikhwari | G166: (012) 315 5823 | H166: Rudzani.Sikhwari@treasury.gov.za | I166: Mpho Ntshole | J166: 0 | K166: Mpho.Ntshole@treasury.gov.za | L166: 1 | M166: 1 | N166: 3B | O166: PE108 | P166: 108 | Q166: SABS | R166: 3 | S166: 202829 | AD166: South African National Accreditation System | BY166: South African National Accreditation System | CK166: 0 | CL166: Phumelele Gulukunqu | CM166: Phumelele.Gulukunqu@Treasury.gov.za | CN166: (012) 315 5539
B167: Extra-Budgetary Institution | C167: Sport, Arts and Culture | D167: South African Institute for Drug-Free Sport | E167: SA Institute for Drug-free Sport | F167: Dennis Machobani | G167: (012) 315 5312 | H167: Dennis.Machobani@treasury.gov.za | I167: Vuyo Ngqukumba | J167: (012) 315 5760 | K167: Vuyo.Ngqukumba@treasury.gov.za | L167: 1 | M167: 1 | N167: 3A | O167: PE112 | P167: 112 | Q167: SAIDS | R167: 3 | S167: 202829 | AD167: South African National Biodiversity Institute | BY167: South African National Biodiversity Institute | CK167: 0 | CL167: Mabele Mdhluli | CM167: Mabele.Mdhluli@treasury.gov.za | CN167: (012) 315 5573
B168: Extra-Budgetary Institution | C168: Health | D168: South African Medical Research Council | E168: SA Medical Research Council | F168: Refiloe Thokoa | G168: (012) 395 6559 | H168: Refiloe.Thokoa@treasury.gov.za | I168: Amanda Mlambo | J168: 0 | K168: Amanda.Mlambo@treasury.gov.za | L168: 1 | M168: 1 | N168: 3A | O168: PE116 | P168: 116 | Q168: SAMRC | R168: 1 | S168: 202829 | AD168: South African National Energy Development Institute | BY168: South African National Energy Development Institute | CK168: 0 | CL168: Noxolo Madela | CM168: Noxolo.Madela@treasury.gov.za | CN168: (012) 315 5689
B169: Extra-Budgetary Institution | C169: Transport | D169: South African National Roads Agency | E169: SA National Roads Agency | F169: Luyolo Ntlangula | G169: (012) 315 5571 | H169: Luyolo.Ntlangula@treasury.gov.za | I169: Samson Mlambo | J169: 0 | K169: Samson.Mlambo@treasury.gov.za | L169: 1 | M169: 1 | N169: 3A | O169: PE121 | P169: 121 | Q169: SANRAL | R169: 3 | S169: 202829 | AD169: South African National Parks | BY169: South African National Parks | CK169: 0 | CL169: Resego Tekanyo | CM169: Resego.Tekanyo@treasury.gov.za | CN169: (012) 395 6786
B170: Financial corporation | C170: Higher Education | D170: Safety and Security Education and Training Authority | E170: Safety and Security Education and Training Authority | F170: Barileng Khumisi | G170: (012) 406 9069 | H170: Barileng.Khumisi@treasury.gov.za | I170: Lionel Botsane | J170: (012) 315 5749 | K170: Lionel.Botsane@treasury.gov.za | L170: 2 | M170: 3 | N170: 3A | O170: PE201 | P170: 201 | Q170: SASSETA | R170: 3 | S170: 202829 | AD170: South African National Space Agency | BY170: South African National Space Agency | CK170: 0 | CL170: Nkhumeleni Munyai | CM170: Nkhumeleni.Munyai@treasury.gov.za | CN170: (012) 315 5636
B171: Public non-financial corporation | C171: National Treasury | D171: South African Special Risks Insurance Association | E171: Sasria Limited | F171: Mokgatla Tema | G171: (012) 315 5948 | H171: Mokgatla.Tema@treasury.gov.za | I171: Patrick Mbedzi | J171: (012) 315 5912 | K171: Patrick.Mbedzi@treasury.gov.za | L171: 3 | M171: 3 | N171: 3B | O171: PE128 | P171: 128 | Q171: SASRIA | R171: 3 | S171: 202829 | AD171: South African Nuclear Energy Corporation Limited | BY171: South African Nuclear Energy Corporation Limited | CK171: 0 | CL171: Rhoda Marais | CM171: Rhoda.Marais@treasury.gov.za | CN171: (012) 315 5906
B172: Extra-Budgetary Institution | C172: Communications and Digital Technologies | D172: Sentech (Pty) Ltd | E172: Sentech Limited | F172: Rezah Atcha | G172: (012) 315 5287 | H172: Rezah.Atcha@treasury.gov.za | I172: Mntazi Msiza | J172: (012) 315 5876 | K172: Mntazi.Msiza@treasury.gov.za | L172: 1 | M172: 1 | N172: 3B | O172: PE132 | P172: 132 | Q172: SENTECH | R172: 3 | S172: 202829 | AD172: South African Qualifications Authority | BY172: South African Qualifications Authority | CK172: 0 | CL172: Keitumetse Motshegwe | CM172: Keitumetse.Motshegwe@treasury.gov.za | CN172: (012) 395 6750
B173: Extra-Budgetary Institution | C173: Higher Education | D173: Services Sector Education and Training Authority | E173: Services Sector Education and Training Authority | F173: Barileng Khumisi | G173: (012) 406 9069 | H173: Barileng.Khumisi@treasury.gov.za | I173: Lionel Botsane | J173: (012) 315 5749 | K173: Lionel.Botsane@treasury.gov.za | L173: 2 | M173: 3 | N173: 3A | O173: PE203 | P173: 203 | Q173: SSETA | R173: 3 | S173: 202829 | AD173: South African Revenue Service | BY173: South African Revenue Service | CK173: 0 | CL173: Nkhumeleni Munyai | CM173: Nkhumeleni.Munyai@treasury.gov.za | CN173: (012) 315 5636
B174: Financial corporation | C174: Small Business Development | D174: Small Enterprise Development Agency | E174: Small Enterprise Development Agency | F174: Bothwell Deka | G174: (012) 395 6791 | H174: Bothwell.Deka@treasury.gov.za | I174: Mpho Ntshole | J174: 0 | K174: Mpho.Ntshole@treasury.gov.za | L174: 3 | M174: 1 | N174: 3A | O174: PE131 | P174: 131 | Q174: SEDA | R174: 3 | S174: 202829 | AD174: South African Social Security Agency | BY174: South African Social Security Agency | CK174: 0 | CL174: Nico Likhethe | CM174: Nico.Likhethe@treasury.gov.za | CN174: (012) 315 5558
B175: Financial corporation | C175: Small Business Development | D175: Small Enterprise Development Finance Agency | E175: Small Enterprise Development Finance Agency | F175: Bothwell Deka | G175: (012) 395 6791 | H175: Bothwell.Deka@treasury.gov.za | I175: Mpho Ntshole | J175: 0 | K175: Mpho.Ntshole@treasury.gov.za | L175: 3 | M175: 1 | N175: 3A | O175: PE261 | P175: 261 | Q175: SEDFA | R175: 3 | S175: 202829 | AD175: South African Tourism | BY175: South African Tourism | CK175: 0 | CL175: Nico Likhethe | CM175: Nico.Likhethe@treasury.gov.za | CN175: (012) 315 5558
B176: Public non-financial corporation | C176: Trade, Industry and Competition | D176: Small Enterprise Finance Agency | E176: Small Enterprise Finance Agency | F176: Rudzani Sikhwari | G176: (012) 315 5823 | H176: Rudzani.Sikhwari@treasury.gov.za | I176: Mpho Ntshole | J176: 0 | K176: Mpho.Ntshole@treasury.gov.za | L176: 3 | M176: 3 | N176: 3B | O176: PE238 | P176: 238 | Q176: SEFA | R176: 3 | S176: 202829 | AD176: South African Weather Service | BY176: South African Weather Service | CK176: 0 | CL176: Phumelele Gulukunqu | CM176: Phumelele.Gulukunqu@Treasury.gov.za | CN176: (012) 315 5539
B177: Public non-financial corporation | C177: Transport | D177: South African Airways (Pty) Limited | E177: South African Airways (Pty) Limited | F177: Luyolo Ntlangula | G177: (012) 315 5571 | H177: Luyolo.Ntlangula@treasury.gov.za | I177: Samson Mlambo | J177: 0 | K177: Samson.Mlambo@treasury.gov.za | L177: 1 | M177: 3 | N177: 2 | O177: PE163 | P177: 163 | Q177: SAA | R177: 3 | S177: 202829 | AD177: Special Investigating Unit | BY177: Special Investigating Unit | CK177: 0 | CL177: Resego Tekanyo | CM177: Resego.Tekanyo@treasury.gov.za | CN177: (012) 395 6786
B178: Extra-Budgetary Institution | C178: Communications and Digital Technologies | D178: South African Broadcasting Corporation Ltd | E178: South African Broadcasting Corporation Limited | F178: Rezah Atcha | G178: (012) 315 5287 | H178: Rezah.Atcha@treasury.gov.za | I178: Mntazi Msiza | J178: (012) 315 5876 | K178: Mntazi.Msiza@treasury.gov.za | L178: 1 | M178: 3 | N178: 2 | O178: PE107 | P178: 107 | Q178: SABC | R178: 3 | S178: 202829 | AD178: State Diamond Trader | BY178: State Diamond Trader | CK178: 0 | CL178: Keitumetse Motshegwe | CM178: Keitumetse.Motshegwe@treasury.gov.za | CN178: (012) 395 6750
B179: Extra-Budgetary Institution | C179: Transport | D179: South African Civil Aviation Authority | E179: South African Civil Aviation Authority | F179: Luyolo Ntlangula | G179: (012) 315 5571 | H179: Luyolo.Ntlangula@treasury.gov.za | I179: Samson Mlambo | J179: 0 | K179: Samson.Mlambo@treasury.gov.za | L179: 1 | M179: 1 | N179: 3A | O179: PE13 | P179: 13 | Q179: CAA | R179: 1 | S179: 202829 | AD179: State Information Technology Agency | BY179: State Information Technology Agency | CK179: 0 | CL179: Resego Tekanyo | CM179: Resego.Tekanyo@treasury.gov.za | CN179: (012) 395 6786
B180: Extra-Budgetary Institution | C180: Basic Education | D180: South African Council for Educators | E180: South African Council for Educators | F180: Shaneel Ragoo | G180: (012) 315 5323 | H180: Shaneel.Ragoo@treasury.gov.za | I180: Lionel Botsane | J180: (012) 315 5749 | K180: Lionel.Botsane@treasury.gov.za | L180: 1 | M180: 1 | N180: 3A | O180: PE109 | P180: 109 | Q180: SACE | R180: 3 | S180: 202829 | AD180: Takeover Regulation Panel | BY180: Takeover Regulation Panel | CK180: 0 | CL180: Shaneel Ragoo | CM180: Shaneel.Ragoo@treasury.gov.za | CN180: (012) 315 5323
B181: Extra-Budgetary Institution | C181: Mineral and Petroleum Resources | D181: South African Diamond and Precious Metals Regulator | E181: South African Diamond and Precious Metals Regulator | F181: Nomagugu Madikane | G181: (012) 315 5312 | H181: Nomagugu.Madikane@treasury.gov.za | I181: Patrick Mbedzi | J181: (012) 315 5912 | K181: Patrick.Mbedzi@treasury.gov.za | L181: 1 | M181: 1 | N181: 3A | O181: PE105 | P181: 105 | Q181: SADPMR | R181: 3 | S181: 202829 | AD181: Technology Innovation Agency | BY181: Technology Innovation Agency | CK181: 0 | CL181: Portia Thebe | CM181: portia.thebe@treasury.gov.za | CN181: (012) 315 5855
B182: Extra-Budgetary Institution | C182: Forestry, Fisheries and the Environment | D182: South African Forestry Company Limited | E182: South African Forestry Company Limited | F182: Ashley Ramasimu | G182: (012) 315 5585 | H182: Ashley.Ramasimu@treasury.gov.za | I182: Jabulane Mashele | J182: (012) 395 6560 | K182: Jabulane.Mashele@treasury.gov.za | L182: 1 | M182: 3 | N182: 2 | O182: PE110 | P182: 110 | Q182: SAFCOL | R182: 3 | S182: 202829 | AD182: The Commission for the Promotion and Protection of the Rights of Cultural, Religious and Linguistic Communities | BY182: The Commission for the Promotion and Protection of the Rights of Cultural, Religious and Linguistic Communities | CK182: 0 | CL182: Jabulani Mahlangu | CM182: Jabulani.Mahlangu@treasury.gov.za | CN182: (012) 315 5612
B183: Extra-Budgetary Institution | C183: Health | D183: South African Health Products Regulatory Authority | E183: South African Health Products Regulatory Authority | F183: Refiloe Thokoa | G183: (012) 395 6559 | H183: Refiloe.Thokoa@treasury.gov.za | I183: Amanda Mlambo | J183: 0 | K183: Amanda.Mlambo@treasury.gov.za | L183: 1 | M183: 1 | N183: 3A | O183: PE247 | P183: 247 | Q183: SAHPRA | R183: 3 | S183: 202829 | AD183: The Commission on Gender Equality | BY183: The Commission on Gender Equality | CK183: 0 | CL183: Noxolo Madela | CM183: Noxolo.Madela@treasury.gov.za | CN183: (012) 315 5689
B184: Extra-Budgetary Institution | C184: Sport, Arts and Culture | D184: South African Heritage Resources Agency | E184: South African Heritage Resources Agency | F184: Dennis Machobani | G184: (012) 315 5312 | H184: Dennis.Machobani@treasury.gov.za | I184: Vuyo Ngqukumba | J184: (012) 315 5760 | K184: Vuyo.Ngqukumba@treasury.gov.za | L184: 1 | M184: 1 | N184: 3A | O184: PE111 | P184: 111 | Q184: SAHRA | R184: 3 | S184: 202829 | AD184: The Co-operative Banks Development Agency | BY184: The Co-operative Banks Development Agency | CK184: 0 | CL184: Mabele Mdhluli | CM184: Mabele.Mdhluli@treasury.gov.za | CN184: (012) 315 5573
B185: Extra-Budgetary Institution | C185: Sport, Arts and Culture | D185: South African Library for the Blind | E185: South African Library for the Blind | F185: Dennis Machobani | G185: (012) 315 5312 | H185: Dennis.Machobani@treasury.gov.za | I185: Samson Mlambo | J185: 0 | K185: Samson.Mlambo@treasury.gov.za | L185: 1 | M185: 3 | N185: 3A | O185: PE179 | P185: 179 | Q185: SALB | R185: 3 | S185: 202829 | AD185: The Financial and Fiscal Commission | BY185: The Financial and Fiscal Commission | CK185: 0 | CL185: Mabele Mdhluli | CM185: Mabele.Mdhluli@treasury.gov.za | CN185: (012) 315 5573
B186: Extra-Budgetary Institution | C186: Transport | D186: South African Maritime Safety Authority | E186: South African Maritime Safety Authority | F186: Luyolo Ntlangula | G186: (012) 315 5571 | H186: Luyolo.Ntlangula@treasury.gov.za | I186: Samson Mlambo | J186: 0 | K186: Samson.Mlambo@treasury.gov.za | L186: 1 | M186: 1 | N186: 3A | O186: PE117 | P186: 117 | Q186: SAMSA | R186: 3 | S186: 202829 | AD186: The Independent Communications Authority of South Africa | BY186: The Independent Communications Authority of South Africa | CK186: 0 | CL186: Resego Tekanyo | CM186: Resego.Tekanyo@treasury.gov.za | CN186: (012) 395 6786
B187: Extra-Budgetary Institution | C187: Trade, Industry and Competition | D187: South African National Accreditation System | E187: South African National Accreditation System | F187: Rudzani Sikhwari | G187: (012) 315 5823 | H187: Rudzani.Sikhwari@treasury.gov.za | I187: Mpho Ntshole | J187: 0 | K187: Mpho.Ntshole@treasury.gov.za | L187: 1 | M187: 1 | N187: 3A | O187: PE119 | P187: 119 | Q187: SANAS | R187: 3 | S187: 202829 | AD187: The Independent Electoral Commission | BY187: The Independent Electoral Commission | CK187: 0 | CL187: Phumelele Gulukunqu | CM187: Phumelele.Gulukunqu@Treasury.gov.za | CN187: (012) 315 5539
B188: Extra-Budgetary Institution | C188: Forestry, Fisheries and the Environment | D188: South African National Biodiversity Institute | E188: South African National Biodiversity Institute | F188: Ashley Ramasimu | G188: (012) 315 5585 | H188: Ashley.Ramasimu@treasury.gov.za | I188: Jabulane Mashele | J188: (012) 395 6560 | K188: Jabulane.Mashele@treasury.gov.za | L188: 1 | M188: 1 | N188: 3A | O188: PE120 | P188: 120 | Q188: SANBI | R188: 3 | S188: 202829 | AD188: The Municipal Demarcation Board | BY188: The Municipal Demarcation Board | CK188: 0 | CL188: Jabulani Mahlangu | CM188: Jabulani.Mahlangu@treasury.gov.za | CN188: (012) 315 5612
B189: Extra-Budgetary Institution | C189: Electricity and Energy | D189: South African National Energy Development Institute | E189: South African National Energy Development Institute | F189: Nomagugu Madikane | G189: (012) 315 5312 | H189: Nomagugu.Madikane@treasury.gov.za | I189: Mntazi Msiza | J189: (012) 315 5876 | K189: Mntazi.Msiza@treasury.gov.za | L189: 1 | M189: 1 | N189: 3B | O189: PE155 | P189: 155 | Q189: SANEDI | R189: 3 | S189: 202829 | AD189: The National Radioactive Waste Disposal Institute | BY189: The National Radioactive Waste Disposal Institute | CK189: 0 | CL189: Nomagugu Maikane | CM189: Nomagugu.Madikane@treasury.gov.za | CN189: (012) 315 5312
B190: Public non-financial corporation | C190: Forestry, Fisheries and the Environment | D190: South African National Parks | E190: South African National Parks | F190: Ashley Ramasimu | G190: (012) 315 5585 | H190: Ashley.Ramasimu@treasury.gov.za | I190: Jabulane Mashele | J190: (012) 395 6560 | K190: Jabulane.Mashele@treasury.gov.za | L190: 1 | M190: 1 | N190: 3A | O190: PE118 | P190: 118 | Q190: SANPARKS | R190: 3 | S190: 202829 | AD190: The National Skills Fund | BY190: The National Skills Fund | CK190: 0 | CL190: Jabulani Mahlangu | CM190: Jabulani.Mahlangu@treasury.gov.za | CN190: (012) 315 5612
B191: Public non-financial corporation | C191: Science, Technology and Innovation | D191: South African National Space Agency | E191: South African National Space Agency | F191: Ashley Ramasimu | G191: (012) 315 5166 | H191: Ashley.ramasimu@treasury.gov.za | I191: Jabulane Mashele | J191: (012) 395 6560 | K191: Jabulane.Mashele@treasury.gov.za | L191: 1 | M191: 1 | N191: 3A | O191: PE233 | P191: 233 | Q191: SANSA | R191: 3 | S191: 202829 | AD191: The Pan South African Language Board | BY191: The Pan South African Language Board | CK191: 0 | CL191: Thabiso Molewa | CM191: Thabiso.molewa@treasury.gov.za | CN191: (012) 315 5166
B192: Extra-Budgetary Institution | C192: Electricity and Energy | D192: South African Nuclear Energy Corporation Limited | E192: South African Nuclear Energy Corporation Limited | F192: Nomagugu Madikane | G192: (012) 315 5312 | H192: Nomagugu.Madikane@treasury.gov.za | I192: Mntazi Msiza | J192: (012) 315 5876 | K192: Mntazi.Msiza@treasury.gov.za | L192: 1 | M192: 1 | N192: 2 | O192: PE73 | P192: 73 | Q192: NECSA | R192: 1 | S192: 202829 | AD192: The Playhouse Company | BY192: The Playhouse Company | CK192: 1 | CL192: Nomagugu Maikane | CM192: Nomagugu.Madikane@treasury.gov.za | CN192: (012) 315 5312
B193: Extra-Budgetary Institution | C193: Communications and Digital Technologies | D193: South African Post Office SOC Ltd | E193: South African Post Office Limited | F193: Rezah Atcha | G193: (012) 315 5287 | H193: Rezah.Atcha@treasury.gov.za | I193: Mntazi Msiza | J193: (012) 315 5876 | K193: Mntazi.Msiza@treasury.gov.za | L193: 1 | M193: 3 | N193: 2 | O193: PE122 | P193: 122 | Q193: SAPO | R193: 3 | S193: 202829 | AD193: The Public Protector of South Africa | BY193: The Public Protector of South Africa | CK193: 1 | CL193: Keitumetse Motshegwe | CM193: Keitumetse.Motshegwe@treasury.gov.za | CN193: (012) 395 6750
B194: Extra-Budgetary Institution | C194: Higher Education | D194: South African Qualifications Authority | E194: South African Qualifications Authority | F194: Barileng Khumisi | G194: (012) 406 9069 | H194: Barileng.Khumisi@treasury.gov.za | I194: Lionel Botsane | J194: (012) 315 5749 | K194: Lionel.Botsane@treasury.gov.za | L194: 1 | M194: 1 | N194: 3A | O194: PE123 | P194: 123 | Q194: SAQA | R194: 3 | S194: 202829 | AD194: The Social Housing Regulatory Authority | BY194: The Social Housing Regulatory Authority | CK194: 0 | CL194: Nkhumeleni Munyai | CM194: Nkhumeleni.Munyai@treasury.gov.za | CN194: (012) 315 5636
B195: Extra-Budgetary Institution | C195: National Treasury | D195: South African Revenue Service | E195: South African Revenue Service | F195: Mokgatla Tema | G195: (012) 315 5948 | H195: Mokgatla.Tema@treasury.gov.za | I195: Patrick Mbedzi | J195: (012) 315 5912 | K195: Patrick.Mbedzi@treasury.gov.za | L195: 1 | M195: 1 | N195: 3A | O195: PE126 | P195: 126 | Q195: SARS | R195: 3 | S195: 202829 | AD195: The South African Human Rights Commission | BY195: The South African Human Rights Commission | CK195: 0 | CL195: Rhoda Marais | CM195: Rhoda.Marais@treasury.gov.za | CN195: (012) 315 5906
B196: Extra-Budgetary Institution | C196: Social Development | D196: South African Social Security Agency | E196: South African Social Security Agency | F196: Lindi Mzankomo | G196: (012) 315 5256 | H196: Lindi.Mzankomo@treasury.gov.za | I196: Lionel Botsane | J196: (012) 315 5749 | K196: Lionel.Botsane@treasury.gov.za | L196: 5 | M196: 1 | N196: 3A | O196: PE129 | P196: 129 | Q196: SASSA | R196: 3 | S196: 202829 | AD196: The South African State Theatre | BY196: The South African State Theatre | CK196: 0 | CL196: Lindi Mzankomo | CM196: Lindi.Mzankomo@treasury.gov.za | CN196: (012) 315 5256
B197: Extra-Budgetary Institution | C197: Tourism | D197: South African Tourism | E197: South African Tourism | F197: Ashley Ramasimu | G197: (012) 315 5585 | H197: Ashley.Ramasimu@treasury.gov.za | I197: Jabulane Mashele | J197: (012) 395 6560 | K197: Jabulane.Mashele@treasury.gov.za | L197: 1 | M197: 1 | N197: 3A | O197: PE106 | P197: 106 | Q197: SA TOUR | R197: 3 | S197: 202829 | AD197: The Water Services Trading Entity | BY197: The Water Services Trading Entity | CK197: 0 | CL197: Jabulani Mahlangu | CM197: Jabulani.Mahlangu@treasury.gov.za | CN197: (012) 315 5612
B198: Public non-financial corporation | C198: Forestry, Fisheries and the Environment | D198: South African Weather Service | E198: South African Weather Service | F198: Ashley Ramasimu | G198: (012) 315 5585 | H198: Ashley.Ramasimu@treasury.gov.za | I198: Jabulane Mashele | J198: (012) 395 6560 | K198: Jabulane.Mashele@treasury.gov.za | L198: 1 | M198: 1 | N198: 3A | O198: PE130 | P198: 130 | Q198: SAWS | R198: 3 | S198: 202829 | AD198: Trans-Caledon Tunnel Authority | BY198: Trans-Caledon Tunnel Authority | CK198: 0 | CL198: Jabulani Mahlangu | CM198: Jabulani.Mahlangu@treasury.gov.za | CN198: (012) 315 5612
B199: Extra-Budgetary Institution | C199: Justice and Constitutional Development | D199: Special Investigating Unit | E199: Special Investigating Unit | F199: Werner Krause | G199: (012) 315 5211 | H199: Werner.Krause@treasury.gov.za | I199: Nymrot Sholoko | J199: 0 | K199: Nymrot.Sholoko@treasury.gov.za | L199: 1 | M199: 1 | N199: 3A | O199: PE136 | P199: 136 | Q199: SIU | R199: 1 | S199: 202829 | AD199: Transport Education and Training Authority | BY199: Transport Education and Training Authority | CK199: 0 | CL199: Werner Krause | CM199: Werner.Krause@treasury.gov.za | CN199: (012) 315 5211
B200: Extra-Budgetary Institution | C200: Mineral and Petroleum Resources | D200: State Diamond Trader | E200: State Diamond Trader | F200: Nomagugu Madikane | G200: (012) 315 5312 | H200: Nomagugu.Madikane@treasury.gov.za | I200: Patrick Mbedzi | J200: (012) 315 5912 | K200: Patrick.Mbedzi@treasury.gov.za | L200: 1 | M200: 1 | N200: 3B | O200: PE23 | P200: 23 | Q200: SDT | R200: 3 | S200: 202829 | AD200: uMalusi Council for Quality Assurance in General and Further Education and Training | BY200: uMalusi Council for Quality Assurance in General and Further Education and Training | CK200: 0 | CL200: Portia Thebe | CM200: portia.thebe@treasury.gov.za | CN200: (012) 315 5855
B201: Extra-Budgetary Institution | C201: Communications and Digital Technologies | D201: State Information Technology Agency (Pty) Ltd | E201: State Information Technology Agency | F201: Rezah Atcha | G201: (012) 315 5287 | H201: Rezah.Atcha@treasury.gov.za | I201: Mntazi Msiza | J201: (012) 315 5876 | K201: Mntazi.Msiza@treasury.gov.za | L201: 1 | M201: 1 | N201: 3A | O201: PE135 | P201: 135 | Q201: SITA | R201: 1 | S201: 202829 | AD201: Umgeni Water | BY201: Umgeni Water | CK201: 0 | CL201: Keitumetse Motshegwe | CM201: Keitumetse.Motshegwe@treasury.gov.za | CN201: (012) 395 6750
B202: Extra-Budgetary Institution | C202: Trade, Industry and Competition | D202: Takeover Regulation Panel | E202: Takeover Regulation Panel | F202: Rudzani Sikhwari | G202: (012) 315 5823 | H202: Rudzani.Sikhwari@treasury.gov.za | I202: Mpho Ntshole | J202: 0 | K202: Mpho.Ntshole@treasury.gov.za | L202: 1 | M202: 1 | N202: 3A | O202: PE254 | P202: 254 | Q202: TRP | R202: 3 | S202: 202829 | AD202: uMsunduzi Museum | BY202: uMsunduzi Museum | CK202: 0 | CL202: Phumelele Gulukunqu | CM202: Phumelele.Gulukunqu@Treasury.gov.za | CN202: (012) 315 5539
B203: Extra-Budgetary Institution | C203: Science, Technology and Innovation | D203: Technology Innovation Agency | E203: Technology Innovation Agency | F203: Ashley Ramasimu | G203: (012) 315 5166 | H203: Ashley.ramasimu@treasury.gov.za | I203: Jabulane Mashele | J203: (012) 395 6560 | K203: Jabulane.Mashele@treasury.gov.za | L203: 1 | M203: 1 | N203: 3A | O203: PE234 | P203: 234 | Q203: TIA | R203: 3 | S203: 202829 | AD203: Universal Service and Access Agency of South Africa | BY203: Universal Service and Access Agency of South Africa | CK203: 0 | CL203: Thabiso Molewa | CM203: Thabiso.molewa@treasury.gov.za | CN203: (012) 315 5166
B204: Extra-Budgetary Institution | C204: Traditional Affairs | D204: The Commission for the Promotion and Protection of the Rights of Cultural, Religious and Linguistic Communities | E204: The Commission for the Promotion and Protection of the Rights of Cultural, Religious and Linguistic Communities | F204: Bongani Daka | G204: (012) 315 5586 | H204: Bonangi.Daka@treasury.gov.za | I204: Mntazi Msiza | J204: (012) 315 5876 | K204: Mntazi.Msiza@treasury.gov.za | L204: 1 | M204: 1 | N204: 1 | O204: PE28 | P204: 28 | Q204: CRCCOM | R204: 3 | S204: 202829 | AD204: Universal Service and Access Fund | BY204: Universal Service and Access Fund | CK204: 0 | CL204: Millicent Mulaudzi | CM204: Millicent.Mulaudzi@treasury.gov.za | CN204: (012) 395 6576
B205: Extra-Budgetary Institution | C205: Women, Youth and Persons with Disabilities | D205: Commission for Gender Equality | E205: The Commission on Gender Equality | F205: Yusuf Mayet | G205: (012) 315 5189 | H205: Yusuf.Mayet@treasury.gov.za | I205: Amanda Mlambo | J205: 0 | K205: Amanda.Mlambo@treasury.gov.za | L205: 1 | M205: 1 | N205: 1 | O205: PE19 | P205: 19 | Q205: CGE | R205: 3 | S205: 202829 | AD205: Vaal-Orange Catchment Management Agency | BY205: Vaal-Orange Catchment Management Agency | CK205: 0 | CL205: Lindi Mzankomo | CM205: Lindi.Mzankomo@treasury.gov.za | CN205: (012) 315 5256
B206: Extra-Budgetary Institution | C206: National Treasury | D206: Cooperatives Banks Development Agency | E206: The Co-operative Banks Development Agency | F206: Mokgatla Tema | G206: (012) 315 5948 | H206: Mokgatla.Tema@treasury.gov.za | I206: Patrick Mbedzi | J206: (012) 315 5912 | K206: Patrick.Mbedzi@treasury.gov.za | L206: 1 | M206: 1 | N206: 3A | O206: PE157 | P206: 157 | Q206: CBDA | R206: 3 | S206: 202829 | AD206: War Museum of the Boer Republics | BY206: War Museum of the Boer Republics | CK206: 1 | CL206: Rhoda Marais | CM206: Rhoda.Marais@treasury.gov.za | CN206: (012) 315 5906
B207: Extra-Budgetary Institution | C207: National Treasury | D207: Financial and Fiscal Commission | E207: The Financial and Fiscal Commission | F207: Mokgatla Tema | G207: (012) 315 5948 | H207: Mokgatla.Tema@treasury.gov.za | I207: Patrick Mbedzi | J207: (012) 315 5912 | K207: Patrick.Mbedzi@treasury.gov.za | L207: 1 | M207: 1 | N207: 1 | O207: PE38 | P207: 38 | Q207: FFC | R207: 3 | S207: 202829 | AD207: Water Research Commission | BY207: Water Research Commission | CK207: 0 | CL207: Rhoda Marais | CM207: Rhoda.Marais@treasury.gov.za | CN207: (012) 315 5906
B208: Extra-Budgetary Institution | C208: Communications and Digital Technologies | D208: Independent Communications Authority of South Africa | E208: The Independent Communications Authority of South Africa | F208: Rezah Atcha | G208: (012) 315 5287 | H208: Rezah.Atcha@treasury.gov.za | I208: Mntazi Msiza | J208: (012) 315 5876 | K208: Mntazi.Msiza@treasury.gov.za | L208: 1 | M208: 1 | N208: 1 | O208: PE47 | P208: 47 | Q208: ICASA | R208: 3 | S208: 202829 | AD208: Wholesale and Retail Sector Education and Training Authority | BY208: Wholesale and Retail Sector Education and Training Authority | CK208: 0 | CL208: Keitumetse Motshegwe | CM208: Keitumetse.Motshegwe@treasury.gov.za | CN208: (012) 395 6750
B209: Extra-Budgetary Institution | C209: Home Affairs | D209: Electoral Commission | E209: The Independent Electoral Commission | F209: Mokgatla Tema | G209: (012) 315 5948 | H209: Mokgatla.Tema@treasury.gov.za | I209: Amanda Mlambo | J209: 0 | K209: Amanda.Mlambo@treasury.gov.za | L209: 1 | M209: 1 | N209: 1 | O209: PE50 | P209: 50 | Q209: IEC | R209: 3 | S209: 202829 | AD209: William Humphreys Art Gallery | BY209: William Humphreys Art Gallery | CK209: 0 | CL209: Charlote Mtubu | CM209: Charlotte.Mntubu@treasury.gov.za | CN209: (012) 315 5800
B210: Extra-Budgetary Institution | C210: Cooperative Governance | D210: Municipal Demarcation Board | E210: The Municipal Demarcation Board | F210: Bongani Daka | G210: (012) 315 5586 | H210: Bongani.Daka@treasury.gov.za | I210: Mntazi Msiza | J210: (012) 315 5876 | K210: Mntazi.Msiza@treasury.gov.za | L210: 1 | M210: 1 | N210: 1 | O210: PE154 | P210: 154 | Q210: MDB | R210: 3 | S210: 202829 | CK210: 0 | CL210: Millicent Mulaudzi | CM210: Millicent.Mulaudzi@treasury.gov.za | CN210: (012) 395 6576
... 31 more rows

Sheet Information
B7: Name of entity | D7: Entity Contact Details
B8: ZWater Boards Consolidation | D8: Compiling officer:
B9: Department | D9: Email:
B10: =Dept -> Water and Sanitation | D10: Telephone number:
B11: Sector PSCC
B12: =Settings!B2 -> Public non-financial corporation | D12: Are the numbers Audited?
B13: PFMA
B14: =Settings!N2 -> 3B | D14: File should be submitted to: | E14: datafilepe@treasury.gov.za
B16: Mandate of the entity
B17: 0
B20: Technical Assistant: | C20: =_xlfn.CONCAT(Settings!I2," ", Settings!J2, " ",Settings!K2) -> Nymrot Sholoko 0 Nymrot.Sholoko@treasury.gov.za
B22: Budget Examiner | D22: Budget Analyst
B23: =Settings!F2 -> Bongani Daka | D23: =Settings!CL1 -> Iqbal Mahomed Alli
B24: =Settings!G2 -> (012) 315 5586 | D24: =Settings!CN1 -> (012) 315 5809
B25: =Settings!H2 -> Bongani.Daka@treasury.gov.za | D25: =Settings!CM1 -> Iqbal.Mahomedalli@treasury.gov.za

Sheet Technical Guidelines
F3: COMPLETING THE PUBLIC ENTITIES' BUDGET TEMPLATE
F5: 1. Purpose of Technical Guidelines • This spreadsheet is designed to assist data compilers in completing the budget template. It provides background information for each sheet and highlights key considerations when preparing budget data. The guidelines also explain any changes made to the template and offer instructions and notes to support accurate completion. This sheet should be read carefully to ensure efficient and correct use of the template.
F7: 2. New changes effected on the template • An “Add/Delete Programme Sheet” button has been introduced on the Information sheet to enable users to add or delete Programme sheets as required. • The “Hide Rows” and “Unhide Rows” buttons located in the top-right corner of the Objectives/Activities and Cash Flow sheets should be used to hide or unhide unused rows. • A table showing year-on-year growth rates for the MTEF years (2027/28 – 2029/30) has been included in the Revenue, Programmes, and Expenditure Summary sheets after the outer year.
F9: 3. Key General Guidelines 3.1 Data Coverage Requirements • All sheets must include audited historical data, current-year budgets, and MTEF projections. • Current year (2026/27) and MTEF data may be revised; outer year (2029/30) must be completed. • Compilers should ensure that they are using the correct template relevant to the specific process, i.e., the MTEF or ENE process, as the template changes for each process. 3.2 Data Integrity and Restrictions • Pre-populated historical data (first year) is locked and may only be amended if restated. • Only dark blue-shaded fields must be completed. • White cells are formula-driven and must not be overwritten. • Revenue, Objectives, Cash Flow, Financial Position and infrastructure are prepopulated with data submitted in the previous budget process. 3.3 Use of Template and Input Controls • Light blue cells contain drop-down lists and must be used accordingly; avoid copy-paste where possible. • Column G in the Revenue, Cash Flow and Financial Position sheets contains hyperlinks to definitions for reference. • The Hide and Unhide Rows buttons are to be used to hide unused rows or unhide rows. 3.4 Compliance with PFMA and Budget Rules • Schedule 3A entities may not budget for deficits without prior approval; non-compliance will be queried.
F11: 3.5 Financial Statement Linkages and Consistency • Accumulated surplus/deficit line in the current year should reflect the increment or depletion of the balance by the surplus or deficit made by the entity in the Income Statement. • Cash and cash equivalents must align with movements reflected in the Cash Flow Statement. • Projections of interest revenue and interest expenses should be in line with the trends shown on projections for Investments/Cash and cash equivalents and Borrowings respectively.
F13: 3.6 Trends Analysis and Reporting Requirements • All highlighted trends in the Trends Analysis sheet must be explained, in detail, in Column O. • All highlighted trends in the CashFlowDiff sheet must be explained, in detail, in Column P. • Failure to provide detailed explanations will result in follow-up queries.
F15: 4. Information sheet • The purpose of this sheet is for the compiler to provide National Treasury with their contact details and to verify that the entity’s name is correct. The contact details of compilers are used for ease of reference when there are queries in the database. Also contained on this sheet are the contact details of the Treasury's Budget Examiner and Budget Analyst who should be contacted with regards to budget allocation issues and the Technical Assistant who should be contacted with regards to technical related matters.
F17: 5. Economic Definitions • This sheet contains definitions of the economic classifications used in the template. These definitions are hyperlinked from the relevant sheets and assist in correctly classifying each financial item.
F19: The Purple Tabs - financial data sheets
F20: • Purple sheets consist of Statement of Financial Performance, Statement of Cashflow, Statement of Financial Position, Related Party Transfers, Personnel, Infrastructure and ODA. The Statement of Financial Performance is divided into a revenue sheet and programme sheets. The programme sheets (from Admin to Sheet 15) reflect the expenditure portion of the Statement of Financial Performance. Additional programme sheets can be added using the “Add Programme Sheet” button on the Information Sheet. Performance indicator tables are included at the top of each sheet. Details of the split are provided below.
F22: 6. Revenue • The Revenue Sheet reflects the income portion of the Statement of Financial Performance and is presented separately from the expenditure section. It is prepopulated with available and historical information, which entities are required to review, update, and verify. Historical figures must be updated and aligned with those reported in the Annual Report. • Entities must also capture the Annual Report figures in row 71. Note the checks at the bottom of the sheet, which compare the surplus/(deficit) (total revenue less total expenditure) with the figures reported in the Annual Report to ensure full reconciliation. • Schedule 3A entities may not budget for deficits without prior approval; non-compliance will be queried Only the blue-shaded areas should be completed; the white cells are not for input.
F24: 7. Admin The Admin Sheet, also referred to as Programme 1 of the entity, should be used to capture only information related to the Administration objective. The Administration programme (objective) should include the following: • Entity Management which includes the salary, allowances and other support costs of the Board and the CEO and the management of the CEO’s office and the Board. • Corporate Services that include all costs related to staff in Human Resources, Legal Services, Communications, Information Technology and Other support services (based on the entity’s decision). • Finance, Administration which are all costs related to staff in Finance including the CFO and the management of the Office of the Chief Financial Officer. • Internal Audit recognising that the reporting channel for the Head of Internal Audit is not through the CFO but directly to the CEO. • Office Accommodation which includes activities and costs relating to the provision of office accommodation functions for the entity. Where office accommodation functions relating to other specific programmes of the entity can be identified, they should be assigned to the relevant programme. • Residential accommodation that includes activities and costs relating to the provision of housing to employees of the entity. (Note: This does not include the residential benefits of the Accounting Authority). Source: Guidelines on Budget Programmes (National Treasury. 2010.) Content has been amended to suit public entities The first table to be completed on this sheet is the Performance Indicators table. Only performance indicators related to the Administration programme of the entity should be included. In column Q (cells Q11–Q25), a dropdown list is provided for each programme/activity, where the entity must indicate whether the performance indicators should be included in the “PerformInfoPub” table. Any new performance indicators in the APPs, as well as changes to existing indicators, must be communicated to the Budget Examiners before being included in this template. The second table provides a detailed breakdown of expenditure related to the Administration programme by economic classification. Entities are required to update the sheet with all expenses relating to the Administration programme and verify that historical figures align with those reported in the Annual Report, and the totals for all programmes should reconcile with the total expenditure reflected for the objective. Cells F45–F97 contain a detailed list of goods and services.
F25: Please note there is conditional formatting to monitor the completion of the outer year. If the outer year is not fully completed, the total will be highlighted in Orange. The compiler is advised to fully complete the outer year.
F27: 8. Programmes
F28: • Additional programmes should follow the same structure as the Admin sheet. They should include the entity’s programmes or activities (starting from row 37 on each sheet) as well as the corresponding performance indicators (rows 11 to 25) for each objective or activity. The name of each programme or activity should be captured in cell F37. No checks should be reflected in row 142.
F29: • An “Add/Delete Programme Sheet” button has been introduced on the Information sheet to enable users to add or delete Programme sheets as required. Entities will only be allowed to add additional Programme sheets once all preceding sheets have been completed with data, and Programme sheets may only be deleted if no data has been captured on them. If entities experience difficulties deleting sheets, they are advised to first clear all data from the relevant sheet before attempting deletion.
F31: 9 .Cash Flow (Direct method)
F32: • This sheet reflects the direct method of cash flow and is prepopulated with available information. Entities are required to review, update, and complete all relevant fields.
F34: • The entity must first provide a detailed breakdown of all cash flow activities. These amounts must align with those reported in the Annual Report and be verified against the underlying balances.
F36: • The entity must then capture the figures from the Annual Report in the cells provided in row 220.
F38: • The checks in row 221 must be used to confirm that the figures captured reconcile with those in row 216. The entity must ensure full alignment with the Annual Report.
F40: 10. CF_Diff Sheets • These sheets reflect the differences between cash flow figures in the current budget process and those reported in the previous year’s budget process. • Entities are required to review all identified variances, which are highlighted in red or green in accordance with the legend. Explanations for these variances must be provided in Column P. • The legend explains the colour coding used in the sheet and highlights trends or variances that may require attention. All highlighted items must be carefully reviewed and adequately explained. • Explanations should clearly identify the underlying drivers of changes. Where multiple changes are reflected across different financial years within a single row, each change must be explained separately to ensure a complete understanding of the movements
F42: 11. Trends Analysis • This sheet reflects only the growth trends of the Cash Flow Statement. Entities are required to review all highlighted percentage changes and provide explanations in Column O. • Where more than one year-on-year (YoY) growth rate is highlighted in a row, entities must provide comprehensive explanations covering all highlighted changes. • A legend is provided to explain the colour coding used in the sheet. Highlighted percentages indicate trends that may require attention, particularly where growth or decline deviates significantly from expected or average patterns (e.g. abnormal increases or decreases in goods and services). Entities are encouraged to carefully review this sheet as part of monitoring trends in their budget submissions. • Explanations should clearly identify the underlying drivers of each highlighted year-on-year change. Where multiple financial years are affected within a single row, each change must be explained separately to ensure a complete and accurate understanding of the movements.
F43: 12. Financial Position • This sheet reflects the assets, liabilities, and equity of the entity and is prepopulated with available information. Entities are required to update the sheet and verify that historical figures align with those reported in the Annual Report. • The entity must capture the Annual Report figures in row 107. The checks in rows 108–109 must be used to confirm that the statement balances and that all figures reconcile.
F45: 13. Related Party Transfers • This sheet provides a detailed breakdown of transfers (both receipts and payments) reflected in the Cash Flow Sheet for “Other National Departments”, “Departmental Agencies and Accounts”, and “Provincial Departments.” These correspond to the entries captured in rows 35, 42, 43, 124, 125, 126, 135, 136, and 137 of the Cash Flow Sheet. • The sheet may contain hidden rows depending on the entity. Entities must ensure that all relevant rows are completed where applicable. • The checks in rows 367–369 and 373–375 must be used to confirm that the information captured on this sheet aligns with the corresponding balances in the Cash Flow Sheet. The entity must ensure that all figures reconcile.
F47: 14. Related Party Revenue • This sheet is used to record all related-party revenue arising from the sale of goods and services, excluding transfer receipts from government institutions. It applies only where the entity has a business relationship with a government institution and receives payment for goods and/or services provided. Transactions with municipalities are excluded from this sheet, as Local Government is not yet included in the government consolidated account. The compiler must use the drop-down list to select the appropriate categories in this sheet and must not copy and paste data into other areas of the sheet. • In column H, the entity must specify the exact transaction that generated the related-party revenue by selecting the appropriate item from the drop-down list. This involves indicating what was sold to the other government unit in exchange for the revenue received, for example, computer services.
F49: 15. Personnel
F50: • The personnel sheet should be used to record all costs relating to employees of the entity. Guidelines for completing this sheet are provided in the main budget guideline, which outlines the overall budget objectives and key considerations for compiling budgets over the MTEF. Entities are encouraged to carefully review the main guidelines.
F52: • Expenditure on compensation must reconcile to the total compensation reported in the ENE Summary. Finance and HR officials should collaborate to ensure accuracy and completeness of this sheet.
F54: • All blue-shaded columns must be completed, and the light blue dropdown lists must be used to select the relevant items.
F56: • Outstanding checks in row 1502 must be resolved. Ensure that the expenditure in row 1500 aligns with the ENE Summary in row 48.
F58: Definitions
F59: Approved Establishment - refers to the number of employment positions approved by the entity's Executive Authority.
F60: Funded Establishment - refers to the number of employment positions for which provision is made in the budget.
F61: Permanent refers to employees with work contracts of unlimited duration.
F62: Temporary/Contract refers to employees who are employed for a fixed period of time (e.g. 6 months, 2 years, etc.)
F63: Guaranteed Package refers to the total of fixed and regular income/benefit items and employer contributions (if any) to Employee Benefit Funds (Retirement, Medical and Group Life). (i.e., Fixed Pay)
F64: Performance Bonus refers to the additional compensation paid to an employee for performance that exceeds expectations. This is typically awarded after a performance appraisal and analysis of projects completed by the employee over a specific period of time. (i.e. Variable Pay)
F65: Other (components of remuneration) refers to the Total Cost to Company less Guaranteed Package less Performance Bonus. E.g. overtime payments (i.e. Variable Pay).
F67: STEPS TO BE FOLLOWED
F68: Column F (Category) - Select the relevant option (whether permanent or temporary/contract - as per definitions above) for a certain group of employees belonging to the salary level in Column G.
F69: Column G (Salary Level) - Select the relevant salary level starting with the lowest.
F70: Column I (Occupation) - Select the occupation which best describes the officials in the salary level that you have selected. The intention is to assess the type of skills that the organisation has and not necessarily the functional job titles of individual employees. If none is relevant, then specify the relevant occupation by selecting “other” and thereafter typing it in.
F71: Column J (Components of Remuneration) - Select the relevant component of remuneration, starting with the Guaranteed Package followed by the Performance Bonus and then Other (as per definitions above).
F72: Column K (Number of posts filled on funded establishment) - Include only the number of posts that were filled and funded in the approved establishment.
F73: Column L (Expenditure on posts filled on funded establishment) - Include the expenditure on the above-mentioned posts.
F74: Column M (Unit costs) - Unit costs of the above-mentioned posts. This column is formula driven.
F75: Column N (Number of posts on approved establishment) – This includes both filled and vacant posts and may or may not be funded. This is as approved by the Entity’s Executive Authority.
F76: Column O (Number of funded posts (establishment) – This is a projection from April 2026 to end of March 2027 and includes both filled and vacant posts which are funded.
F77: Column P (Number of posts filled on funded establishment) - This is a projection of posts that will be filled by the end of March 2027 on the funded establishment.
F78: Column Q (Expenditure on posts filled on funded establishment) - Expenditure on the above-mentioned posts.
F79: Column R (Unit costs) - Unit costs of the above-mentioned posts. This column is formula driven.
F80: Columns S to AA - Projections over the MTEF.
F82: Check line:
F83: All figures must be rounded to the nearest thousand and there should be no decimals. Ensure that the CHECKS row shows a dash for each of the financial years. If not, look for errors in the captured data - there may be decimals in the figures or some other error.
F85: 16. Expend Summary
F86: • The Expenditure summary sheet is formula driven and contains all expenditure from all programmes that the entity would have completed. This is where the entity can verify if its budget is allocated appropriately in the different programmes to sum the total budget allocated and to check the status of its expenditure in total.
F88: • All the red checks in row 142 should balance and where they do not, reference should be made back to the individual programmes to check where the problem could be arising from.
F90: 17. ENE Summary
F91: • This sheet summarises all inputs from different sheets in preparation for publication. The first table is where the different programmes are summarised and the check on row 28 checks that the total programmes equals the total expenditure on row 55.
F93: • The second table is the Statement of Financial Performance having combined the inputs in the Revenue sheet and those in the completed programmes to complete the statement.
F95: • The next two tables are of the summary of Cash flow statement and the Financial Position statement as have been completed on their respective sheets. • The final table is that which shows the financial performance of the entity by means of ratios. This indicates how well the entity is performing over the years.
F97: 18. Personnel Pub
F98: • This sheet is formula-driven and summarises the personnel information captured in the Personnel sheet for publication. If there are outstanding checks on row 46, these should be resolved by mapping or remapping (if items not on the drop downlist incorrectly used) cells in columns F to J in the Personnel sheet, ensuring that only values from the provided dropdown lists are used.
F100: 19. Personnel Trends
F101: • This sheet is formula-driven and reflects trends in personnel information based on data captured in the Personnel sheet. Entities are required to complete trend explanations for the highlighted personnel trends. Personnel trends with percentage increases and decreases above 10% for headcounts and above 8% for Unit costs must be explained in the trends explanation column (Column O) of the same sheet.
F103: 20. Perform Info Pub
F104: • The PerformInfoPub (Performance Information Pub) sheet is formula-driven and summarises all the performance indicators reflected on the different objectives. This sheet displays only the indicators that the entity marked for publication by selecting “Yes” in column Q for each programme. It represents the final set of indicators that are published in the ENE/ MTEC publication.
F106: 21. Infrastructure
F107: • This sheet is to be completed only by entities that are involved in infrastructure projects. The project name, description, stage, cost and all other required information should be provided to ensure completeness. The entity should select the type of project in the options provided in cell I2 to cell I4. The sheet is prepopulated with the prior year’s numbers.
F109: 22. Official Development Assistance (ODA):
F110: This sheet is used to capture official development assistance received from various development partners. For the purposes of completing the ODA sheet, ODA is limited to grants (including donations) from international development partners used to fund programmes, projects, or other initiatives of the public entity.
F112: The following columns must be completed:
F113: • Partner (Country): The foreign country from which the funds originate.
F114: • Partner (Institution): The name of the foreign government department or agency.
F115: • Programme/Project: The programme or project as it appears in the allocation letter, notice of award, or agreement with the partner institution.
F116: • Total Commitment (Amount): The total funds committed by the partner institution to the programme or project, denominated in the relevant currency, as per the allocation letter, notice of award, or agreement.
F117: • Currency: Select the currency of the institution providing the funds from the dropdown list.
F118: • Budget Receipts: The budgeted receipts for the financial year, in Rands.
F119: • Budget Payments: The budgeted payments for the financial year, in Rands.
F120: • YTD Payments / Payments: Payments made by the entity, in Rands.
F121: • YTD Receipts / Receipts: Funds received by the entity from the partner institution, in Rands.
F123: When done completing the budget template
F125: 23. Checks
F126: • This sheet should be visited once all sheets have been completed to check and verify that all checks built on the template have balanced. It highlights any area where a check should have been balanced in a specific sheet and in a case where a check is not balanced, the compiler needs to re-visit the relevant sheet and make corrections to clear the errors. Should an entity submit the template with any of the checks unbalanced, a query will be raised. • The entity is urged to attend to all checks in template and ensure that there are no checks and all relevant sheets are balancing.
F128: • The table in row 49 to 55 checks against incompleteness of the outer year. The compiler needs to re-visit the relevant sheets and make corrections to clear the checks where applicable.
F130: 24. Sign-Off sheet
F131: • Click on the "create pdf sign off" button in cell E9 and print out the sign off page.
F132: • Ensure that you sign on the signature space, scan and email the document along with the budget planning baseline tool.
F134: 25. List of abbreviations:
F135: • MTEF – Medium term expenditure framework
F136: • ENE – Estimates of National Expenditure
F137: • APP – Annual Performance Plan
F138: • ODA– Official Development Assistance
F139: • PFMA – Public Finance Management Act
D322: Budget approved by the board.

Sheet Economic Definitions
F1: ECONOMIC DEFINITIONS
F3: NOTES | H3: ITEMS | I3: DEFINITIONS | J3: EXAMPLES
F4: 1 | H4: Tax receipts | I4: A tax receipt is defined as compulsory, unrequited revenue collected by an entity. Taxes are compulsory because the other party is required by statutory provision to pay taxes in certain circumstances and under certain conditions. Taxes are unrequited in the sense that government does not provide anything directly in return to the party making the tax payment. Not all compulsory, unrequited receipts are recorded as taxes. Excluded are; Fines, penalties and forfeits_ also compulsory, unrequited receipts, but are recorded separately from taxes. Fines, penalties and forfeits are distinguished from taxes by that they are as a result of a volation of a law or administrative rules, while taxes are an implementation of a law. Transfers received_ also unrequited receipts by government but not considered taxes. Taxes are distinguished from transfers received because taxes are compulsory and transfers received are voluntary. [Guidelines for implementing the New Economic Reporting Format] Social (security) contributions_ payments earmarked for unfunded social security schemes, e.g. UIF, that provide benefits other than retirement benefits. These are recorded separately from taxes. | J4: *Casino taxes *Motorvehicle licences tax *Liquor licences tax *Horse racing taxes
F6: 2 | H6: Sales of goods and services: non capital assets | I6: The category consists of all sales by public entities provided that the entity has produced the good or service. It is important to note that sales of capital assets are never included under this category, but under sales of capital assets. Thus, sales of capital assets are excluded from this category even if they have been produced by a public entity. Revenue from ownership of building and fixed structures - rentals - is included in this category. This is because revenue from ownership of buildings implies the provision of a service in the form of maintenance and repair. In contrast, revenue from ownership of land is more passive and is therefore not considered a sale. To note; Revenue from ownership of buildings must be distinguished from revenue from ownership of land and sub-soil assets; the latter is classified as rent of land, which is a separate revenue category. | J6: *Sale of goods and services produced by an entity *Sales: Scrap, Waste, Other goods
F8: 3 | H8: Sale of goods and services produced by an entity | I8: This category consists of sales by entities, provided that the entity produced the goods or services. | J8: *Administrative fees *Sales by market establishments *Other sales
F10: 4 | H10: Administrative fees | I10: This item consists of revenue collected for sales of regulatory or administrative services, and is sometimes referred to as license fees. In this category, government must exercise a regulatory or administrative function. For example, it may verify the competence of a licence holder. Classification provided for under this category includes licence or permits, registration fees and inspection fees (e.g. brands, and travel documents). Note: Regarding license fees, the government should be providing a service to the remitter of this fee, e.g. the use of government-owned land by hunters; otherwise the fee is classified as a tax on goods and services | J10: *Licences/Permits Fees *Registration *Request for information *Inspection fees
F12: 5 | H12: Sales by market establishments | I12: When a public entity sells goods or services at market related prices the transactions should be recorded here. Examples are rent from buildings and equipment charged at the prevailing market prices. Example; rental of produced assets are treated as sales of services and diamond sales are treated as sales of goods. Market prices are prices economically significant enough to influence supply and demand of a good or service. The easiest benchmark is the prevailing price in the private market. | J12: *RENTAL ON BUILDINGS *Rental machinery and equipment *Ticket sales *Research services *Advertising services
F14: 6 | H14: Other sales | I14: This item includes money received from the sale of all other goods and services produces or partially produced by an entity. To be part of this category, the fee charges must be below prices prevailing in the private market. User charges at below market prices are included for example hospital fees, as well as park and museum fees. Examples are rentals of buildings and machinery, as well as hospital, park and museum fees. Sales of seeds and livestock produced by public entities are considered other sales. Sales of items purchased from another economic unit and then resold should also be included under this item; an example would be a postcard sold by a museum. | J14: SERVICES RENDERED: *Health services *Exam certificates * Police service SALES OF GOODS: *Tender documents *Pharmaceutical *Water
F16: 7 | H16: Sales: Scrap, Waste, Other goods | I16: This item includes sales of all items that are not considered capital assets and not produced by entity e.g. used arms sold by the Department of Defence. | J16: *Sales: Scrap and waste *Selling arms and arms support systems
F18: 8 | H18: Transfers Received | I18: This item consists of all unrequited receipts voluntarily given by other parties. Thus, an entry should be made under this item when a public entity does not give a service or good directly in return for the transfer from the other party and the transfer is voluntary. | J18: Transfers Received This item consists of all unrequited receipts voluntarily given by other parties. Thus, an entry should be made under this item when a public entity does not give a service or good directly in return for the transfer from the other party and the transfer is voluntary. Included are; Grants (Not identified as grants in our format) which are voluntary transfers received by a government unit from either another government unit, foreign governments or an international organisation, Social contributions_ payments earmarked for social security agencies and Other transfers (not identified as other transfers in our format)_ gifts and donations from sources other than government units and international organisations. Excluded are; All payments made by government departments or other government units for services provided by the entity. These are sales of goods and services. E.g. if DTI commissions CSIR for some research project and pay for this, this should be rightly classified as Sales.
F20: 9 | H20: Other Government Units | I20: Money received from other governmental units either as a current or capital transfer. | J20: (Not identified as grants in our format) which are voluntary transfers received by a government unit from either another government unit, foreign governments or an international organisation.
F22: 10 | H22: National government units | I22: Money received from national departments either as a current or capital transfer. | J22: Voluntary transfers received by a government unit from either another government unit, foreign governments or an international organisation.
F24: 11 | H24: Departmental Transfers | J24: Voluntary transfers received by a government unit from either another government unit, foreign governments or an international organisation.
F26: 12 | H26: Other National Departments | J26: Voluntary transfers received by a government unit from either another government unit, foreign governments or an international organisation.
F28: 13 | H28: Departmental agencies and accounts | I28: Money received from departmental agencies either as a current or capital transfer.
F30: 14 | H30: Provincial department | I30: Money received from provincial government as a current or capital transfer.
F32: 15 | H32: Local Governments | I32: Money received from local governments (municipalities or municipal entities) either as a current or capital transfer.
F34: 16 | H34: Higher education institutions | I34: Current and capital transfers received from Higher Education Institutions, deemed to be established or declared as a Technicon or University under the Higher Education Act of 1997. | J34: *(Not identified as other transfers in our format)_ gifts and donations from sources other than government units and international organisations.
F36: 17 | H36: Foreign government and international organisations | I36: Capital and current transfers received from foreign governments. | J36: *(Not identified as grants in our format) which are voluntary transfers received by a government unit from either another government unit, foreign governments or an international organisation.
F38: 18 | H38: Local non-government donors | I38: Donations received from public corporations or private enterprises. | J38: *(Not identified as other transfers in our format)_gifts and donations from sources other than government units and international organisations.
F40: 19 | H40: Fines, penalties and forfeits | I40: This item consists of all compulsory receipts imposed by a court or quasi-judicial body. Out-of-court settlements are also included in this category. As with taxes, this item consists of unrequited, compulsory transactions. Thus, the recipient public entity does not provide anything in return for these receipts. | J40: *Consumer courts fines, courts fines, traffic fines, criminal offence plea&snt fine
F42: 20 | H42: Interest and rent on land | I42: This item consist of the income associated with ownership of interest-bearing financial instruments, such as bank deposits, loans extended to others, and bills and bonds issued by others. A dividend is a sum of money paid regularly (typically annually) by a company to its shareholders out of its profits (or reserves). Rent on land consists of economic rent, interest on capital invested for improvement of land, and reward for the risk taken by the landlord in investing his or her capital. | J42: *Land, Prospecting fees, retension fees, royalties, surface rental
F44: 21 | H44: Interest | I44: This item consist of the income associated with ownership of interest-bearing financial instruments, such as bank deposits, loans extended to others, and bills and bonds issued by others. | J44: *Bank deposits, loans extended to others, and bills and bonds issued by others.
F46: 22 | H46: Dividends | I46: A dividend is a distribution of money or property paid by a corporation out of the corporation's profits to shareholders. Government units are not payers of dividends as a rule. Exceptions may be public corporations. | J46: *Shares and other equity
F48: 23 | H48: Rent on land | I48: The item consists of the money received due to ownership of land. This item also includes all revenue due to ownership of sub-soil assets and other commercially exploitable naturally occurring assets such as virgin forests, game and fisheries. | J48: *Land, Prospecting fees, retension fees, royalties, surface rental
F50: 24 | H50: Unclassified revenue | I50: All revenue items that could not be classified above. Please make sure that the items are clearly specified, i.e. we will not accept "other" as a specification. This is so that we can then classify the revenue in one of the classes given.. Out-of-court settlements are also included in this category. As with taxes, this item consists of unrequited, compulsory transactions. Thus, the recipient public entity does not provide anything in return for these receipts. | J50: *All other revenue items that could not be classified above.
F52: 25 | H52: Tax benefit | I52: A tax benefit is an allowable deduction on a tax return intended to reduce a taxpayer's burden while typically supporting certain types of commercial activity. A tax benefit allows some type of adjustment benefiting a taxpayer's tax liability. | J52: *Tax deductions, credits, and exclusions are benefits that reduce the amount taxpayers owe annually to federal and state governments. Tax shelters are another form of tax benefit that can help to lower taxes through special investments.
F54: 26 | H54: Outside Shareholder's interest | I54: Outside shareholders have no links with the company but have a financial interest in its operating performance
F56: 27 | H56: Compensation of employees | I56: Compensation of employees includes remuneration in cash, including social contributions by employers. Specifically included are basic wages and salaries, overtime, remuneration for nightshift, cost of living allowances, transport, house allowances, bonuses.
F58: 28 | H58: Salaries and wages | I58: This item includes payments to employees, except social contributions. Social contributions are recorded separately. The item, salaries and wages, includes:Salaries or wages payable at regular weekly, monthly or other intervals. Remuneration to staff members employed on a contractual basis is included, provided that these staff members are paid at regular intervals and that they are listed on the government payroll. This also includes payments by results and piecework payments; enhanced payments or special allowances for working overtime, at nights, at weekends or other unusual hours; allowances for working away from home or in disagreeable or hazardous circumstances; and expatriation allowances for working abroad; Supplementary allowances payable regularly, such as housing allowances or allowances to cover the costs of travel to and from work. Salaries or wages payable to employees away from work for short periods, for example, on holiday; Ad hoc bonuses or other exceptional payments made, for example, under incentive schemes. Salaries and wages include the values of any social contributions, income taxes, etc., payable by the employee. This applies even if they are compulsory or withheld by the employer for administrative convenience or other reasons and paid directly to social insurance funds, tax authorities, etc., on behalf of the employee. For example, employees’ contributions to pension funds and medical aid are included in salaries and wages. The item, salaries and wages, does not include: Reimbursements of costs incurred by employees on tools, equipment, uniforms and other items that are needed to enable them to carry out their work. For example, uniforms provided to police officers are not compensation of employees, but use of goods and services. Uniform allowances are classified as use of goods and services if the employee is required to use the funds to purchase a uniform that will mainly be used at work; Relocation costs reimbursement _costs incurred by employees when they take up new jobs or are required by their employers to move their homes, for example, travel and moving expense; Payments for travel and subsistence while on government duty away from duty station. Per Diem and out-of-town allowances fall under this category; Purchases of services provided by people who are not government employees, for example, consultants, architects and occasional workers. The above four items should be classified under use of goods and services Social benefits to employees. These can be in the form of allowances made for accidental injury, severance and incapacity pay. Allowances to employees’ dependants are also considered social benefits. In most cases, payments falling under this category are made from a social insurance fund. Payments to employees or former employees that are not remuneration for work The above two items should be classified under transfers to households, social benefits This item includes payments to employees, except social contributions. Social contributions are recorded separately. The item, salaries and wages, includes: Salaries or wages payable at regular weekly, monthly or other intervals. Remuneration to staff members employed on a contractual basis is included, provided that these staff members are paid at regular intervals and that they are listed on the government payroll. This also includes payments by results and piecework payments; enhanced payments or special allowances for working overtime, at nights, at weekends or other unusual hours; allowances for working away from home or in disagreeable or hazardous circumstances; and expatriation allowances for working abroad; Supplementary allowances payable regularly, such as housing allowances or allowances to cover the costs of travel to and from work. Salaries or wages payable to employees away from work for short periods, for example, on holiday; Ad hoc bonuses or other exceptional payments made, for example, under incentive schemes. Salaries and wages include the values of any social contributions, income taxes, etc., payable by the employee. This applies even if they are compulsory or withheld by the employer for administrative convenience or other reasons and paid directly to social insurance funds, tax authorities, etc., on behalf of the employee. For example, employees’ contributions to pension funds and medical aid are included in salaries and wages. The item, salaries and wages, does not include: Reimbursements of costs incurred by employees on tools, equipment, uniforms and other items that are needed to enable them to carry out their work. For example, uniforms provided to police officers are not compensation of employees, but use of goods and services. Uniform allowances are classified as use of goods and services if the employee is required to use the funds to purchase a uniform that will mainly be used at work; Relocation costs reimbursement _costs incurred by employees when they take up new jobs or are required by their employers to move their homes, for example, travel and moving expense; Payments for travel and subsistence while on government duty away from duty station. Per Diem and out-of-town allowances fall under this category; Purchases of services provided by people who are not government employees, for example, consultants, architects and occasional workers. The above four items should be classified under use of goods and services Social benefits to employees. These can be in the form of allowances made for accidental injury, severance and incapacity pay. Allowances to employees’ dependants are also considered social benefits. In most cases, payments falling under this category are made from a social insurance fund. Payments to employees or former employees that are not remuneration for work The above two items should be classified under transfers to households, social benefits
F60: 29 | H60: Social contributions | I60: This item includes the government’s contribution (but not the employees’ contribution) to social insurance schemes paid on behalf of employees.
F62: 30 | H62: Administrative fees: Payments | I62: An expense incurred in controlling and directing an organization, but not directly identifiable with financing, marketing, or production operations. | J62: *Accredition fees *Appeals fees *Bank charges and card fees *Copy right fees *Firearm handling fees *Licence agency fees *Management/ Handling fees *Personnel agency fees *Registration fees *System access & information fees *Travel agency fees
F64: 31 | H64: Advertising | I64: Costs of the specific formulation and publication of notices to attract prospective service providers and suppliers, promote government activities and/or projects or for filling of vacant positions. Advertising media includes television, radio, movies, magazines, newspapers, video games, internet, billboards. | J64: *Advertising: Auctions *Advertising: Bursaries (Non-employees) *Advertising: Marketing *Advertising: Promotional items *Advertising: Public notices *Advertising: Recruitment *Advertising: Tenders
F66: 32 | H66: Minor assets | I66: This asset category includes machinery and equipment, furniture and computer hardware costing less than R5 000/capitalisation threshold. These assets can be used continuously or repeatedly in production for at least one year. They are treated as current payments and not capitalised.
F68: 33 | H68: Audit cost: external | I68: This item refers to external/ regulatory audits, conducted by the Auditor-General or Private Auditing companies in SA, whereby the audit provides an independent opinion on published information. This is different from internal auditors who do not attest to financial reports but focus mainly on the internal controls of the organization. | J68: *Regularity *External computer audits *External environmental audits *External forensic investigation *External performance audit
F70: 34 | H70: Bursaries (Employees) | I70: Bursaries include payments made to provide direct support to employees for studying at universities or other tertiary institutions, where all the conditions and terms have been complied with in terms of the contract with the bursary holder. Direct support could include fees, text books and other aids and accommodation at the university residence.
F72: 35 | H72: Catering: Internal activities | I72: Expenditure incurred on individuals employed or contracted to the public entity or individuals outside the employ of the public entity, in connection with the activities of a entity, or division within the entity, that directly relates to the achievement of its objectives. | J72: *Catering for conferences, bosberade, workshops, indabas, courses, forums, hearings and meetings held with the intention to discuss the entity’s initiatives; *Catering for a function for the launching/roll-out of an product of the department or division within a department *Catering for interviews or training sessions; *Dinner and drinks supplied at year-end functions; *Eatery provided for members of standing boards, other government bodies and official commissions or committees of enquiry.
F74: 36 | H74: Communication | I74: Payments for the usage of telephones, faxes, telegraphs and telex for communication purposes, including costs for teleconferences. Communication by telephones and faxes includes the sending of messages electronically i.e. the sending of a message, image or document via a fax machine or a telephone or cellular phone. Telex is a communications system using teleprinters that communicate via telephone lines. Teleconference is a meeting via telecommunications equipment: a meeting held among people in different places by means of telecommunications equipment. Telecommunication equipment includes phones, faxes, telegraphs and telex excluding cellular phones refer to "Communication: Cell contract (Subscription and calls). Rental of equipment defined as operating or finance leases should be allocated under the item provided for leases. | J74: *Communication: Airtime and data *Communication: Postage/stamps/franking machines *Communication: Radio and tv transmissions *Communication: Rent private bag and postal box *Communication: Satellite signals *Communication: Telephone, fax, telegraph and telex *Communication: Telephone installation
F76: 37 | H76: Computer services | I76: Expenditure for the utilisation of information technology, information systems and related services provided by an external service provider. | J76: *SITA computer services *External computer services: Data lines *External computer services: Information services *External computer services: Internet charge *External computer services: Mainframe time *External computer services: Software licences *External computer services: Specialised computer services *External computer services: System adviser *External computer services: System development *External computer services: Website design and development
F78: 38 | H78: Consultants: Business and advisory services | I78: Consulting services refer to specialist services and skills provided that are required for the achievement of a specific objective, with the aim of providing expert and professional advise on a time and material basis. It is unnecessary to maintain these skills in-house, since they are required on a once-off or temporary basis. Therefore a consultant is a professional person appointed by the department to provide technical and specialist advise or to assist with he design and implementation of specific projects/programs. The legal status of this person can be an individual, a partnership or a corporation. The fact that a consultant is defined as a professional person implies that the consultant is professionally qualified. The provision of advise or service is in line with a contractual arrangement. Remuneration is usually based on an hourly fee or a fixed fee for a product/deliverable. | J78: *Consultants: Business and advisory services: Accountants and auditors *Consultants: Business and advisory services: Audit committee (non-officials) *Consultants: Business and advisory services: Board members *Consultants: Business and advisory services: Commissions and committees of enquiry *Consultants: Business and advisory services: Communications strategy *Consultants: Business and advisory services: Business management *Consultants: Business and advisory services: Human resource *Consultants: Business and advisory services: Occupational safety and health *Consultants: Business and advisory services: Organisational *Consultants: Business and advisory services: Project management *Consultants: Business and advisory services: Quality control inspectorate *Consultants: Business and advisory services: Qualification verification *Consultants: Business and advisory services: Research and advisory services *Consultants: Business and advisory services: Translations and transcriptions *Consultants: Business and advisory services: Valuer
F80: 39 | H80: Infrastructure and planning services | I80: This group of professional service providers refers to qualified infrastructure and planning professional services. These are specialised services which require expert and professional advice on a time and material basis for the achievement of specific objectives. It is unnecessary to maintain these skills in-house, since they are required on a once-off or temporary basis. This professional person(s) is appointed by the department to provide technical and expert advice or to assist with the design and implementation of specific projects/programmes. The legal status of this person can be an individual, a partnership or a corporation. The provision of advice or service should be in line with a contractual arrangement. | J80: *Infrastructure and planning services: Engineering *Infrastructure and planning services: Agriculture services *Infrastructure and planning services: Architectural services *Infrastructure and planning services: Ecological services *Infrastructure and planning services: Geodetic and control survey services *Infrastructure and planning services: Geoinformatic services *Infrastructure and planning services: Geologist services *Infrastructure and planning services: Landscape designer services *Infrastructure and planning services: Land and quantity surveyors services *Infrastructure and planning services: Town planner services *Maintenance and repairs: buildings: consultants *Maintenance and repairs: other fixed structures: consultants
F82: 40 | H82: Maintenance and repairs: Buildings: Consultants | I82: The costs incurred to bring an asset back to an earlier condition or to keep the asset operating at its present condition (as opposed to improving the asset). For example, if a building is damaged, the cost to repair the damage is immediately debited to repairs and maintenance expense. | J82: *Maintenance and repairs: Buildings: Consultants: Architectural services *Maintenance and repairs: Buildings: Consultants: Engineering civil services *Maintenance and repairs: Buildings: Consultants: Engineering electrical services *Maintenance and repairs: Buildings: Consultants: Engineering mechanical services *Maintenance and repairs: Buildings: Consultants: Engineers structural services *Maintenance and repairs: Buildings: Consultants: Health and safety officers *Maintenance and repairs: Buildings: Consultants: Land and quantity surveyors services *Maintenance and repairs: Buildings: Consultants: Engineering structural services
F84: 41 | H84: Maintenance and repairs: Other fixed structures: Consultants | I84: The costs incurred to bring an asset back to an earlier condition or to keep the asset operating at its present condition (as opposed to improving the asset). For example, if a company truck is damaged, the cost to repair the damage is immediately debited to repairs and maintenance expense. | J84: *Maintenance and repairs: Other fixed structures: Consultants: Architectural services *Maintenance and repairs: Other fixed structures: Consultants: Engineers structural services *Maintenance and repairs: Other fixed structures: Consultants: Engineering civil services *Maintenance and repairs: Other fixed structures: Consultants: Engineering electrical services *Maintenance and repairs: Other fixed structures: Consultants: Engineering mechanical services *Maintenance and repairs: Other fixed structures: Consultants: Health and safety *Maintenance and repairs: Other fixed structures: Consultants: Land and quantity surveyors services *Maintenance and repairs: Other fixed structures: Consultants: Engineering structural services
F86: 42 | H86: Laboratory services | I86: Payments specifically related to laboratory services. This item include the cost associated with making use of professionals or professional services for laboratory services such as scientific experiments, research, manufacturing of drugs or chemicals, observation and testing. | J86: *Laboratory services: Agriculture *Laboratory services: Medical laboratory services *Laboratory services: Roads laboratory services *Laboratory services: Water laboratory services
F88: 43 | H88: Legal services | I88: Payments for any legal services to either private firms or state attorneys. This is for the service cost of attorneys. | J88: Legal cost: Private firm: Legal advice services Legal cost: Private firm: Messenger of court services Legal cost state attorney: Advice services Legal cost state attorney: Conveyancing services Legal cost state attorney: Messenger of court services
F90: 44 | H90: Science and technology services | I90: Scientific and technological services are defined as activities concerned with research and experimental development and contributing to the generation, dissemination and application of scientific and technical knowledge. | J90: *Science and technology services: Special services *Science and technology services: Research and development support services
F92: 45 | H92: Contractors | I92: Contractors are required to provide services that are not the core business of the department. It is normally not cost effective to maintain these skills within the department. Contractors includes costs associated with the use of contracted individuals or businesses on projects or tasks. This does not include amounts payable to contractors in respect of provision of services such as cleaning and security even if a staff element can be identified. Note also that it is common practice that the said contractor provides all the materials required for the project - he/she tenders for the whole project, materials included. | J92: *Contractors: Abbatoir services *Contractors: Aerial photography *Contractors: Artists and performers *Contractors: Auctioneers *Contractors: Audio-visual service *Contractors: Bore waterhole drilling *Contractors: Bottling and packaging *Contractors: Burial services *Contractors: Casual labourers *Maintenance of buildings: Casual labourers *Contractors: Curators *Contractors: Disposal services *Contractors: Editorial services *Contractors: Employee wellness *Contractors: Event promoters *Contractors: Fire fighting services. *Contractors: Forensic investigators *Contractors: Graphic designers *Contractors: Interior decorator *Contractors: Medical services *Contractors: Mint of decoration *Contractors: Photographer *Contractors: Plants, flowers and other decorations *Contractors: Preservation/restoration/dismantling/cleaning services *Contractors: Professional drivers *Contractors: Private firm: legal services *Contractors: Security services *Contractors: Sports and recreation *Contractors: Stage and sound crew *Contractors: Tour guides *Contractors:Tracing agents and debt collectors *Contractors:Transportation/relocation contractor *Contractors: South african social security agency (sassa) payment contractors *Contractors: Maintenance and repairs of other fixed structures *Contractors: Maintenance and repairs of other machinery and equipment *Contractors: Maintenance and repairs of heritage buildings *Contractors: Maintenance and repairs of other heritage fixed structures
F94: 46 | H94: Agency and support/Outsourced services | I94: Agency and support or outsourced services refers to staff appointed through an agency or staff appointed individually on contract or similar binding arrangement. An entity should have the capacity and expertise to carry out certain services, but for some reasons are not utilising their own staff. The services do not form part of Compensation of employees. The reasons might include temporary incapacity or the outsourcing of services to save costs, for example cleaning, security and recruitment. In evaluating the classification of agency/outsourced services it should be established whether the services being procured could have been provided by the entity itself. | J94: Agency and support/Outsourced services: Adjudicators Agency and support/Outsourced services: Administration and support staff Agency and support/Outsourced services: Agricultural services Agency and support/Outsourced services: Biocontrol services Agency and support/Outsourced services: Burial services Agency and support/Outsourced services: Census field staff Agency and support/Outsourced services: Covid cleaners and screeners Agency and support/Outsourced services: Editorial services Agency and support/Outsourced services: Education / General assistants Agency and support/Outsourced services: EPWP workers Agency and support/Outsourced services: Facilitators Agency and support/Outsourced services: Financial management Agency and support/Outsourced services: Fire services Agency and support/Outsourced services: Health professional allied Agency and support/Outsourced services: International institute of communications Agency and support/Outsourced services: Inmates recovery fee Agency and support/Outsourced services: Investigation services Agency and support/Outsourced services: Land claim verification Agency and support/Outsourced services: Lectures Agency and support/Outsourced services: Legal services Agency and support/Outsourced services: Medical and chemical waste removal Agency and support/Outsourced services: Medical doctor Agency and support/Outsourced services: Medical services Agency and support/Outsourced services: Nursing staff Agency and support/Outsourced services: Nutritional services Agency and support/Outsourced services: Personnel and labour Agency and support/Outsourced services: Pharmacy professionals Agency and support/Outsourced services: Photographers Agency and support/Outsourced services: Porter services Agency and support/Outsourced services: Postmortem Agency and support/Outsourced services: Researcher Agency and support/Outsourced services: Security services Agency and support/Outsourced services: Social care services Agency and support/Outsourced services: Statisticians Agency and support/Outsourced services: Steam provision Agency and support/Outsourced services: Universities certification Agency and support/Outsourced services: Universities Agency and support/Outsourced services: Veterinary services Agency and support/Outsourced services: Waste services
F96: 47 | H96: Entertainment | I96: This item includes entertainment expenditure incurred by members of the Senior Management Service (SMS) as well as Ministers and his/her office bearers in performance of their duties. | J96: *Luncheon meetings held with colleagues, foreign delegations and/or other individuals in and outside the public sector; *Purchase of dinner during authorised overtime, if no compensation in the form of time off or additional pay is approved, provided that the closing time is later than 20h00.
F98: 48 | H98: Fleet services(Fleet/Services) | I98: Cost relating to operation and maintenance of fleet services including entity owned vehicles, leased or rented vehicles. The lease amount will be classified accordingly under the Lease payments category. This item caters for charges over and above the lease payment (flat rate). | J98: Fleet services: Computer time-license Fleet services: Development fees Fleet services: Tracking (physical cs) Fleet services: Batteries Fleet services: Car valet and washing services Fleet services: Depreciation Fleet services: Depreciation equipment Fleet services: Fuel, oil and grease Fleet services: Kilometres Fleet services: Licence plates Fleet services: Repairs Fleet services: Spares and accessories Fleet services: Toll fees Fleet services: Towing costs Fleet services: Transaction costs Fleet services: Tyres and tubes Maintenance: Fleet services: Operating payments Maintenance: Machinery and equipment: Operating payments Fleet services: Loss sale equipment Fleet services: Loss sale fleet
F100: 49 | H100: Housing | I100: Department of Housing - specific accounts for interfacing accounts. | J100: *Housing: Capital adjustments *Housing: Devolution of debtors *Housing: Devolution of proper *Housing: Rebate R75 *Housing: Subsidy
F102: 50 | H102: Inventory: Clothing material and accessories | I102: The category includes corporate gear, Uniforms and Protective Clothing and Needlework's Accessories | J102: *Inventory: Clothing material and accessories: Corporate gear *Inventory: Clothing material and accessories: Uniform and protective clothing *Inventory: Clothing material and accessories: Needlework accessories
F104: 51 | H104: Inventory: Farming supplies | I104: This item includes farming animal supplements, plastic bags for seedlings, packaging for produce, labels & tags for identification and marking of animals and plants, etc. excluding items specifically identified such as fertilizer, gardening supplies, insecticides, animal fodder and feed, seed and seedlings and irrigation material. | J104: *Inventory: Farming supplies: Farming supplies *Inventory: Farming supplies: Fertilizer *Inventory: Farming supplies: Gardening supplies *Inventory: Farming supplies: Insecticides *Inventory: Farming supplies: Livestock and plant consumption *Inventory: Farming supplies: Livestock food and animal feed *Inventory: Farming supplies: Seeds and seedlings
F106: 52 | H106: Inventory: Food and food supplies | I106: Food and food supplies includes items like baby and special foods, bread and confectionary, eggs and egg products, fruits (fresh and frozen), groceries, meat, poultry and fish and milk and milk products. Limited for use by DOH, DCS, DSD. This category will not be distributed for use by other departments. Similar expenses incurred by other departments will be allocated under Consumable Supplies; Household Supplies; Groceries | J106: *Inventory: Food and food supplies: Baby and special foods *Inventory: Food and food supplies: Bread and baked confectionery *Inventory: Food and food supplies: Eggs and egg products *Inventory: Food and food supplies: Fruit and vegetables *Inventory: Food and food supplies: Groceries *Inventory: Food and food supplies: Meat, poultry, fish
F108: 53 | H108: Inventory: Chemicals, fuel, oil, gas, wood and coal | I108: Items under this category caters for chemicals, fuel, oil, gas, wood and coal | J108: *Inventory: Chemicals, fuel, oil, gas, wood and coal: Chemicals *Inventory: Chemicals, fuel, oil, gas, wood and coal: Fuel, oil and lubricants *Inventory: Chemicals, fuel, oil, gas, wood and coal: Gas *Inventory: Chemicals, fuel, oil, gas, wood and coal: Wood and coal
F110: 54 | H110: Inventory: Learning and teaching supplies material | I110: This category is created for Education Sector, it caters for Media Collections and Learning and Teaching Support Materials purchased by the Department of Education (DoE) for distribution to the schools | J110: *Inventory: Learning and teaching supplies material: Media collections (library material; school library/media/films; school books/magazines) *Inventory: Learning and teaching supplies material: Learning supporting material (school material subjects; school stationery; school textbook/prescribed)
F112: 55 | H112: Inventory: Materials and supplies | I112: Materials and supplies include items such as building materials, hardware, painting materials and workshop accessories, etc. | J112: *Inventory: Materials and supplies: Building and construction material *Inventory: Materials and supplies: Camping material *Inventory: Materials and supplies: Disposable testing material non medical *Inventory: Materials and supplies: Electrical supplies *Inventory: Materials and supplies: Fencing material *Inventory: Materials and supplies: Hardware *Inventory: Materials and supplies: Irrigation material *Inventory: Materials and supplies: Notice boards and signs *Inventory: Materials and supplies: Operational health&safety kit *Inventory: Materials and supplies: road construction and supplies *Inventory: Materials and supplies: road signs *Inventory: Materials and supplies: sport and recreational consumables *Inventory: Materials and supplies: tents, flags and accessories *Inventory: Materials and supplies: workshop materials and supplies *Inventory: Materials and supplies: workshop testing material and supplies
F114: 56 | H114: Inventory: Medical supplies | I114: Medical supplies includes all medical related inventory items. Limited for use DOH AND DOD. This category will not be distributed for use by other departments. Similar expenses incurred by other departments will be allocated under Consumable Supplies: First Aid Kid or Contraceptives | J114: *Inventory: Medical supplies: Artificial aids *Inventory: Medical supplies: Application sets *Inventory: Medical supplies: Bandages and dressing *Inventory: Medical supplies: Blood-product and plasma *Inventory: Medical supplies: Catheters, tubes and urine bag *Inventory: Medical supplies: Contraceptives *Inventory: Medical supplies: Crutches *Inventory: Medical supplies: Dental consumables *Inventory: Medical supplies: Disposable nappies *Inventory: Medical supplies: First aid kit *Inventory: Medical supplies: Gloves, disposable sundries *Inventory: Medical supplies: Heart valves and pacemakers *Inventory: Medical supplies: HIV/aids test kits *Inventory: Medical supplies: Implantable sets *Inventory: Medical supplies: In-vitro diagnostic testing strips *Inventory: Medical supplies: Medical gas *Inventory: Medical supplies: Occupational therapy consumables *Inventory: Medical supplies: Optical items and hearing aids *Inventory: Medical supplies: Orthopaedic artificial limbs *Inventory: Medical supplies: Patient clothing *Inventory: Medical supplies: Radio-isotopes *Inventory: Medical supplies: Renal dialysis *Inventory: Medical supplies: Stoma therapy reqs *Inventory: Medical supplies: Surgical consumables *Inventory: Medical supplies: Surgical, implants prosthesis *Inventory: Medical supplies: Surgical/medical supplies *Inventory: Medical supplies: Sutures, ligature and skin staples *Inventory: Medical supplies: Syringes, needles *Inventory: Medical supplies: Therapeutic requisitions *Inventory: Medical supplies: Vinyl body bag *Inventory: Medical supplies: Wheelchair consumables *Inventory: Medical supplies: X-ray consumables
F116: 57 | H116: Inventory: Medicine | I116: A drug or other preparation used for the treatment or prevention of disease. Limited for use by DOH AND DOD. This category will not be distributed for use by other departments. | J116: *Inventory: Medicine: Animal medicine *Inventory: Medicine: Animal vaccines *Inventory: Medicine: Antiretroviral drugs *Inventory: Medicine: Anti-tuberculosis medicines *Inventory: Medicine: Contraceptives *Inventory: Medicine: Large volume parenterals *Inventory: Medicine:Medicine medical depot *Inventory: Medicine: Other medicine *Inventory: Medicine: Vaccines
F118: 58 | H118: Medsas inventory interface | I118: MEDSAS is a system used for the procurement, and management of pharmaceutical products, including medicines etc. This system is mainly used by the National and Provincial Departments of Health. | J118: *Medsas inventory interface: Miscellaneous variance *Medsas inventory interface: Price variance *Medsas inventory interface: Purchase variance *Medsas inventory interface: Stock issues *Medsas inventory interface: Stock purchase general *Medsas inventory interface: Stock purchase system *Medsas inventory interfaceS: Stores surpluses
F120: 59 | H120: Inventory: Other supplies | I120: Included in this category is Laboratory Chemical and Supplies, Military Stores, Ammunition and Security Supplies and Assets Held for Distribution | J120: *Inventory: Other supplies: Laboratory chemicals and supplies *Inventory: Other supplies: Military stores *Inventory: Other supplies: Assets for distribution *Inventory: Other supplies: Print supplies *Inventory: Other supplies: Household supplies
F122: 60 | H122: Consumables supplies | I122: This category caters for all consumable supplies | J122: *Consumables supplies: Animal food and medical supplies *Consumables supplies: Gifts and awards *Consumables supplies: Saddlery and other tackle *Consumables supplies: Uniform and clothing *Consumables supplies: Medical supplies *Consumables supplies: Household supplies *Maintenance of machinery and equipment: fuel and gas supplies *Consumables supplies: Fuel supplies *Consumables supplies: Materials and supplies *Consumables supplies: Contraceptives *Consumables supplies: Bags and accessories *Consumables supplies: Communication accessories *Consumables supplies: IT consumables *Consumables supplies: Laboratories consumables *Consumables supplies: Medical kit *Consumables supplies: Name tags *Consumables supplies: Occupational health safety kit *Consumables supplies: Photographic consumables *Consumables supplies: Security accessories consumables *Consumables supplies: Tent, flag and accessories *Consumables supplies: Stationery, printing and office supplies
F124: 61 | H124: Consumables: Stationery, printing and office supplies | I124: Included in this item is stationery and office consumables. Also included in this category is Audio Visual Consumables, Government Printers, Mag/News/Journals, Stationery, ART AND Drawings, Media Collections, PRINTER Cartridges, and PRINTING Paper | J124: *Consumables: Stationery, printing and office supplies: Audio visual consumables *Consumables: Stationery, printing and office supplies: Art and drawings *Consumables: Stationery, printing and office supplies: External printers *Consumables: Stationery, printing and office supplies: Magazines/Newspapers/Journals *Consumables: Stationery, printing and office supplies: Media collections *Consumables: Stationery, printing and office supplies: Printing cartridge *Consumables: Stationery, printing and office supplies: Printing paper *Consumables: Stationery, printing and office supplies: Stationery
F126: 62 | H126: Operating leases | I126: Operating leasing is a productive activity that involves renting capital assets for terms less than the expected service lives of the assets. It is a form of production in which the lessor normally lets the use of a capital equipment / asset in exchange for the lease payments. Operating leasing can be identified by the following characteristics: (a) the lessor normally maintains a stock of equipment in good working order which can be hired on demand or at short notice, (b) the equipment may be rented out for varying periods of time, and (c) the lessor is frequently responsible for the maintenance and repair of the equipment as part of the service provided to the lessee. | J126: Operating lease: Buildings Operating lease: Other fixed structures Operating lease: Other machinery and equipment Operating lease: Transport equipment Maintenance: Operating leases machinery
F128: 63 | H128: Rental and hiring | I128: Rental and hiring includes transactions that involves a once-off payment for the temporary use of an item which is owned by an external party. This is not the same as Lease payments as "Lease Payments" refer to series of payments made.
F130: 64 | H130: Property payments | I130: This category provides for all payments related to contractual obligations contributing to the functionality of, for example, building or land. for example, gardening services, cleaning services, municipal services, deeds, electricity compliance certificate, fire protection, etc. municipalities. | J130: *Property payments: Cleaning services *Property payments: Commission on municipal services *Property payments: Contracted maintenance property *Property payments: Deeds *Property payments: Electrical compliance certificate *Property payments: Fire protection *Property payments: First aid *Property payments: Gardening services *Property payments: Gas *Property payments: Laundry services *Property payments: Management fee *Property payments: Pest control/fumigation services *Property payments: Safeguard and security *Property payments: Municipal services (Electricity, Sewerage, Waste/Refuse removal, Water)
F132: 65 | H132: Transport provided as part of internal activities | I132: Expenses associated with transport provided by the entity itself in transporting people during the execution of its mandate. | J132: *Transport for excursions *Transport for public events *Transport: illegal immigrants deportation *Transport: land reform/restitution beneficiaries *Transport of children vagrants *Transport of patients & corps *Transport of scholars
F134: 66 | H134: Travel and subsistence | I134: Travel and subsistence includes all domestic and foreign travel related expenditure paid for employees and non-employees. This item specifically covers expenditure on accommodation cost, food and beverage, incidental cost, and car rental paid for official travelling purposes. The amount could also be paid by the entity directly to the travel agency responsible for making the travel arrangements or the service provider. | J134: *Travel and subsistence: Per diem out of town allowance *Travel and subsistence: Accommodation *Travel and subsistence: Daily allowance *Travel and subsistence: Food and beverage *Travel and subsistence: Incidental cost *Travel and subsistence: Transport *Travel and subsistence: Transport-shuttle services
F136: 67 | H136: Training and development | I136: Training and development provided to employees and non-employees as well as training materials not provided for separately under goods and services. | J136: *Training and development: Employees *Training and development: Material&manuals *Training and development: Non-employees
F138: 68 | H138: Operating payments | I138: Operating payments category caters for services that are related to the operations of the entity | J138: *Operating payments: Achievements and awards *Operating payments: Air charter services and landing rights *Operating payments: Cash discount (temporary) *Operating payments: Competency certificates / licences / permits *Operating payments: Courier and delivery services *Operating payments: Freight services transport goods *Operating payments: Harbour services, docking fees *Operating payments: Honoraria (voluntarily workers) *Operating payments: Laundry services *Operating payments: Non-life insurance premiums *Operating payments: Printing and publications *Operating payments: Professional bodies, membership and subscriptions *Operating payments: Resettlement cost *Operating payments: Road worthy tests *Operating payments: School boarding/tuition cost *Operating payments: Storage services *Operating payments: Warrantees and guarantees *Operating payments: Taking over contractual obligations *Operating payments: Witness and related cost
F140: 69 | H140: Venues and facilities | I140: Venue costs are those cost which are associated with obtaining a right to use that place/ site/location at that particular time. Facilities is anything that helps someone to perform their duties at an optimal level e.g. maintenance of computers and or making sure that all air-conditions are working. Included are the cost incurred from using venues and/or facilities not available within the normal business premises of the entity, normally specialist in nature. Facilities includes all the individual items e.g. chairs, tables, equipment, etc. that comes with the venue.
F142: 70 | H142: Interest | I142: This item includes the total value of interest payments. These are payments associated with debt, for example interest on borrowing and overdraft facilities. Interest payments on bills and bonds issued by other government units are also included here.
F144: 71 | H144: Dividends | I144: A dividend is a distribution of money or property paid by a corporation out of the corporation's profits to shareholders. Government units are not payers of dividends as a rule. Exceptions may be public corporations.
F146: 72 | H146: Rent on land | I146: Rent relates payments in respect of certain leases of land, subsoil assets, and other naturally occurring assets. Includes only rent of land, and royalties, exploration and rights of use. Rent of buildings are included in operating leases.
F148: 73 | H148: Transfers and subsidies | I148: This item consists of all unrequited, voluntary payments to other parties. Thus, an entry should be made under this item when government does not receive anything directly in return for the transfer to the other party and the transfer is voluntary. Both current and capital transfers are included in this item. An example of a capital transfer is a cash payment, which the unit is required to use toward the acquisition of a capital asset. All other transfers are current, for example, donations and grants, which the recipient is not obliged to use to acquire capital assets. The transfers paid are further categorised as; Subsidies Subsidies on production comprise all current, unrequited payments to businesses – both government and privately owned – on the basis of their level of production or quantity, or values of products produced, sold, imported or exported. Subsidies influence the level of production and / or pricing policies of the recipient. To be classified as a subsidy on production, the transfer must be current. Subsidies can be payable on specific products or on production in general. A subsidy on a product is a subsidy payable per unit of a good or service. The subsidy may be a specific amount of money per unit of quantity of a good or service, or it may be calculated ad valorem as a specified percentage of the price per unit. A subsidy may also be calculated as the difference between a specified target price and the market price actually paid by a buyer. A subsidy on a product usually becomes payable when the good or service is produced, sold, exported, or imported. But it may also be payable in other circumstances, such as when a good is transferred, leased, delivered, or used for own consumption or own capital formation. Subsidies on production consist of subsidies that enterprises receive for engaging in production but that are not related to specific products. Included are subsidies on payroll or workforce, which are payable on the total wage or salary bill, the size of the total workforce, or the employment of particular types of person; subsidies to reduce pollution; and payments of interest on behalf of corporations. Subsidies also include transfers to public corporations to compensate for losses they incur on their productive activities as a result of charging prices that are lower than their average costs of production because of deliberate government economic and social policy. If such losses have been accumulated over two or more years, however, the transfer is considered of a capital nature and classified as other transfers to public corporations and private enterprises.
F150: 74 | H150: Public and private corporations | I150: Public corporations are resident corporations and quasi-corporations that are subject to control by government units, Private corporations are all resident corporations and quasi-corporations that are not controlled by government.
F152: 75 | H152: Transfers to households: Social benefits | I152: These are transfers to protect the entire population or specific segments of the population against certain social risks: events that may adversely affect the welfare of the households concerned such as, loss of employment, poverty etc. Other government units can also pay social benefits, like the Unemployment Insurance Fund.
F154: 76 | H154: Other transfers to households | I154: This item includes all other unrequited payments made to individuals and households that are not for social benefits. To note is the inclusion of bursaries awarded to persons who are not employed by the public entity for the purpose of assisting them with tuition and other education and training related costs. They are transfers since the recipient has no obligation towards the benefactor
F156: 77 | H156: Technical reserves (social security funds only) | I156: Technical reserves are as a result of an actuarial evaluation. They consist of net equity of households in insurance reserves, prepaid premiums and reserves against outstanding claims.
F158: 78 | H158: Tax payments | I158: Tax payments include personal income tax, employer-paid payroll tax, real estate property tax, other personal property taxes, unemployment tax, business income tax, and sales and use tax.
F160: 79 | H160: Surplus/(deficit) for the year/ net cash and cash equivalents/assets-liabilities | I160: The formula checks if the above balances in the template are in accordance with the published audited financial statements
F162: 80 | H162: Other movements | I162: Any other non-cash movement not classified in the "Adjust surplus / (deficit) for accrual transactions" adjustments.
F164: 81 | H164: Other flows from Investing Activities | I164: Inflows and outflows of cash arising from acquisition and disposal of long-term financial assets and other investments not included in cash equivalents. Reason for disclosure of cash flows arising from investing activities The separate disclosure of cash flows arising from investing activities is important because the cash flows represent the extent to which cash outflows have been made for resources which are intended to contribute to the entity’s future service delivery. | J164: • Cash payments to acquire equity or debt instruments of other entities and interests in joint ventures (other than payments for those instruments considered to be cash equivalents or those held for dealing or trading purposes); • Cash receipts from sales of equity or debt instruments of other entities and interests in joint ventures (other than receipts for those instruments considered to be cash equivalents and those held for dealing or trading purposes); • Cash advances and loans made to other parties (other than advances and loans made by a public financial institution); • Cash receipts from the repayment of advances and loans made to other parties (other than advances and loans of a public financial institution); • Cash payments for futures contracts, forward contracts, option contracts and swap contracts except when the contracts are held for dealing or trading purposes, or the payments are classified as financing activities; and • Cash receipts from futures contracts, forward contracts, option contracts and swap contracts except when the contracts are held for dealing or trading purposes, or the receipts are classified as financing activities.
F166: 82 | H166: Buildings: residential | I166: Dwellings or residential are buildings that are used entirely or primarily as residences, including garages and other associated structures. Houseboats, barges, mobile homes, caravans and military personnel dwellings that are used as principal residences
F168: 83 | H168: Buildings: non-residential | I168: Non-residential buildings are all buildings other than dwellings. Examples of types of Buildings included in this category are office buildings, schools, hospitals, buildings for public entertainment, warehouse and industrial buildings, commercial building
F170: 84 | H170: Other fixed structures | I170: Other fixed structures consists of all fixed structures other than buildings. For example, roads, bridges and dams.
F172: 85 | H172: Transport equipment | I172: Transport equipment consists of equipment for moving people and objects. For example, aircrafts, aircraft engines, airport transport equipment, buses, cycles, emergency vehicles, mobile clinics, motor vehicles, railway rolling stock, ships and boats and engines, trailers and accessories and trucks. Furniture, Machinery, Computer and Office equipment i) Furniture and Office equipment This group of items provides for furniture and office equipment including items such as advertising boards, air conditioners, crockery and cutlery, domestic furniture, linen and soft furnishing, office equipment/furniture, paintings, sculptures, ornaments and school furniture. ii) Other Machinery and Equipment Consists of other machinery and equipment other than transport equipment. They are general and special purpose machinery i.e. electrical machinery, radio, television and communication equipment, furniture, watches and sports goods. iii) Computer Equipment This includes costs for desktop computers and terminals. Also included in this item are the once-off cost if separately identified for the operating system purchased with the hardware (e.g. Windows XP Professional, etc).
F174: 86 | H174: Heritage assets | I174: Heritage assets are assets of significant value that government intends to preserve indefinitely because they have unique history, cultural, educational, artistic or architectural significance. Examples are; archives, areas/land of historic significance, library materials, antiques and collectables, sculpture, paintings, sculptures, state jewellery, works of art, etc.
F176: 87 | H176: Biological assets | I176: Biological and cultivated assets are animals and plants that are used repeatedly or continuously for more than one year to produce other goods or services. Examples of animals to be included in this category are dairy cattle, draft animals, wool-producing, breeding stocks, game and animals used for transportation and entertainment. Examples of plants are trees, vines and shrubs cultivated for production of fruits, nuts, sap, resin, bark and leaf products. Slaughter animals are not cultivated assets, because they can only be used once.
F178: 88 | H178: Land and Subsoil assets | I178: Land is the ground itself, including the soil covering, associated surface water, and major improvements that cannot be physically separated from the land but not buildings on it and cultivated plantations etc. Subsoil assets consist of proven reserves of oil, gas, coal, metallic mineral reserves and nonmetallic mineral reserves, minerals and ores. Mine shafts, wells and other subsoil extraction facilities are fixed assets, rather than subsoil assets.
F180: 89 | H180: Investment Property | I180: Investment property is property (land or a building or part of a building or both) held (by the owner or by the lessee under a finance lease) to earn rentals or for capital appreciation or both. [IAS 40.5] Examples of investment property: [IAS 40.8], land held for long-term capital appreciation, land held for undetermined future use, building leased out under an operating lease, vacant building held to be leased out under an operating lease, property that is being constructed or developed for future use as investment property
F182: 90 | H182: Software and other intangible assets | I182: An intangible is an identifiable non-monetary asset without any physical substance. Examples of intangible fixed assets are mineral exploration rights; computer software; literary and artistic originals; and miscellaneous other intangible fixed assets. To qualify as a fixed asset, the item must be intended for use in production for more that one year and its use must be restricted to the units that have established ownership rights over it or to units licensed by the owner.
F184: 91 | H184: Domestic long term investments | I184: Net flows of cash made within the borders of South Africa arising from acquisition and/ disposal of assets that an entity intends to hold for more than a year.
F186: 92 | H186: Foreign long term investments | I186: Net flows of cash made from outside the borders of South Africa arising from acquisition and/ disposal of assets that an entity intends to hold for more than a year.
F188: 93 | H188: Interest | I188: Income associated with ownership of interest-bearing financial instruments, such as and bills and bonds issued by third parties. | J188: *Interest from financial derivatives
F190: 94 | H190: Dividends | I190: These are profit distributions receivable by public entities on equity participation in private and public sector entities. Dividends come in the form of revenue from shares and distribution of profits to the owner. Gains/losses associated with valuation changes should not be included in the amount reported here, these are recorded under the transactions in financial assets and liabilities category. | J190: *Dividends from shares and other equity
F192: 95 | H192: Outside shareholders interest | I192: Outside shareholders have no links with the company but have a financial Interest in its operating performance.
F194: 96 | H194: Deferred income | I194: Deferred income is the converse of accruals. It is income received during an accounting period, but which is not yet reported as earned. For example, a business may receive payment for a service or a product that has not yet been supplied. Thus cannot be recognised as income up until such time the condition is fulfilled.(from the template)
F196: 97 | H196: Borrowing activities | I196: in a cash flow environment is the lending of money by one institution to the next and this amounts to loans. A loan is an arrangement in which a lender gives money to a borrower, and the borrower agrees to repay the money, usually along with interest, at some future point(s) in time. There is usually a predetermined time for repaying a loan, and mostly the lender has to bear the risk that the borrower may not repay a loan. The loan could be obtained from either: (a)One of the local government institutions (Domestic loan denominated in Rand value) or (b)Through the market (searching for the most economical deal in the market. The market includes both local and foreign) i.One of the local financial services providers (Local or domestic loan denominated in Rand value) or ii.One of the international financial services providers (Foreign loan denominated in a foreign currency which comes with the risk of foreign exchange currency fluctuations). The agreed-upon loan repayment period determines further classification between long-term and short-term loans. Short term loans are loans payable within 12 months and long term loans are payable beyond 12 months period.
F198: 98 | H198: Repayment of finance leases | I198: A finance lease is a lease that transfers substantially all the risks and rewards of ownership of an asset. Title may or may not eventually be transferred. In substance, the lessee purchases an asset by way of a financing arrangement between itself (the lessee) and the lessor. This payment should be classified as a payment for capital assets in the budget format. The interest portion is classified as current interest, dividends and rent on land, interest paid finance leases in the budget format. Refer to Practice Note 5 of 2006/07 issued by the Office of the Accountant- General for specific rules regarding this type of transaction.
F200: 99 | H200: Other (e.g. issuance of shares, revaluations)
F202: 100 | H202: Interest and dividends or similar distributions | I202: Interest and dividends or similar distributions received and paid should be disclosed separately. The total amount of interest paid during a period is disclosed in the cash flow statement. Interest paid and interest and dividends (or similar distributions) received may be classified as either operating, investing, or financing activities. The classification of interest paid, and interest and dividends (or similar distributions) received should be driven by the source.
H203: STATEMENT OF FINANCIAL POSITION
F204: 101 | H204: Cash and cash equivalents | I204: Cash and cash equivalents are the most liquid assets found within the asset portion of a company's balance sheet. Cash equivalents are assets that are readily convertible into cash, such as money market holdings, short-term government bonds or Treasury bills, marketable securities and commercial paper.
F206: 102 | H206: Trade and other receivables from exchange transactions | I206: These are current asset representing money due for services performed or merchandise sold on credit after adjusting provision for doubtful debts. The provision for doubtful debts is subtracted from Accounts Receivable to arrive at what is called "net realizable receivables."
F208: 103 | H208: Other receivables from non-exchange transactions, including taxes, fines and transfers | I208: These are current asset representing money due from non-exchange activities such as fines. The provision for doubtful debts is subtracted from Accounts Receivable to arrive at what is called "net realizable receivables."
F210: 104 | H210: Prepayments | I210: The satisfaction of a debt or installment payment before its official due date. A prepayment can be for the entire balance or for any upcoming payment that is paid in advance of the date for which the borrower is contractually obligated to pay it. Examples of a prepayment come in the form of rent or early loan repayments.
F212: 105 | H212: VAT receivable | I212: VAT Receivables is the carrying amount due within one year of one operating cycle from tax authorities as of the balance sheet date representing VAT refunds of overpayment e.g. Input tax vs Output tax.
F214: 106 | H214: Income tax receivable | I214: Its carrying amount due within one year of one operating cycle from tax authorities as of the balance sheet date representing refunds of overpayments or recoveries based on agreed-upon resolutions of disputes.
F216: 107 | H216: Inventory | I216: Inventories are assets/ goods and services held for sale in the ordinary course of business (finshed goods), in the process of production for such sale (working in process), or in the form of materials or supplies to be consumed in the production process or in the rendering of service.Goods" in question will however have an aspect of service which was provided in the form of labour that went into the manufacture of whatever item is being produced
F218: 108 | H218: Short term loans | I218: Short term loans are non-derivative financial assets with fixed or determinable payments that are not quoted in an active market. Loans to other enterprises expected to be recovered within twelve months period are examples of assets falling into the loans and receivables category.
F220: 109 | H220: Accrued Investment Interest/Accrued interest | I220: A term used to describe an accrual accounting method when interest that is receivable has been recognized, but not yet received
F222: 110 | H222: Current investments | I222: Current investment is a purchase of an asset or item with the hope that it will generate income or appreciate and/sold at the higher price or that will expire within one year , such as bonds, stock, collectible annuities and real property.
F224: 111 | H224: Other current financial assets | I224: A current financial assets is any asset that is cash, equity instrument of another entity e.g. investment in the ordinary shares of another entity; a contractual right to receive cash or another financial asset from another entity (e.g. bonds); a contractual right to exchange financial instruments with another entity under conditions that are potentially favourable (e.g. an option to acquire shares in another company); a contract that will or may be settled in the entity's own equity instrument (Derivative or Non- derivative). These are expected to be realised in a period of less than twelve months.
F226: 112 | H226: Construction contracts and receivables | I226: These are construction contracts monies receivable over a short period.
F228: 113 | H228: Non Current Assets Held for Sale | I228: Non-current assets are reclassiﬁed as current assets when they are held for sale. A non-current asset is regarded as ‘held for sale’ if its carrying amount will be recovered principally through a sale transaction, rather than through continuing use. To be classiﬁed as a non-current asset held for sale: the asset must be available for immediate sale; and the sale must be highly probable. This requires management commitment to sell, active marketing at a reasonable price, and the expectation of a completed sale within one year.Non-current assets classified as held for sale shall not be depreciated. But Impairment must be considered both at the time of classification as held for sale and after classification as held for sale.
F230: 114 | H230: Finance lease receivable | I230: The present value of the lease receipts expected during the lease term
F232: 115 | H232: Statutory Receivables - Exchange | I232: These are receivables that arise from legislation, supporting regulations, or similar means and require settlement by another entity in cash or using another financial instrument. These receivables are in exchange for a good or a service. | J232: E.g property rates, levies, licences
F234: 116 | H234: Statutory Receivables - Non Exchange | I234: These are receivables that arise from legislation, supporting regulations, or similar means and require settlement by another entity in cash or using another financial instrument. This receivable is not in exchange of anything. | J234: Income tax, grants and transfers, fines and penalties
F236: 117 | H236: Operating Lease Asset | I236: The receivable arising from a contract that allows an external party to use an asset, but rights or ownership do not pass to the lessee. | J236: e.g lease receivable from an opeerating lease agreement.
F238: 118 | H238: Derivatives financial instruments | I238: A derivative is a financial instrument whose value changes in relation to changes in a variable, such as an interest rate, commodity price, credit rating, or foreign exchange rate. It also requires either a small or no initial investment, and it is settled at a future date. It allows an entity to speculate on or hedge against future changes in market factors at minimal initial cost. Examples of derivatives are call options, put options, forwards, futures, and swaps.
F240: 119 | H240: Non-current receivables from non-exchange transactions | I240: These are accounts or promissory notes due for payment to an entity other than from its normal operations that is not expected to be collected within one year of the balance sheet date. Examples of non-trade receivables are amounts owed to a company by its employees for loans or wage advances, tax refunds owed to it by taxing authorities, or insurance claims owed to it by an insurance company
F242: 120 | H242: Non-current receivables from exchange transactions | I242: These are accounts or promissory notes due for payment to an entity other than from its normal operations that is not expected to be collected within one year of the balance sheet date. Examples of non-trade receivables are amounts owed to a company by its employees for loans or wage advances, tax refunds owed to it by taxing authorities, or insurance claims owed to it by an insurance company
F244: 121 | H244: Non Current Receivables - Statutory Receivables - Exchange | I244: These are receivables that arise from legislation, supporting regulations, or similar means and require settlement by another entity in cash or using another financial instrument. These receivables are in exchange for a good or a service. | J244: E.g property rates, levies, licences
F246: 122 | H246: Non Current Receivables - Statutory Receivables - Non-Exchange | I246: These are receivables that arise from legislation, supporting regulations, or similar means and require settlement by another entity in cash or using another financial instrument. This receivable is not in exchange of anything. | J246: Income tax, grants and transfers, fines and penalties
F248: 123 | H248: Finance lease receivable | I248: The present value of the lease receipts expected during the lease term
F250: 124 | H250: Long term loan | I250: Long term loans and receivables are non-derivative financial assets with fixed or determinable payments that are not quoted in an active market. These are loans to other enterprises expected to be recoverd over twelve months period.
F252: 125 | H252: Other non-current financial assets | I252: A non curent financial assets is any asset that is cash, equity instrument of another entity e.g. investment in the ordinary shares of another entity; a contractual right to receive cash or another financial asset from another entity (e.g. bonds); a contractual right to exchange financial instruments with another entity under conditions that are potentially favourable (e.g. an option to acquire shares in another company); a contract that will or may be settled in the entity's own equity instrument (Derivative or Non- derivative). These are expected to be realised in a period of over twelve months.
F254: 126 | H254: Non-Current Investments | I254: Investments are long term shares such as real property, stocks, bonds, collectible annuities, mutual fund shares, etc., held by an entity in another company. An entity acquires these shares with the expectation of realizing income or capital gain, or both, in the long term future
F256: 127 | H256: Investments in Subsidiary / Municipal entity | I256: This is an investment in a subsidiary which is a company that is partly or completely owned by another company that holds a controlling interest in the subsidiary company
F258: 128 | H258: Investments in Joint Ventures | I258: This is an investment in a joint venture which is a business agreement in which parties agree to develop, for a finite time, a new entity and new assets by contributing equity. They exercise control over the enterprise and consequently share revenues, expenses and assets.
F260: 129 | H260: Investments in Associates | I260: This is an investment in an associate which is an entity over which an investor has significant influence, being the power to participate in the financial and operating policy decisions of the investee (but not control or joint control).
F262: 130 | H262: Deferred Tax Assets | I262: Deferred tax assets are amounts of income taxes recoverable in future periods in respect of deductible temporary differences; the carry forward of unused tax losses; and the carry forward of unused tax credits
F264: 131 | H264: Defined Benefit Plan Assets | I264: Defined Benefit Plans are plans in which the employer’s obligation is not limited to contribution toward a benefit, but rather based on the benefit promised to the employees. The amount could be determined with reference to a plan benefit formula, which stipulates the value of the benefit, a guarantee of a specified return on contribution, or informal practices that give rise to constructive obligation. Many defined benefit plans include early retirement provisions to encourage employees to retire early, before the attainment of normal retirement age (usually age 65). Companies would rather hire younger employees at lower wages.
F266: 132 | H266: Property, plant and equipment | I266: This is a term used in accounting for assets and property which cannot easily be converted into cash. These are items of value which the organization has bought and will use for an extended period of time; this normally include items such as land and buildings, motor vehicles, furniture, office equipment, computers, fixtures and fittings, and plant and machinery
F268: 133 | H268: Investment property | I268: These are properties not occupied by the owner held to earn rentals or for capital appreciation or both.
F270: 134 | H270: Intangible assets | I270: An intangible asset is an identifiable non-monetary asset without any physical substance. Examples of intangible assets are mineral exploration rights; computer software; literary and artistic originals; patents, copyrights, trademarks, trade names, licenses, goodwill and miscellaneous other items that lack physical substance but provide long term benefits to the company. To qualify as a fixed asset, the item must be intended for use in production for more that one year and its use must be restricted to the units that have established ownership rights over it or to units licensed by the owner.
F272: 135 | H272: Biological assets | I272: Biological and cultivated assets are animals and plants that are used repeatedly or continuously for more than one year to produce other goods or services. Examples of animals to be included in this category are dairy cattle, draft animals, wool-producing, breeding stocks, game and animals used for transportation and entertainment. Examples of plants are trees, vines and shrubs cultivated for production of fruits, nuts, sap, resin, bark and leaf products. Slaughter animals are not cultivated assets, because they can only be used once.
F274: 136 | H274: Heritage assets | I274: A heritage assets is an item that has value because of its contribution to a nation’s society, knowledge and/or culture. They are of such significant value that government intends to preserve indefinitely because they have unique history, cultural, educational, artistic or architectural significance. South African examples are archives, areas/land of historic significance and culture.
F276: 137 | H276: Living resources | I276: Living resources are those resources that undergo biological transformation. | J276: E.g animals and plants that are used or held for: research, conservation, recreation, agricultural activities, education/training and rehabilitation or breeding purposes.
F278: 138 | H278: Operating Lease Assets | I278: The receivable arising from a contract that allows an external party to use an asset, but rights or ownership do not pass to the lessee. | J278: e.g lease receivable from an opeerating lease agreement.
F280: 139 | H280: Bank overdraft | I280: A credit agreement made with a financial institution that permits an account holder to use or withdraw more than they have in their account, without exceeding a specified maximum negative balance. Establishing an overdraft facility with a bank can help an individual or small business with short term cash flowproblems, although the negative balance typically needs to be repaid within a month.
F282: 140 | H282: Trade and other payables from exchange transactions | I282: Accounts payable is an entity's short-term obligation to pay suppliers for products and services, which the entity purchased on credit. If accounts payable are not paid within the payment terms agreed to with the supplier, the payables are considered to be in default, which may trigger a penalty or interest payment, or the revocation or curtailment of additional credit from the supplier.
F284: 141 | H284: Benefits payable (for UIF only) | I284: This account group is used to record amounts due to eligible third party claimants within the current operating period. It consists of benefits to be paid to authorized or designated retirees within the current fiscal year.
F286: 142 | H286: Accrued interest | I286: Accrued interest is the amount of loan interest that has already occurred, but has not yet been paid to the lender by the borrower
F288: 143 | H288: VAT payable | I288: VAT registered businesses collect VAT on behalf of the government. Businesses add a certain percentage of the sales price as VAT and charge the full amount to the customer. For example, if a VAT registered dealer sells a car for R10, 000 and the VAT rate is 15 per cent, then the dealer charges the customer R11, 500. The dealer then forwards the R1, 500 to the government. The amount that the dealer is required to forward to the government is called VAT payable.
F290: 144 | H290: Income Tax Payable | I290: Income tax is a liability showing the income taxes now due, this includes the current portion (due) of any deferred taxes. It is paid by employees and people who are self-employed. It may also be payable if you aren't working if, for example, you have an income from a pension or savings.
F292: 145 | H292: Taxes and transfers payable | I292: Taxes and transfers payables are unrequited payments to other government units, corporations and households.Taxes are compulsory and there have no direct quid pro quo. Transfers can either be compulsory or voluntary
F294: 146 | H294: Current provisions(Other) | I294: Provision, generally, is to prepare in advance for an event that is projected to take place in the future. In accounting, it is an amount charged against profits for a specific liability (for example: bad debts, depreciation or taxes). A liability may be known, but the amount is often uncertain. This uncertainty may lead to an adjustment in a later income statement once the final amount of the liability is ascertained.
F296: 147 | H296: Current portion of unspent conditional grants and receipts | I296: A conditional grant is an allocation of money from one sphere of government to another, conditional on certain services being delivered or on compliance with specified requirements. It is payable within a specific period of time of less than a year.
F298: 148 | H298: Deferred income | I298: Deferred income is the converse of accruals. It is income received during an accounting period, but which is not yet reported as earned. For example, a business may receive payment for a service or a product that has not yet been supplied. Thus cannot be recognised as income up until such time the condition is fulfilled.
F300: 149 | H300: Current portion of long-term borrowings | I300: It is the amount of unpaid principal from long term loans or borrowings that has accrued in a normal operating cycle. | J300: E.g a portion or an instalment towards a long term loan that is paid or supoosed to be paid in that certain financial year. E.g an entity takes a long term loan from another entity and the agreement is that a quarter of that loan is to be paid every 3 years until the loan is paid up, within those financial years that the instalment is paid, it will be considered as current portion of long term loan.
F302: 150 | H302: Short-term loans | I302: Short-term loans are generally loans in which borrowers can receive cash quickly from a lender, typically a bank or a paycheck loan business. Usually, short-term loans are processed fast and the minimum amount of time for a short-term loan is about 3 months, and in some cases, short-term loans can extend to up to 1 year.
F304: 151 | H304: Other current financial liabilities | I304: A financial liability is a contractual obligation to deliver cash or similar to another entity or a potentially unfavourable exchange of financial assets or liabilities with another entity over a period of less than twelve months.
F306: 152 | H306: Current portion of finance lease liability | I306: A finance lease is a lease that is primarily a method of raising finance to pay for assets. It is also termed a capital lease. At the end of the lease, the ownership of the assets reverts to the lease. This is an estimated figure payable within twelve months period
F308: 153 | H308: Managed funds | I308: A fund in a public sector is a self-balancing set of financial books that is used to control and monitor the planned use of resources, often in compliance with legal and administrative requirements. Public-sector organizations use funds to demonstrate their fiscal accountability. The word "fund" in government has taken several meanings or connotations. It is sometimes used to refer an appropriation which is a legislative authorization to spend or an allotment which is an authorization by the Department of Budget and Management (DBM) to obligate, or as actual cash available | J308: E.g a fund manager manages a portfolio of investments such as shares and corporate bonds on behalf of the trust's beneficiaries.
F310: 154 | H310: Service Concession Arrangement | I310: It is an arrangement whereby a government or other public sector body contracts with a private operator to develop, operate and maintain an infrastructure asset. | J310: E.g an arrangement for building of a road, bridge, tunnel, airport etc
F312: 155 | H312: Derivatives financial instruments | I312: A derivative is a financial instrument whose value changes in relation to changes in a variable, such as an interest rate, commodity price, credit rating, or foreign exchange rate. It also requires either a small or no initial investment, and it is settled at a future date. It allows an entity to speculate on or hedge against future changes in market factors at minimal initial cost. Examples of derivatives are call options, put options, forwards, futures, and swaps. Examples of derivatives are call options, put options, forwards, futures, and swaps.
F314: 156 | H314: Deferred tax liabilities | I314: Deferred tax liability is the amount of income tax payable in future periods in respect of the taxable temporary differences. A deferred tax liability records the fact that the company will, in the future, pay more income tax because of a transaction that took place during the current period, such as an instalment sale receivable.
F316: 157 | H316: Unspent conditional grants and receipts | I316: A conditional grant is an allocation of money from one sphere of government to another. The grant is only recognised as revenue to the extent that the recipient/spending agency has complied with all of the criteria, conditions or obligations embodied in the agreement. The unspent conditional grants therefore represent the unspent portion of government grants, subsidies and contributions from the other spheres of government.
F318: 158 | H318: Benefits payable (UIF only) | I318: This account group is used to record amounts due to eligible third party claimants within the current operating period. It consists of benefits to be paid to authorized or designated retirees within the current fiscal year. The Non-current portion of this item represents the part recognised by the Fund in the year under review but only to be paid in future.
F320: 159 | H320: Long-term borrowings | I320: Borrowings comprise obligations under bank overdrafts, loans due to other group companies, redeemable debentures, bonds, commercial paper, bills of exchange and any other form of borrowing. These borrowings are payable over a period of twelve months. Accrued interest on borrowings should not be included here. Finance leases, although are borrowings too, should not be classified under this line.
F322: 160 | H322: Finance lease liability | I322: A finance lease is a lease that transfers substantially all the risks and rewards incidental to the ownership of an asset. The title may (through a bargain purchase option) or may not eventually be transferred to the lessee.
F324: 161 | H324: Operating Lease Liability | I324: An operating lease is the rental of an asset from a lessor, but not under the terms that would classify it as a capital lease. An operating lease tends to have a shorter duration than a capital lease, and the lessee does not have the option to acquire the asset through a bargain purchase option. The liability is the amount owed under the contract. Operating lease liability is the amount of money that a customer owes under the terms of a lease contract.
F326: 162 | H326: Other non-current financial liabilities | I326: A financial liability is any liability that is a contractual obligation to deliver cash or another financial asset to another entity or to exchange financial instruments with another entity under conditions that are potentially unfavourable. It is also a contract that will or may be settled in the entity's own equity instruments (could be a non-derivative for which the entity is/may be obliged to deliver a variable number of its own equity instruments or a derivative that will/may be settled other than by the exchange of fixed amount of cash for a fixed number of the entity's own equity instruments)
F328: 163 | H328: Non-current provisions(Post retirement benefits) | I328: Benefits provided by a company to retirees. Typical examples of potential benefits are pensions, life insurance, and health insurance.
F330: 164 | H330: Defined benefit plan obligations | I330: A defined benefit plan is a retirement benefit plan under which payments to former employees are fixed based on a formula that typically incorporates employee earnings and/or years of service. It has no direct relationship to the funding entity's payments to the fund from which payments are made
F332: 165 | H332: Deferred income | I332: Deferred income is the converse of accruals. It is income received during an accounting period, but which is not yet reported as earned. For example, a business may receive payment for a service or a product that has not yet been supplied. Thus cannot be recognised as income up until such time the condition is fulfilled.
F334: 166 | H334: Managed funds | I334: These are funds instituted by the fiscus to run activities across various government institutions to deliver on a particular national priority, e.g. poverty alleviation fund. Allocations are typically disbursed from those particular funds and are monitored from one central point. It is payable over a specific period of more than twelve months.
F336: 167 | H336: Service Concession Arrangement | I336: It is an arrangement whereby a government or other public sector body contracts with a private operator to develop, operate and maintain an infrastructure asset. | J336: E.g an arrangement for building of a road, bridge, tunnel, airport etc
F338: 168 | H338: Derivatives financial instruments | I338: A derivative is a financial instrument whose value changes in relation to changes in a variable, such as an interest rate, commodity price, credit rating, or foreign exchange rate. It also requires either a small or no initial investment, and it is settled at a future date. It allows an entity to speculate on or hedge against future changes in market factors at minimal initial cost. Examples of derivatives include structured debt obligations and deposits, swaps, futures, options, caps, floors, collars, forwards, and other various combinations.
F340: 169 | H340: Accumulated surplus / (deficit) | I340: Accumulated surplus refers to the portion of net income which is retained by the organization rather than distributed to its owners as dividends. Similarly, if the organization makes a loss, then that loss is retained and called variously accumulated losses or accumulated deficit. Accumulated surpluses and deficits are cumulative from year to year with losses offsetting earnings.
F342: 170 | H342: Reserves | I342: Capital, in economics, can mean: factories, machines, and other man-made inputs into a production process. In finance, capital is money and other property of a corporation or other enterprise used in transacting the business. Reserves are generally those accounts where retained earnings are set aside to satisfy dividends, improvements, contingencies, retirement of preferred stock, etc., thereby cannot be distributed for other uses. Included are Non-distributable reserves (other than share capital and share premium). It will include Capital Redemption reserves, contingency reserves and other capital reserves. Amounts attributable to minority interests (if applicable) should also be included in this category
F344: 171 | H344: Revaluation Reserve | I344: A revaluation reserve is a non-cash reserve created to reflect the true value of the asset when the market value of a certain category of asset is more or less than the value of such asset at which it is recorded in the books of account. | J344: For example, revaluation reserves are often used when an asset’s market value greatly fluctuates or is volatile due to currency relationships.
F346: 172 | H346: Translation Reserve | I346: Is a type of reserve that is created to account for foreign currency translation. | J346: For example, if your company has its headquarters in the US but has operations in the UK, you must translate the British pound into US dollar.
F348: 173 | H348: Share capital / capital fund | I348: Share capital is the proportion of a company’s equity that came from the sale of its shares to the shareholders for cash. | J348: Examples of share capital: authorized capital, issued capital, subscribed capital etc.
F350: 174 | H350: Capitalised value of pensions (for Comp Fund only) | I350: Whenever a compensation claim has been approved and registered as a permanent disability, the total amount payable will be calculated and capitalised, and the monthly pension payments will be made from that capitalised value amount up to the last month of pension ( normally is up to 68 years or when the beneficiary pass on, whichever comes first).
F352: 175 | H352: Non-Controlling Interests | I352: A non-controlling interest, also known as a minority interest, is an ownership position wherein a shareholder owns less than 50% of outstanding shares and has no control over decisions. Non-controlling interests are measured at the net asset value of entities and do not account for potential voting rights.
F354: 176 | H354: Consumer deposits | I354: Consumer deposits are refundable deposits paid by consumer on securing a contract for services. Examples are deposits for electricity and water.
F356: 177 | H356: Taxation | I356: A means by which governments finance their expenditure by imposing charges on citizens and corporate entities. Governments use taxation to encourage or discourage certain economic decisions. For example, reduction in taxable personal (or household) income by the amount paid as interest on home mortgage loans results in greater construction activity, and generates more jobs. See also taxation principles.
F358: 178 | H358: Payments received in advance | I358: The satisfaction of a debt or installment payment before its official due date. A prepayment can be for the entire balance or for any upcoming payment that is paid in advance of the date for which the borrower is contractually obligated to pay it. Examples of a prepayment come in the form of rent or early loan repayments.
F360: 179 | H360: Official development assistance | I360: Official resource flows (from international development partners) to South Africa in the form of grants, technical assistance and concessional loans and guarantees, where the South African Government is held at least partially responsible or accountable for the management of such resources.
F362: 180 | H362: Partner (Country) | I362: The common name of the foreign country from which the funds originate, i.e. the home country of the partner (institution); or regional/international organisation (e.g. European Union, African Union etc.) or multilateral institution (e.g. United Nations, World Bank etc.)
F364: 190 | H364: Partner (Institution) | I364: The name of the foreign government department or agency (e.g. Federal Foreign Office, European Investment Bank etc.); or regional/international organisation agency (e.g. European Investment Bank, African Development Bank etc.) or multilateral institution agency (United Nations Environment Programme, International Reconstruction and Development Bank etc.)
F366: 200 | H366: Programme/Project | I366: The non-abbreviated name of the programme/project as it appears in the allocation letter/notice of award/agreement with the partner (institution)
F368: 201 | H368: Total Commitment | I368: Total funds committed by the partner (institution) to the programme/project denominated in the relevant currency per the allocation letter/notice of award/agreement with the partner (institution)
F370: 202 | H370: Receipts | I370: Funds received (cash receipts) from the partner (institution) for the programme/project denominated in Rands
F372: 203 | H372: Payments | I372: Funds disbursed or spent (cash payments) against the funds received from the partner (institution) for the programme/project) denominated in Rands

Sheet Revenue
X3: This colour signifies that the entity's growth rate in a particular year(s) increased
X4: This colour signifies that the entity's growth rate in a particular year(s) decreased
F6: PE No | G6: =Settings!$O$2 -> PE153
F7: Entity name | G7: =Information!B8 -> ZWater Boards Consolidation | S7: =IF(S65<R65/2,"Complete outer year budget","") -> Complete outer year budget | W7: Year on year growth
G9: Notes | I9: =MyYearM3 -> 2023/24 | J9: =MyYearM2 -> 2024/25 | K9: =MyYearM1 -> 2025/26 | M9: =MyYear0 -> 2026/27 | O9: =MyYearP1 -> 2027/28 | Q9: =MyYearP2 -> 2028/29 | S9: =MyYearP3 -> 2029/30 | W9: =MyYearP1 -> 2027/28 | X9: =MyYearP2 -> 2028/29 | Y9: =MyYearP3 -> 2029/30
A10: ItemCat | B10: Item code | F10: Revenue | I10: =Hist_year2RestatedAudited -> Audited outcome | J10: =Hist_year2RestatedAudited -> Audited outcome | K10: =Hist_year1Budget -> Budget | L10: =Hist_year1Audited -> Audited outcome | M10: =Cur_YearBudgEst -> Budget estimate | N10: =Cur_YearApprovedBudg -> Approved budget | O10: =MTEF1BudgEst -> Budget estimate | P10: =MTEF1RevBudgEst -> Revised budget estimate | Q10: =MTEF2BudgEst -> Budget estimate | R10: =MTEF2RevBudgEst -> Revised budget estimate | S10: =MTEF3PlanBudgetEst -> Planning budget estimate
A11: 1 | F11: R Thousand
A12: 1 | B12: RE1 | F12: Revenue
A13: 1 | B13: RE11 | F13: Tax revenue | G13: 1 | I13: 0 | J13: 0 | K13: 0 | L13: 0 | M13: 0 | N13: 0 | O13: 0 | P13: 0 | Q13: 0 | R13: 0 | S13: 0 | W13: =IFERROR((P13/N13)-1,0) -> 0 | X13: =IFERROR((R13/P13)-1,0) -> 0 | Y13: =IFERROR((S13/R13)-1,0) -> 0
A14: 1 | B14: RE12 | F14: Sales of goods and services other than capital assets | G14: 2 | I14: =SUM(I15,I29,I30) -> 39832780.69 | J14: =SUM(J15,J29,J30) -> 42411029.34 | K14: 43299024.66 | L14: 43299024.66 | M14: 47168332.86 | N14: 47168332.86 | O14: 51306271.59 | P14: 51306271.59 | Q14: 56795553.49 | R14: 56795553.49 | S14: 0 | W14: =IFERROR((P14/N14)-1,0) -> 0.08772705074 | X14: =IFERROR((R14/P14)-1,0) -> 0.1069904658 | Y14: =IFERROR((S14/R14)-1,0) -> -1
A15: 1 | B15: RE121 | F15: Sales of goods and services produced by entity | G15: 3 | I15: =SUM(I16,I21,I26) -> 34246851.09 | J15: =SUM(J16,J21,J26) -> 36520021.92 | K15: 41075880.16 | L15: 41075880.16 | M15: 45266090.46 | N15: 45266090.46 | O15: 49412147.45 | P15: 49412147.45 | Q15: 55221470.72 | R15: 55221470.72 | S15: 0 | W15: 0.09159299914 | X15: 0.117568727 | Y15: -1
A16: 1 | B16: RE1211 | F16: Administration fees | G16: 4 | I16: =SUM(I17:I20) -> 18176 | J16: 20051 | K16: 16617 | L16: 16617 | M16: 18112 | N16: 18112 | O16: 19742 | P16: 19742 | Q16: 21519 | R16: 21519 | S16: 0 | W16: 0.08999558304 | X16: 0.09001114375 | Y16: -1
A17: 1 | B17: RE12111 | F17: Management fees | I17: 18176 | J17: 20051 | K17: 16617 | L17: 16617 | M17: 18112 | N17: 18112 | O17: 19742 | P17: 19742 | Q17: 21519 | R17: 21519 | S17: 0 | W17: 0.08999558304 | X17: 0.09001114375 | Y17: -1
A18: 1 | B18: RE12112 | F18: Please specify | I18: 0 | J18: 0 | K18: 0 | L18: 0 | M18: 0 | N18: 0 | O18: 0 | P18: 0 | Q18: 0 | R18: 0 | S18: 0 | W18: 0 | X18: 0 | Y18: 0
A19: 1 | B19: RE12113 | F19: Please specify | I19: 0 | J19: 0 | K19: 0 | L19: 0 | M19: 0 | N19: 0 | O19: 0 | P19: 0 | Q19: 0 | R19: 0 | S19: 0 | W19: 0 | X19: 0 | Y19: 0
A20: 1 | B20: RE12114 | F20: Please specify | I20: 0 | J20: 0 | K20: 0 | L20: 0 | M20: 0 | N20: 0 | O20: 0 | P20: 0 | Q20: 0 | R20: 0 | S20: 0 | W20: 0 | X20: 0 | Y20: 0
A21: 1 | B21: RE1212 | F21: Sales by market establishments | G21: 5 | I21: =SUM(I22:I25) -> 34227427.09 | J21: 36498617.92 | K21: 41057929.66 | L21: 41057929.66 | M21: 45246600.81 | N21: 45246600.81 | O21: 49390960.29 | P21: 49390960.29 | Q21: 55198441.82 | R21: 55198441.82 | S21: 0 | W21: =IFERROR((P21/N21)-1,0) -> 0.09159493544 | X21: =IFERROR((R21/P21)-1,0) -> 0.1175818712 | Y21: =IFERROR((S21/R21)-1,0) -> -1
A22: 1 | B22: RE12121 | F22: Water sales | I22: 32584186.09 | J22: 34700808.54 | K22: 39273515.35 | L22: 39273515.35 | M22: 43790664.23 | N22: 43790664.23 | O22: 47772867.29 | P22: 47772867.29 | Q22: 53347154.66 | R22: 53347154.66 | S22: 0 | W22: =IFERROR((P22/N22)-1,0) -> 0.09093726101 | X22: =IFERROR((R22/P22)-1,0) -> 0.1166831235 | Y22: =IFERROR((S22/R22)-1,0) -> -1
A23: 1 | B23: RE12122 | F23: Wastewater | I23: 748925 | J23: 1024052.379 | K23: 1213032.311 | L23: 1213032.311 | M23: 1308811.037 | N23: 1308811.037 | O23: 1440666.024 | P23: 1440666.024 | Q23: 1617788.991 | R23: 1617788.991 | S23: 0 | W23: =IFERROR((P23/N23)-1,0) -> 0.100744097 | X23: 0.1229451965 | Y23: -1
A24: 1 | B24: RE12123 | F24: Other activities | I24: 894316 | J24: 773757 | K24: 571382 | L24: 571382 | M24: 147125.5434 | N24: 147125.5434 | O24: 177426.9745 | P24: 177426.9745 | Q24: 233498.1606 | R24: 233498.1606 | S24: 0 | W24: 0.2059562898 | X24: 0.3160240221 | Y24: -1
A25: 1 | B25: RE12124 | F25: Please specify | I25: 0 | J25: 0 | K25: 0 | L25: 0 | M25: 0 | N25: 0 | O25: 0 | P25: 0 | Q25: 0 | R25: 0 | S25: 0 | W25: 0 | X25: 0 | Y25: 0
A26: 1 | B26: RE1213 | F26: Other sales | G26: 6 | I26: =SUM(I27:I28) -> 1248 | J26: =SUM(J27:J28) -> 1353 | K26: =SUM(K27:K28) -> 1333.503385 | L26: =SUM(L27:L28) -> 1333.503385 | M26: 1377.655655 | N26: =SUM(N27:N28) -> 1377.655655 | O26: 1445.160782 | P26: =SUM(P27:P28) -> 1445.160782 | Q26: 1509.903985 | R26: =SUM(R27:R28) -> 1509.903985 | S26: =SUM(S27:S28) -> 0 | W26: 0.049 | X26: 0.0448 | Y26: -1
A27: 1 | B27: RE12131 | F27: User charges | I27: 0 | J27: 0 | K27: 0 | L27: 0 | M27: 0 | N27: 0 | O27: 0 | P27: 0 | Q27: 0 | R27: 0 | S27: 0 | W27: 0 | X27: 0 | Y27: 0
A28: 1 | B28: RE12132 | F28: Sales other than user charges | I28: 1248 | J28: 1353 | K28: 1333.503385 | L28: 1333.503385 | M28: 1377.655655 | N28: 1377.655655 | O28: 1445.160782 | P28: 1445.160782 | Q28: 1509.903985 | R28: 1509.903985 | S28: 0 | W28: 0.049 | X28: 0.0448 | Y28: -1
B29: RE1214 | F29: Sales of scrap, waste, arms and other used current goods | G29: 7 | I29: 0 | J29: 0 | K29: 0 | L29: 0 | M29: 0 | N29: 0 | O29: 0 | P29: 0 | Q29: 0 | R29: 0 | S29: 0 | W29: 0 | X29: 0 | Y29: 0
A30: 1 | B30: RE122 | F30: Entity revenue other than sales | I30: =SUM(I31,I32,I36,I40) -> 5585929.595 | J30: 5891007.423 | K30: 2223144.499 | L30: 2223144.499 | M30: 1902242.401 | N30: 1902242.401 | O30: 1894124.146 | P30: 1894124.146 | Q30: 1574082.77 | R30: 1574082.77 | S30: 0 | W30: -0.004267728685 | X30: -0.1689653643 | Y30: -1
A31: 1 | B31: RE1221 | F31: Fines penalties and forfeits | G31: 19 | I31: 1516 | J31: 1874.535 | K31: 1103.30809 | L31: 1103.30809 | M31: 1152.882562 | N31: 1152.882562 | O31: 1205.378883 | P31: 1205.378883 | Q31: 1261.424676 | R31: 1261.424676 | S31: 0 | W31: 0.04553483811 | X31: 0.04649641158 | Y31: -1
A32: 1 | B32: RE1222 | F32: Gains from | I32: =SUM(I33:I35) -> 10232 | J32: =SUM(J33:J35) -> 228125.7026 | K32: 1732 | L32: 1732 | M32: 1749.32 | N32: 1749.32 | O32: 2098.858944 | P32: 2098.858944 | Q32: 2119.847533 | R32: 2119.847533 | S32: 0 | W32: 0.1998141815 | X32: 0.01 | Y32: -1
A33: 1 | B33: RE12221 | F33: Sale of fixed assets | I33: 0 | J33: 0 | K33: 0 | L33: 0 | M33: 0 | N33: 0 | O33: 0 | P33: 0 | Q33: 0 | R33: 0 | S33: 0 | W33: 0 | X33: 0 | Y33: 0
A34: 1 | B34: RE12222 | F34: Adjustments to fair value of assets | I34: 0 | J34: 7292 | K34: 0 | L34: 0 | M34: 0 | N34: 0 | O34: 0 | P34: 0 | Q34: 0 | R34: 0 | S34: 0 | W34: 0 | X34: 0 | Y34: 0
A35: 1 | B35: RE12223 | F35: Other | I35: 10232 | J35: 220833.7026 | K35: 1732 | L35: 1732 | M35: 1749.32 | N35: 1749.32 | O35: 2098.858944 | P35: 2098.858944 | Q35: 2119.847533 | R35: 2119.847533 | S35: 0 | W35: 0.1998141815 | X35: 0.01 | Y35: -1
A36: 1 | B36: RE1223 | F36: Interest, dividends and rent on land | G36: 20 | I36: =SUM(I37:I39) -> 3417815.595 | J36: =SUM(J37:J39) -> 3816805.417 | K36: 1641414.524 | L36: 1641414.524 | M36: 1322264.809 | N36: 1322264.809 | O36: 1278373.084 | P36: 1278373.084 | Q36: 918257.065 | R36: 918257.065 | S36: 0 | W36: -0.03319435357 | X36: -0.2816986865 | Y36: -1
A37: 1 | B37: RE12231 | F37: Interest | G37: 21 | I37: 3417815.595 | J37: 3816805.417 | K37: 1641414.524 | L37: 1641414.524 | M37: 1322264.809 | N37: 1322264.809 | O37: 1278373.084 | P37: 1278373.084 | Q37: 918257.065 | R37: 918257.065 | S37: 0 | W37: -0.03319435357 | X37: -0.2816986865 | Y37: -1
A38: 1 | B38: RE12232 | F38: Dividends | G38: 22 | I38: 0 | J38: 0 | K38: 0 | L38: 0 | M38: 0 | N38: 0 | O38: 0 | P38: 0 | Q38: 0 | R38: 0 | S38: 0 | W38: 0 | X38: 0 | Y38: 0
A39: 1 | B39: RE12233 | F39: Rent on land | G39: 23 | I39: 0 | J39: 0 | K39: 0 | L39: 0 | M39: 0 | N39: 0 | O39: 0 | P39: 0 | Q39: 0 | R39: 0 | S39: 0 | W39: 0 | X39: 0 | Y39: 0
A40: 1 | B40: RE1224 | F40: Unclassified revenue | G40: 24 | I40: =SUM(I41:I43) -> 2156366 | J40: =SUM(J41:J43) -> 1844201.768 | K40: 578894.6677 | L40: =SUM(L41:L43) -> 578894.6677 | M40: 577075.3889 | N40: =SUM(N41:N43) -> 577075.3889 | O40: 612446.8248 | P40: =SUM(P41:P43) -> 612446.8248 | Q40: 652444.4324 | R40: =SUM(R41:R43) -> 652444.4324 | S40: =SUM(S41:S43) -> 0 | W40: 0.06129430667 | X40: 0.06530788635 | Y40: -1
A41: 1 | B41: RE12241 | F41: Realisation of deferred income (other than transfers) | I41: 523443 | J41: 2328.768 | K41: 0 | L41: 0 | M41: 0 | N41: 0 | O41: 0 | P41: 0 | Q41: 0 | R41: 0 | S41: 0 | W41: 0 | X41: 0 | Y41: 0
A42: 1 | B42: RE12242 | F42: Acturial Surplus | I42: 1010514 | J42: 260037 | K42: 101836.6677 | L42: 101836.6677 | M42: 111874.3563 | N42: 111874.3563 | O42: 114521.127 | P42: 114521.127 | Q42: 117363.1007 | R42: 117363.1007 | S42: 0 | W42: 0.02365842197 | X42: 0.02481615138 | Y42: -1
A43: 1 | B43: RE12243 | F43: Other income | I43: 622409 | J43: 1581836 | K43: 477058 | L43: 477058 | M43: 465201.0326 | N43: 465201.0326 | O43: 497925.6977 | P43: 497925.6977 | Q43: 535081.3318 | R43: 535081.3318 | S43: 0 | W43: 0.07034521172 | X43: 0.07462084037 | Y43: -1
A44: 1 | B44: RE13 | F44: Transfers received | G44: 8 | I44: =SUM(I45:I46,I54,I60:I62) -> 1599355 | J44: 4799596.982 | K44: 855000 | L44: 855000 | M44: 1500000 | N44: 1500000 | O44: 0 | P44: 0 | Q44: 0 | R44: 0 | S44: 0 | W44: -1 | X44: 0 | Y44: 0
A45: 4 | B45: RE131 | F45: Social contributions received (social security funds only) | I45: 0 | J45: 0 | K45: 0 | L45: 0 | M45: 0 | N45: 0 | O45: 0 | P45: 0 | Q45: 0 | R45: 0 | S45: 0 | W45: 0 | X45: 0 | Y45: 0
A46: 1 | B46: RE132 | F46: Other government units | G46: 9 | I46: =SUM(I47,I51:I53) -> 1599355 | J46: =SUM(J47,J51:J53) -> 4799596.982 | K46: =SUM(K47,K51:K53) -> 855000 | L46: =SUM(L47,L51:L53) -> 855000 | M46: 1500000 | N46: =SUM(N47,N51:N53) -> 1500000 | O46: 0 | P46: =SUM(P47,P51:P53) -> 0 | Q46: 0 | R46: =SUM(R47,R51:R53) -> 0 | S46: =SUM(S47,S51:S53) -> 0 | W46: -1 | X46: 0 | Y46: 0
A47: 1 | B47: RE1321 | F47: National government | G47: 10 | I47: =SUM(I48:I50) -> 1599355 | J47: =SUM(J48:J50) -> 4799596.982 | K47: =SUM(K48:K50) -> 855000 | L47: =SUM(L48:L50) -> 855000 | M47: 1500000 | N47: =SUM(N48:N50) -> 1500000 | O47: 0 | P47: =SUM(P48:P50) -> 0 | Q47: 0 | R47: =SUM(R48:R50) -> 0 | S47: =SUM(S48:S50) -> 0 | W47: -1 | X47: 0 | Y47: 0
A48: 1 | B48: RE13211 | F48: Departmental transfers | I48: 1599355 | J48: 4799596.982 | K48: 855000 | L48: 855000 | M48: 1500000 | N48: 1500000 | O48: 0 | P48: 0 | Q48: 0 | R48: 0 | S48: 0 | W48: -1 | X48: 0 | Y48: 0
A49: 1 | B49: RE13212 | F49: Realisation of deferred transfers | I49: 0 | J49: 0 | K49: 0 | L49: 0 | M49: 0 | N49: 0 | O49: 0 | P49: 0 | Q49: 0 | R49: 0 | S49: 0 | W49: 0 | X49: 0 | Y49: 0
A50: 1 | B50: RE13213 | F50: Other government units | I50: 0 | J50: 0 | K50: 0 | L50: 0 | M50: 0 | N50: 0 | O50: 0 | P50: 0 | Q50: 0 | R50: 0 | S50: 0 | W50: 0 | X50: 0 | Y50: 0
A51: 1 | B51: RE1322 | F51: Departmental agencies and accounts | G51: 13 | I51: 0 | J51: 0 | K51: 0 | L51: 0 | M51: 0 | N51: 0 | O51: 0 | P51: 0 | Q51: 0 | R51: 0 | S51: 0 | W51: 0 | X51: 0 | Y51: 0
A52: 1 | B52: RE1323 | F52: Provincial governments | G52: 14 | I52: 0 | J52: 0 | K52: 0 | L52: 0 | M52: 0 | N52: 0 | O52: 0 | P52: 0 | Q52: 0 | R52: 0 | S52: 0 | W52: 0 | X52: 0 | Y52: 0
A53: 1 | B53: RE1324 | F53: Local governments | G53: 15 | I53: 0 | J53: 0 | K53: 0 | L53: 0 | M53: 0 | N53: 0 | O53: 0 | P53: 0 | Q53: 0 | R53: 0 | S53: 0 | W53: 0 | X53: 0 | Y53: 0
A54: 2 | B54: RE133 | F54: Skills development (SETAS only) | I54: =SUM(I55,I59) -> 0 | J54: =SUM(J55,J59) -> 0 | K54: 0 | L54: 0 | M54: 0 | N54: 0 | O54: 0 | P54: 0 | Q54: 0 | R54: 0 | S54: 0 | W54: 0 | X54: 0 | Y54: 0
A55: 2 | B55: RE1331 | F55: Skills development levies | I55: =SUM(I56:I58) -> 0 | J55: =SUM(J56:J58) -> 0 | K55: 0 | L55: 0 | M55: 0 | N55: 0 | O55: 0 | P55: 0 | Q55: 0 | R55: 0 | S55: 0 | W55: 0 | X55: 0 | Y55: 0
A56: 2 | B56: RE13311 | F56: Admin - 10.5% | I56: 0 | J56: 0 | K56: 0 | L56: 0 | M56: 0 | N56: 0 | O56: 0 | P56: 0 | Q56: 0 | R56: 0 | S56: 0 | W56: 0 | X56: 0 | Y56: 0
A57: 2 | B57: RE13312 | F57: Employer grant fund levy - 20% | I57: 0 | J57: 0 | K57: 0 | L57: 0 | M57: 0 | N57: 0 | O57: 0 | P57: 0 | Q57: 0 | R57: 0 | S57: 0 | W57: 0 | X57: 0 | Y57: 0
A58: 2 | B58: RE13313 | F58: Discretionary grants - 49.5% | I58: 0 | J58: 0 | K58: 0 | L58: 0 | M58: 0 | N58: 0 | O58: 0 | P58: 0 | Q58: 0 | R58: 0 | S58: 0 | W58: 0 | X58: 0 | Y58: 0
A59: 2 | B59: RE1332 | F59: National skills fund | I59: 0 | J59: 0 | K59: 0 | L59: 0 | M59: 0 | N59: 0 | O59: 0 | P59: 0 | Q59: 0 | R59: 0 | S59: 0 | W59: 0 | X59: 0 | Y59: 0
A60: 1 | B60: RE134 | F60: Higher education institutions | G60: 16 | I60: 0 | J60: 0 | K60: 0 | L60: 0 | M60: 0 | N60: 0 | O60: 0 | P60: 0 | Q60: 0 | R60: 0 | S60: 0 | W60: 0 | X60: 0 | Y60: 0
A61: 1 | B61: RE136 | F61: Foreign governments and international organisations | G61: 17 | I61: 0 | J61: 0 | K61: 0 | L61: 0 | M61: 0 | N61: 0 | O61: 0 | P61: 0 | Q61: 0 | R61: 0 | S61: 0 | W61: 0 | X61: 0 | Y61: 0
A62: 1 | B62: RE135 | F62: Local non-government donors | G62: 18 | I62: 0 | J62: 0 | K62: 0 | L62: 0 | M62: 0 | N62: 0 | O62: 0 | P62: 0 | Q62: 0 | R62: 0 | S62: 0 | W62: 0 | X62: 0 | Y62: 0
A63: 1 | B63: RE14 | F63: Tax benefit | G63: 25 | I63: 0 | J63: 0 | K63: 0 | L63: 0 | M63: 0 | N63: 0 | O63: 0 | P63: 0 | Q63: 0 | R63: 0 | S63: 0 | W63: 0 | X63: 0 | Y63: 0
A64: 1 | B64: RE15 | F64: Outside shareholders interest | G64: 26 | I64: 0 | J64: 0 | K64: 0 | L64: 0 | M64: 0 | N64: 0 | O64: 0 | P64: 0 | Q64: 0 | R64: 0 | S64: 0 | W64: 0 | X64: 0 | Y64: 0
A65: 1 | B65: RE16 | F65: Total revenue | I65: =SUM(I13:I14,I44,I63:I64) -> 41432135.69 | J65: =SUM(J13:J14,J44,J63:J64) -> 47210626.33 | K65: 44154024.66 | L65: 44154024.66 | M65: 48668332.86 | N65: 48668332.86 | O65: 51306271.59 | P65: 51306271.59 | Q65: 56795553.49 | R65: 56795553.49 | S65: 0 | U65: =IF(S65<R65/2,"Complete outer year budget","") -> Complete outer year budget | W65: 0.05420236477 | X65: 0.1069904658 | Y65: -1
A66: 1
A67: 1 | F67: Check
A68: 1 | F68: Total revenue | I68: =I65 -> 41432135.69 | J68: =J65 -> 47210626.33 | K68: =K65 -> 44154024.66 | L68: =L65 -> 44154024.66 | M68: =M65 -> 48668332.86 | N68: 48668332.86 | O68: =O65 -> 51306271.59 | P68: 51306271.59 | Q68: 56795553.49 | R68: 56795553.49 | S68: 0
A69: 1 | F69: Total expenses | I69: ='Expend summary'!I140 -> 33985982.56 | J69: ='Expend summary'!J140 -> 37181601.52 | K69: ='Expend summary'!K140 -> 37408541.85 | L69: ='Expend summary'!L140 -> 37408541.85 | M69: ='Expend summary'!M140 -> 40007278.5 | N69: ='Expend summary'!N140 -> 40007278.5 | O69: ='Expend summary'!P140 -> 43191520.81 | P69: ='Expend summary'!Q140 -> 43191520.81 | Q69: ='Expend summary'!S140 -> 47708330.47 | R69: ='Expend summary'!T140 -> 47708330.47 | S69: ='Expend summary'!V140 -> 0
A70: 1 | F70: Surplus / (Deficit) | I70: =I68-I69 -> 7446153.127 | J70: =J68-J69 -> 10029024.8 | K70: =K68-K69 -> 6745482.808 | L70: =L68-L69 -> 6745482.808 | M70: 8661054.367 | N70: 8661054.367 | O70: =O68-O69 -> 8114750.78 | P70: 8114750.78 | Q70: 9087223.022 | R70: 9087223.022 | S70: 0
A71: 1 | F71: Annual report Surplus / (Deficit) | J71: 10029023.88 | L71: 6745482.808
A72: 1 | F72: Differences | J72: =ROUND(IF(J70-J71>0,IF(J70-J71<1,0,J70-J71),J70-J71),0) -> 0 | L72: =ROUND(IF(L70-L71>0,IF(L70-L71<1,0,L70-L71),L70-L71),0) -> 0
A73: 1

Sheet Admin
F6: PE No | G6: =Settings!O2 -> PE153
F7: Entity name | G7: =Settings!$E$2 -> ZWater Boards Consolidation
F9: Performance and operations information
A10: ItemCat | B10: Item code | C10: Hide/unhide | F10: Activity/Output/Outcome/Efficiency Indicator | G10: MTDP Outcomes | I10: =MyYearM3 -> 2023/24 | J10: =MyYearM2 -> 2024/25 | K10: =MyYearM1 -> 2025/26 | L10: =MyYear0 -> 2026/27 | M10: =MyYearP1 -> 2027/28 | N10: =MyYearP2 -> 2028/29 | O10: =MyYearP3 -> 2029/30 | P10: Related Objectives | Q10: Add to 'Performance Indicators' Sheet | R10: Comments
A11: 1 | C11: 1 | F11: 0 | G11: 0 | H11: 0 | I11: 0 | J11: 0 | K11: 0 | L11: 0 | M11: 0 | N11: 0 | P11: 0 | Q11: No | R11: 0
A12: 1 | C12: 1 | F12: 0 | G12: 0 | H12: 0 | I12: 0 | J12: 0 | K12: 0 | L12: 0 | M12: 0 | N12: 0 | P12: 0 | Q12: 0 | R12: 0
A13: 1 | C13: 1 | F13: 0 | G13: 0 | H13: 0 | I13: 0 | J13: 0 | K13: 0 | L13: 0 | M13: 0 | N13: 0 | P13: 0 | Q13: 0 | R13: 0
A14: 1 | C14: 1 | F14: 0 | G14: 0 | H14: 0 | I14: 0 | J14: 0 | K14: 0 | L14: 0 | M14: 0 | N14: 0 | P14: 0 | Q14: 0 | R14: 0
A15: 1 | C15: 1 | F15: 0 | G15: 0 | H15: 0 | I15: 0 | J15: 0 | K15: 0 | L15: 0 | M15: 0 | N15: 0 | P15: 0 | Q15: 0 | R15: 0
A16: 1 | C16: 1 | F16: 0 | G16: 0 | H16: 0 | I16: 0 | J16: 0 | K16: 0 | L16: 0 | M16: 0 | N16: 0 | P16: 0 | Q16: 0 | R16: 0
A17: 1 | C17: 1 | F17: 0 | G17: 0 | H17: 0 | I17: 0 | J17: 0 | K17: 0 | L17: 0 | M17: 0 | N17: 0 | P17: 0 | Q17: 0 | R17: 0
A18: 1 | C18: 1 | F18: 0 | G18: 0 | H18: 0 | I18: 0 | J18: 0 | K18: 0 | L18: 0 | M18: 0 | N18: 0 | P18: 0 | Q18: 0 | R18: 0
A19: 1 | C19: 1 | F19: 0 | G19: 0 | H19: 0 | I19: 0 | J19: 0 | K19: 0 | L19: 0 | M19: 0 | N19: 0 | P19: 0 | Q19: 0 | R19: 0
A20: 1 | C20: 1 | F20: 0 | G20: 0 | H20: 0 | I20: 0 | J20: 0 | K20: 0 | L20: 0 | M20: 0 | N20: 0 | P20: 0 | Q20: 0 | R20: 0
A21: 1 | C21: 1 | F21: 0 | G21: 0 | H21: 0 | I21: 0 | J21: 0 | K21: 0 | L21: 0 | M21: 0 | N21: 0 | P21: 0 | Q21: 0 | R21: 0
A22: 1 | C22: 1 | F22: 0 | G22: 0 | H22: 0 | I22: 0 | J22: 0 | K22: 0 | L22: 0 | M22: 0 | N22: 0 | P22: 0 | Q22: 0 | R22: 0
A23: 1 | C23: 1 | F23: 0 | G23: 0 | H23: 0 | I23: 0 | J23: 0 | K23: 0 | L23: 0 | M23: 0 | N23: 0 | P23: 0 | Q23: 0 | R23: 0
A24: 1 | C24: 1 | F24: 0 | G24: 0 | H24: 0 | I24: 0 | J24: 0 | K24: 0 | L24: 0 | M24: 0 | N24: 0 | P24: 0 | Q24: 0 | R24: 0
A25: 1 | C25: 1 | F25: 0 | G25: 0 | H25: 0 | I25: 0 | J25: 0 | K25: 0 | L25: 0 | M25: 0 | N25: 0 | P25: 0 | Q25: 0 | R25: 0
A26: 1 | C26: 1 | F26: Notes:
A27: 1 | C27: 1 | F27: Performance indicators are an explanation of objectives performance. | AA27: This colour signifies that the entity's growth rate in a particular year(s) increased
A28: 1 | C28: 1 | F28: 1. They are specific measurements that track progress towards achieving the goals and objectives of an institution. | AA28: This colour signifies that the entity's growth rate in a particular year(s) decreased
A29: 1 | C29: 1 | F29: 2. Institutions should use performance indicators in the 2025/26 Annual Performance Plans and those in the 2026 ENE.
A30: 1 | C30: 1 | F30: 3. Institutions should also indicate instances where targets are not affected by budget baseline reprioritisation. | Z30: Year on year growth
A31: 1 | C31: 1
A32: 1 | C32: 1 | I32: =MyYearM3 -> 2023/24 | J32: =MyYearM2 -> 2024/25 | K32: =MyYearM1 -> 2025/26 | M32: =MyYear0 -> 2026/27 | P32: =MyYearP1 -> 2027/28 | S32: =MyYearP2 -> 2028/29 | V32: =MyYearP3 -> 2029/30 | Z32: =MyYearP1 -> 2027/28 | AA32: =MyYearP2 -> 2028/29 | AB32: =MyYearP3 -> 2029/30
A33: 1 | C33: 1 | F33: Expenses | I33: =Hist_year3RestatedAudited -> Audited outcome | J33: =Hist_year2RestatedAudited -> Audited outcome | K33: =Hist_year1Budget -> Budget | L33: =Hist_year1Audited -> Audited outcome | M33: =Cur_YearBudgEst -> Budget estimate | N33: =Cur_YearApprovedBudg -> Approved budget | O33: =Cur_YearChangeFrRevBudg -> Changes from budget estimate | P33: =MTEF1BudgEst -> Budget estimate | Q33: =MTEF1RevBudgEst -> Revised budget estimate | R33: =MTEF1_ChangeFrBudgEst -> Changes from budget estimate | S33: =MTEF2BudgEst -> Budget estimate | T33: =MTEF2RevBudgEst -> Revised budget estimate | U33: =MTEF2_ChangeFrBudgEst -> Changes from budget estimate | V33: =MTEF3PlanBudgetEst -> Planning budget estimate
A34: 1 | C34: 1
A35: 1 | C35: 1 | F35: Rand thousand
A36: 1 | C36: 1 | F36: Objective/Activity
A37: 1 | C37: =IF(SUM(I37:O37)>0,1,0) -> 1 | F37: Administration | I37: 7816659.782 | J37: 8922532.465 | K37: 9582251.646 | L37: 9582251.646 | M37: 9588914.265 | N37: 9588914.265 | O37: =SUM(N37-M37) -> 0 | P37: 10417668.67 | Q37: 10417668.67 | R37: =SUM(Q37-P37) -> 0 | S37: 11341663.26 | T37: 11341663.26 | U37: =SUM(T37-S37) -> 0 | Z37: =IFERROR((Q37/N37)-1,0) -> 0.08642838801 | AA37: =IFERROR((T37/Q37)-1,0) -> 0.08869494871 | AB37: =IFERROR((V37/T37)-1,0) -> -1
A38: 1 | C38: 1 | F38: Economic classification
A39: 1 | B39: EX11 | C39: 1 | F39: Current payments | I39: =SUM(I40,I43,I98:I99,I105) -> 7816659.655 | J39: 8922531.537 | K39: 9582251.457 | L39: 9582251.457 | M39: 9588913.874 | N39: 9588913.874 | O39: =SUM(N39-M39) -> 0 | P39: =SUM(P40,P43,P98:P99,P105) -> 10417668.2 | Q39: =SUM(Q40,Q43,Q98:Q99,Q105) -> 10417668.2 | R39: =SUM(Q39-P39) -> 0 | S39: =SUM(S40,S43,S98:S99,S105) -> 11341662.13 | T39: =SUM(T40,T43,T98:T99,T105) -> 11341662.13 | U39: =SUM(T39-S39) -> 0 | V39: =SUM(V40,V43,V98:V99,V105) -> 0 | Z39: =IFERROR((Q39/N39)-1,0) -> 0.08642838376 | AA39: =IFERROR((T39/Q39)-1,0) -> 0.08869488911 | AB39: =IFERROR((V39/T39)-1,0) -> -1
A40: 1 | B40: EX111 | C40: 1 | F40: Compensation of employees | I40: =SUM(I41:I42) -> 3384732.157 | J40: 4206947.152 | K40: 4176751.339 | L40: 4176751.339 | M40: 4300701.486 | N40: 4300701.486 | O40: =SUM(N40-M40) -> 0 | P40: =SUM(P41:P42) -> 4558227.441 | Q40: =SUM(Q41:Q42) -> 4558227.441 | R40: =SUM(Q40-P40) -> 0 | S40: =SUM(S41:S42) -> 4835320.445 | T40: =SUM(T41:T42) -> 4835320.445 | U40: =SUM(T40-S40) -> 0 | V40: =SUM(V41:V42) -> 0 | Z40: =IFERROR((Q40/N40)-1,0) -> 0.05987998826 | AA40: =IFERROR((T40/Q40)-1,0) -> 0.06078963967 | AB40: =IFERROR((V40/T40)-1,0) -> -1
A41: 1 | B41: EX1111 | C41: 1 | F41: Salaries and wages | I41: 3312353.157 | J41: 4116392.352 | K41: 4092026.139 | L41: 4092026.139 | M41: 4220597.006 | N41: 4220597.006 | O41: =SUM(N41-M41) -> 0 | P41: 4473964.026 | Q41: 4473964.026 | R41: =SUM(Q41-P41) -> 0 | S41: 4746255.768 | T41: 4746255.768 | U41: =SUM(T41-S41) -> 0 | Z41: =IFERROR((Q41/N41)-1,0) -> 0.06003108552 | AA41: =IFERROR((T41/Q41)-1,0) -> 0.06086140615 | AB41: =IFERROR((V41/T41)-1,0) -> -1
A42: 1 | B42: EX1112 | C42: 1 | F42: Social contributions | I42: 72379 | J42: 90554.8 | K42: 84725.2 | L42: 84725.2 | M42: 80104.48 | N42: 80104.48 | O42: =SUM(N42-M42) -> 0 | P42: 84263.41469 | Q42: 84263.41469 | R42: =SUM(Q42-P42) -> 0 | S42: 89064.67667 | T42: 89064.67667 | U42: =SUM(T42-S42) -> 0 | Z42: =IFERROR((Q42/N42)-1,0) -> 0.05191887762 | AA42: =IFERROR((T42/Q42)-1,0) -> 0.0569792002 | AB42: =IFERROR((V42/T42)-1,0) -> -1
A43: 1 | B43: EX112 | C43: 1 | F43: Goods and services | I43: =SUM(I45:I54,I58:I61,I73,I75:I97) -> 3839039.347 | J43: =SUM(J45:J54,J58:J61,J73,J75:J97) -> 4114410.702 | K43: =SUM(K45:K54,K58:K61,K73,K75:K97) -> 4571163.661 | L43: 4571163.661 | M43: 4477847.464 | N43: 4477847.464 | O43: 0 | P43: =SUM(P45:P54,P58:P61,P73,P75:P97) -> 4852496.61 | Q43: =SUM(Q45:Q54,Q58:Q61,Q73,Q75:Q97) -> 4852496.61 | R43: =SUM(R45:R54,R58:R61,R73,R75:R97) -> 0 | S43: 5272010.632 | T43: 5272010.632 | U43: 0 | V43: 0 | W43: 0 | Z43: =IFERROR((Q43/N43)-1,0) -> 0.08366724153 | AA43: =IFERROR((T43/Q43)-1,0) -> 0.08645323344 | AB43: =IFERROR((V43/T43)-1,0) -> -1
A44: 1 | B44: EX000 | C44: 0 | F44: Of which 1
A45: 1 | B45: EX1133 | C45: 1 | F45: Administrative fees | I45: 3663.68946 | J45: 5422.50959 | K45: 9896.415997 | L45: 9896.415997 | M45: 8727.553244 | N45: 8727.553244 | O45: =SUM(N45-M45) -> 0 | P45: 10746.78318 | Q45: 10746.78318 | R45: =SUM(Q45-P45) -> 0 | S45: 12016.05139 | T45: 12016.05139 | U45: =SUM(T45-S45) -> 0 | Z45: =IFERROR((Q45/N45)-1,0) -> 0.2313626607 | AA45: =IFERROR((T45/Q45)-1,0) -> 0.1181068027 | AB45: =IFERROR((V45/T45)-1,0) -> -1
A46: 1 | B46: EX1134 | C46: 1 | F46: Advertising | I46: 32406.1579 | J46: 36316.96561 | K46: 42461 | L46: 42461 | M46: 42291.24363 | N46: 42291.24363 | O46: 0 | P46: 96510.83936 | Q46: 96510.83936 | R46: 0 | S46: 109287.742 | T46: 109287.742 | U46: 0 | Z46: 1.282052526 | AA46: 0.1323882655 | AB46: -1
A47: 1 | B47: EX1135 | C47: 1 | F47: Minor assets | I47: 4372 | J47: 3906 | K47: 6686 | L47: 6686 | M47: 7118.5842 | N47: 7118.5842 | O47: 0 | P47: 7612.613943 | Q47: 7612.613943 | R47: 0 | S47: 8161.483409 | T47: 8161.483409 | U47: 0 | Z47: 0.0694 | AA47: 0.0721 | AB47: -1
A48: 1 | B48: EX1136 | C48: 1 | F48: Audit costs: External | I48: 46574.48513 | J48: 54743.77665 | K48: 51538.54199 | L48: 51538.54199 | M48: 52394.28242 | N48: 52394.28242 | O48: 0 | P48: 86977.94253 | Q48: 86977.94253 | R48: 0 | S48: 112343.5938 | T48: 112343.5938 | U48: 0 | Z48: 0.6600655359 | AA48: 0.2916331489 | AB48: -1
A49: 1 | B49: EX1139 | C49: 1 | F49: Bursaries: Employees | I49: 8441.22173 | J49: 9742.42182 | K49: 4963 | L49: 4963 | M49: 6160.2391 | N49: 6160.2391 | O49: 0 | P49: 17737.47537 | Q49: 17737.47537 | R49: 0 | S49: 19737.47537 | T49: 19737.47537 | U49: 0 | Z49: 1.879348526 | AA49: 0.1127556182 | AB49: -1
A50: 1 | B50: EX1140 | C50: 1 | F50: Catering: Internal activities | I50: 36175.80025 | J50: 45872.20524 | K50: 41737 | L50: 41737 | M50: 30148.59018 | N50: 30148.59018 | O50: 0 | P50: 66547.27192 | Q50: 66547.27192 | R50: 0 | S50: 72410.39091 | T50: 72410.39091 | U50: 0 | Z50: 1.207309579 | AA50: 0.08810457318 | AB50: -1
A51: 1 | B51: EX1122 | C51: 1 | F51: Communication (G&S) | I51: 31758.06386 | J51: 21443.51677 | K51: 25416.73645 | L51: 25416.73645 | M51: 37394.40341 | N51: 37394.40341 | O51: 0 | P51: 70790.40382 | Q51: 70790.40382 | R51: 0 | S51: 79927.66594 | T51: 79927.66594 | U51: 0 | Z51: 0.8930748283 | AA51: 0.1290748693 | AB51: -1
A52: 1 | B52: EX1123 | C52: 1 | F52: Computer services | I52: 52011.74347 | J52: 59588.92591 | K52: 65451.86049 | L52: 65451.86049 | M52: 47032.80811 | N52: 47032.80811 | O52: 0 | P52: 61480.91813 | Q52: 61480.91813 | R52: 0 | S52: 68533.16835 | T52: 68533.16835 | U52: 0 | Z52: 0.3071921622 | AA52: 0.1147063257 | AB52: -1
A53: 1 | B53: EX1124 | C53: 1 | F53: Consultants: Business and advisory services | I53: 228099.8952 | J53: 257665.2114 | K53: 223284.0545 | L53: 223284.0545 | M53: 206908.081 | N53: 206908.081 | O53: 0 | P53: 287736.8521 | Q53: 287736.8521 | R53: 0 | S53: 326630.8343 | T53: 326630.8343 | U53: 0 | Z53: 0.3906506244 | AA53: 0.1351720572 | AB53: -1
A54: 1 | B54: EX1180 | C54: 1 | F54: Infrastructure and planning services | I54: =SUM(I55:I57) -> 78291 | J54: 17372 | K54: 0 | L54: 0 | M54: 0 | N54: 0 | O54: =SUM(N54-M54) -> 0 | P54: =SUM(P55:P57) -> 0 | Q54: =SUM(Q55:Q57) -> 0 | R54: =SUM(Q54-P54) -> 0 | S54: =SUM(S55:S57) -> 0 | T54: =SUM(T55:T57) -> 0 | U54: =SUM(T54-S54) -> 0 | V54: =SUM(V55:V57) -> 0 | Z54: 0 | AA54: 0 | AB54: 0
A55: 1 | B55: EX11801 | C55: 0 | F55: Maintenance and repairs: Buildings: Consultants | I55: 0 | J55: 0 | K55: 0 | L55: 0 | M55: 0 | N55: 0 | O55: =SUM(N55-M55) -> 0 | P55: 0 | Q55: 0 | R55: =SUM(Q55-P55) -> 0 | S55: 0 | T55: 0 | U55: 0 | Z55: 0 | AA55: 0 | AB55: 0
A56: 1 | B56: EX11802 | C56: 0 | F56: Maintenance and repairs: Other fixed structures: Consultants | I56: 0 | J56: 0 | K56: 0 | L56: 0 | M56: 0 | N56: 0 | O56: 0 | P56: 0 | Q56: 0 | R56: 0 | S56: 0 | T56: 0 | U56: 0 | Z56: 0 | AA56: 0 | AB56: 0
A57: 1 | B57: EX11803 | C57: 1 | F57: Other | I57: 78291 | J57: 17372 | K57: 0 | L57: 0 | M57: 0 | N57: 0 | O57: 0 | P57: 0 | Q57: 0 | R57: 0 | S57: 0 | T57: 0 | U57: 0 | Z57: 0 | AA57: 0 | AB57: 0
A58: 1 | B58: EX1164 | C58: 1 | F58: Laboratory services | I58: 16485 | J58: 13647 | K58: 21500 | L58: 21500 | M58: 22891.05 | N58: 22891.05 | O58: 0 | P58: 24479.68887 | Q58: 24479.68887 | R58: 0 | S58: 26244.67444 | T58: 26244.67444 | U58: 0 | Z58: 0.0694 | AA58: 0.0721 | AB58: -1
A59: 1 | B59: EX1162 | C59: 1 | F59: Legal services (G&S) | I59: 67676.36135 | J59: 54341.06541 | K59: 96206.74999 | L59: 96206.74999 | M59: 79837.87784 | N59: 79837.87784 | O59: 0 | P59: 109120.3069 | Q59: 109120.3069 | R59: 0 | S59: 116659.2932 | T59: 116659.2932 | U59: 0 | Z59: 0.3667736397 | AA59: 0.06908875688 | AB59: -1
A60: 1 | B60: EX1165 | C60: 1 | F60: Science and technological services | I60: 71959.76522 | J60: 77441.92792 | K60: 80768 | L60: 80768 | M60: 7118.235692 | N60: 7118.235692 | O60: 0 | P60: 20495.88145 | Q60: 20495.88145 | R60: 0 | S60: 22896.88145 | T60: 22896.88145 | U60: 0 | Z60: 1.879348526 | AA60: 0.1171454863 | AB60: -1
A61: 1 | B61: EX1125 | C61: 1 | F61: Contractors | I61: =SUM(I62:I66,I72) -> 431286.5009 | J61: 473678.5204 | K61: 450082.25 | L61: 450082.25 | M61: 450728.5202 | N61: 450728.5202 | O61: =SUM(N61-M61) -> 0 | P61: =SUM(P62:P66,P72) -> 547927.095 | Q61: =SUM(Q62:Q66,Q72) -> 547927.095 | R61: =SUM(Q61-P61) -> 0 | S61: =SUM(S62:S66,S72) -> 608752.1408 | T61: =SUM(T62:T66,T72) -> 608752.1408 | U61: 0 | V61: =SUM(V62:V66,V72) -> 0 | Z61: 0.2156477134 | AA61: 0.1110093777 | AB61: -1
A62: 1 | B62: EX11251 | C62: 1 | F62: Maintenance and repairs of other fixed structures | I62: 64032.15834 | J62: 44978.09784 | K62: 78264.54998 | L62: 78264.54998 | M62: 119663.2493 | N62: 119663.2493 | O62: 0 | P62: 193885.8943 | Q62: 193885.8943 | R62: 0 | S62: 229184.5696 | T62: 229184.5696 | U62: 0 | Z62: 0.6202626567 | AA62: 0.1820590168 | AB62: -1
A63: 1 | B63: EX11252 | C63: 0 | F63: Maintenance and repairs of other machinery and equipment | I63: 0 | J63: 0 | K63: 0 | L63: 0 | M63: 0 | N63: 0 | O63: 0 | P63: 0 | Q63: 0 | R63: 0 | S63: 0 | T63: 0 | U63: 0 | Z63: 0 | AA63: =IFERROR((T63/Q63)-1,0) -> 0 | AB63: =IFERROR((V63/T63)-1,0) -> 0
A64: 1 | B64: EX11253 | C64: 0 | F64: Maintenance and repairs of heritage buildings | I64: 0 | J64: 0 | K64: 0 | L64: 0 | M64: 0 | N64: 0 | O64: 0 | P64: 0 | Q64: 0 | R64: 0 | S64: 0 | T64: 0 | U64: 0 | Z64: 0 | AA64: 0 | AB64: 0
A65: 1 | B65: EX11254 | C65: 0 | F65: Maintenance and repairs of other heritage fixed structures | I65: 0 | J65: 0 | K65: 0 | L65: 0 | M65: 0 | N65: 0 | O65: 0 | P65: 0 | Q65: 0 | R65: 0 | S65: 0 | T65: 0 | U65: 0 | Z65: 0 | AA65: 0 | AB65: 0
A66: 5 | B66: EX11255 | C66: 0 | F66: South african social security agency payment contractors | I66: =SUM(I67:I71) -> 0 | J66: 0 | K66: 0 | L66: 0 | M66: 0 | N66: 0 | O66: 0 | P66: =SUM(P67:P71) -> 0 | Q66: =SUM(Q67:Q71) -> 0 | R66: 0 | S66: =SUM(S67:S71) -> 0 | T66: =SUM(T67:T71) -> 0 | U66: 0 | V66: =SUM(V67:V71) -> 0 | Z66: 0 | AA66: 0 | AB66: 0
A67: 5 | B67: EX112551 | C67: 0 | F67: SASSA Admin fees | I67: 0 | J67: 0 | K67: 0 | L67: 0 | M67: 0 | N67: 0 | O67: =SUM(N67-M67) -> 0 | P67: 0 | Q67: 0 | R67: =SUM(Q67-P67) -> 0 | S67: 0 | T67: 0 | U67: =SUM(T67-S67) -> 0 | Z67: 0 | AA67: 0 | AB67: 0
